﻿Body Name,Body,Service Area Categorisation,Service Division Categorisation,Responsible Unit,Expenses Type,Detailed Expenses Type,Payment Date,Transaction Number,Payment Amount,Supplier Type,Supplier Name,Supplier Id
Portsmouth City Council,PCC,Adult Social Care,Learning Disability Support  Adults (18 - 64),Adult Services,Third Party Payments,Other establishments,12/12/18,6272277,2604.93,VENDOR,CHOICE CARE GROUP,134468
Portsmouth City Council,PCC,Adult Social Care,Mental Health Support Adults (18 - 64),Adult Services,Third Party Payments,Other establishments,12/12/18,6272277,3759.68,VENDOR,CHOICE CARE GROUP,134468
Portsmouth City Council,PCC,Cultural and Related Services,Culture and Heritage,Culture & City Development,Third Party Payments,Private contractors,05/12/18,6271142,520,VENDOR,BOARHUNT GROUP LTD,103726
Portsmouth City Council,PCC,Highways and Transport Services,Parking Services,Regeneration,Third Party Payments,Private contractors,05/12/18,6271142,42.5,VENDOR,BOARHUNT GROUP LTD,103726
Portsmouth City Council,PCC,Highways and Transport Services,Parking Services,Regeneration,Third Party Payments,Private contractors,05/12/18,6271142,50,VENDOR,BOARHUNT GROUP LTD,103726
Portsmouth City Council,PCC,Highways and Transport Services,Parking Services,Regeneration,Third Party Payments,Private contractors,05/12/18,6271142,50,VENDOR,BOARHUNT GROUP LTD,103726
Portsmouth City Council,PCC,Highways and Transport Services,Parking Services,Regeneration,Third Party Payments,Private contractors,05/12/18,6271142,50,VENDOR,BOARHUNT GROUP LTD,103726
Portsmouth City Council,PCC,Highways and Transport Services,Parking Services,Regeneration,Third Party Payments,Private contractors,05/12/18,6271142,180,VENDOR,BOARHUNT GROUP LTD,103726
Portsmouth City Council,PCC,Highways and Transport Services,Parking Services,Regeneration,Third Party Payments,Private contractors,05/12/18,6271142,50,VENDOR,BOARHUNT GROUP LTD,103726
Portsmouth City Council,PCC,Highways and Transport Services,Parking Services,Regeneration,Third Party Payments,Private contractors,05/12/18,6271142,50,VENDOR,BOARHUNT GROUP LTD,103726
Portsmouth City Council,PCC,Highways and Transport Services,Parking Services,Regeneration,Third Party Payments,Private contractors,05/12/18,6271142,50,VENDOR,BOARHUNT GROUP LTD,103726
Portsmouth City Council,PCC,Highways and Transport Services,Parking Services,Regeneration,Third Party Payments,Private contractors,05/12/18,6271142,50,VENDOR,BOARHUNT GROUP LTD,103726
Portsmouth City Council,PCC,Highways and Transport Services,Parking Services,Regeneration,Third Party Payments,Private contractors,05/12/18,6271142,44,VENDOR,BOARHUNT GROUP LTD,103726
Portsmouth City Council,PCC,Highways and Transport Services,Parking Services,Regeneration,Third Party Payments,Private contractors,05/12/18,6271142,30,VENDOR,BOARHUNT GROUP LTD,103726
Portsmouth City Council,PCC,Highways and Transport Services,Parking Services,Regeneration,Third Party Payments,Private contractors,05/12/18,6271142,50,VENDOR,BOARHUNT GROUP LTD,103726
Portsmouth City Council,PCC,Highways and Transport Services,Parking Services,Regeneration,Third Party Payments,Private contractors,05/12/18,6271142,50,VENDOR,BOARHUNT GROUP LTD,103726
Portsmouth City Council,PCC,Highways and Transport Services,Parking Services,Regeneration,Third Party Payments,Private contractors,05/12/18,6271142,50,VENDOR,BOARHUNT GROUP LTD,103726
Portsmouth City Council,PCC,Highways and Transport Services,Parking Services,Regeneration,Third Party Payments,Private contractors,05/12/18,6271142,50,VENDOR,BOARHUNT GROUP LTD,103726
Portsmouth City Council,PCC,Highways and Transport Services,Parking Services,Regeneration,Third Party Payments,Private contractors,05/12/18,6271142,25,VENDOR,BOARHUNT GROUP LTD,103726
Portsmouth City Council,PCC,Highways and Transport Services,Parking Services,Regeneration,Third Party Payments,Private contractors,05/12/18,6271142,50,VENDOR,BOARHUNT GROUP LTD,103726
Portsmouth City Council,PCC,Highways and Transport Services,Parking Services,Regeneration,Third Party Payments,Private contractors,05/12/18,6271142,90,VENDOR,BOARHUNT GROUP LTD,103726
Portsmouth City Council,PCC,Highways and Transport Services,Parking Services,Regeneration,Third Party Payments,Private contractors,05/12/18,6271142,50,VENDOR,BOARHUNT GROUP LTD,103726
Portsmouth City Council,PCC,Highways and Transport Services,Parking Services,Regeneration,Third Party Payments,Private contractors,05/12/18,6271142,50,VENDOR,BOARHUNT GROUP LTD,103726
Portsmouth City Council,PCC,Highways and Transport Services,Parking Services,Regeneration,Third Party Payments,Private contractors,14/12/18,6273053,260,VENDOR,BOARHUNT GROUP LTD,103726
Portsmouth City Council,PCC,Highways and Transport Services,Parking Services,Regeneration,Third Party Payments,Private contractors,14/12/18,6273053,260,VENDOR,BOARHUNT GROUP LTD,103726
Portsmouth City Council,PCC,Highways and Transport Services,Parking Services,Regeneration,Third Party Payments,Private contractors,14/12/18,6273053,50,VENDOR,BOARHUNT GROUP LTD,103726
Portsmouth City Council,PCC,Highways and Transport Services,Parking Services,Regeneration,Third Party Payments,Private contractors,14/12/18,6273053,50,VENDOR,BOARHUNT GROUP LTD,103726
Portsmouth City Council,PCC,Highways and Transport Services,Parking Services,Regeneration,Third Party Payments,Private contractors,14/12/18,6273053,90,VENDOR,BOARHUNT GROUP LTD,103726
Portsmouth City Council,PCC,Highways and Transport Services,Parking Services,Regeneration,Third Party Payments,Private contractors,14/12/18,6273053,50,VENDOR,BOARHUNT GROUP LTD,103726
Portsmouth City Council,PCC,Highways and Transport Services,Parking Services,Regeneration,Third Party Payments,Private contractors,14/12/18,6273053,90,VENDOR,BOARHUNT GROUP LTD,103726
Portsmouth City Council,PCC,Highways and Transport Services,Parking Services,Regeneration,Third Party Payments,Private contractors,14/12/18,6273053,42.5,VENDOR,BOARHUNT GROUP LTD,103726
Portsmouth City Council,PCC,Highways and Transport Services,Parking Services,Regeneration,Third Party Payments,Private contractors,14/12/18,6273053,42.5,VENDOR,BOARHUNT GROUP LTD,103726
Portsmouth City Council,PCC,Highways and Transport Services,Parking Services,Regeneration,Third Party Payments,Private contractors,14/12/18,6273053,30,VENDOR,BOARHUNT GROUP LTD,103726
Portsmouth City Council,PCC,Highways and Transport Services,Parking Services,Regeneration,Third Party Payments,Private contractors,14/12/18,6273053,50,VENDOR,BOARHUNT GROUP LTD,103726
Portsmouth City Council,PCC,Highways and Transport Services,Parking Services,Regeneration,Third Party Payments,Private contractors,14/12/18,6273053,50,VENDOR,BOARHUNT GROUP LTD,103726
Portsmouth City Council,PCC,Highways and Transport Services,Parking Services,Regeneration,Third Party Payments,Private contractors,14/12/18,6273053,30,VENDOR,BOARHUNT GROUP LTD,103726
Portsmouth City Council,PCC,Highways and Transport Services,Parking Services,Regeneration,Third Party Payments,Private contractors,14/12/18,6273053,44,VENDOR,BOARHUNT GROUP LTD,103726
Portsmouth City Council,PCC,Highways and Transport Services,Parking Services,Regeneration,Third Party Payments,Private contractors,19/12/18,6274035,60,VENDOR,BOARHUNT GROUP LTD,103726
Portsmouth City Council,PCC,Highways and Transport Services,Parking Services,Regeneration,Third Party Payments,Private contractors,19/12/18,6274035,30,VENDOR,BOARHUNT GROUP LTD,103726
Portsmouth City Council,PCC,Highways and Transport Services,Parking Services,Regeneration,Third Party Payments,Private contractors,19/12/18,6274035,44,VENDOR,BOARHUNT GROUP LTD,103726
Portsmouth City Council,PCC,Highways and Transport Services,Parking Services,Regeneration,Third Party Payments,Private contractors,19/12/18,6274035,25,VENDOR,BOARHUNT GROUP LTD,103726
Portsmouth City Council,PCC,Highways and Transport Services,Parking Services,Regeneration,Third Party Payments,Private contractors,19/12/18,6274035,50,VENDOR,BOARHUNT GROUP LTD,103726
Portsmouth City Council,PCC,Highways and Transport Services,Parking Services,Regeneration,Third Party Payments,Private contractors,19/12/18,6274035,60,VENDOR,BOARHUNT GROUP LTD,103726
Portsmouth City Council,PCC,Highways and Transport Services,Parking Services,Regeneration,Third Party Payments,Private contractors,19/12/18,6274035,50,VENDOR,BOARHUNT GROUP LTD,103726
Portsmouth City Council,PCC,Highways and Transport Services,Parking Services,Regeneration,Third Party Payments,Private contractors,19/12/18,6274035,44,VENDOR,BOARHUNT GROUP LTD,103726
Portsmouth City Council,PCC,Highways and Transport Services,Parking Services,Regeneration,Third Party Payments,Private contractors,19/12/18,6274035,120,VENDOR,BOARHUNT GROUP LTD,103726
Portsmouth City Council,PCC,Highways and Transport Services,Parking Services,Regeneration,Third Party Payments,Private contractors,19/12/18,6274035,50,VENDOR,BOARHUNT GROUP LTD,103726
Portsmouth City Council,PCC,Highways and Transport Services,Parking Services,Regeneration,Third Party Payments,Private contractors,19/12/18,6274035,50,VENDOR,BOARHUNT GROUP LTD,103726
Portsmouth City Council,PCC,Highways and Transport Services,Parking Services,Regeneration,Third Party Payments,Private contractors,19/12/18,6274035,50,VENDOR,BOARHUNT GROUP LTD,103726
Portsmouth City Council,PCC,Highways and Transport Services,Parking Services,Regeneration,Premises-Related Expenditure,Rents,19/12/18,6274035,1800,VENDOR,BOARHUNT GROUP LTD,103726
Portsmouth City Council,PCC,Highways and Transport Services,Parking Services,Regeneration,Third Party Payments,Private contractors,21/12/18,6274773,50,VENDOR,BOARHUNT GROUP LTD,103726
Portsmouth City Council,PCC,Highways and Transport Services,Parking Services,Regeneration,Third Party Payments,Private contractors,21/12/18,6274773,100,VENDOR,BOARHUNT GROUP LTD,103726
Portsmouth City Council,PCC,Highways and Transport Services,Parking Services,Regeneration,Third Party Payments,Private contractors,21/12/18,6274773,120,VENDOR,BOARHUNT GROUP LTD,103726
Portsmouth City Council,PCC,Highways and Transport Services,Parking Services,Regeneration,Third Party Payments,Private contractors,21/12/18,6274773,50,VENDOR,BOARHUNT GROUP LTD,103726
Portsmouth City Council,PCC,Highways and Transport Services,Parking Services,Regeneration,Third Party Payments,Private contractors,21/12/18,6274773,44,VENDOR,BOARHUNT GROUP LTD,103726
Portsmouth City Council,PCC,Highways and Transport Services,Parking Services,Regeneration,Third Party Payments,Private contractors,21/12/18,6274773,44,VENDOR,BOARHUNT GROUP LTD,103726
Portsmouth City Council,PCC,Highways and Transport Services,Parking Services,Regeneration,Third Party Payments,Private contractors,21/12/18,6274773,44,VENDOR,BOARHUNT GROUP LTD,103726
Portsmouth City Council,PCC,Highways and Transport Services,Parking Services,Regeneration,Third Party Payments,Private contractors,21/12/18,6274773,60,VENDOR,BOARHUNT GROUP LTD,103726
Portsmouth City Council,PCC,Highways and Transport Services,Parking Services,Regeneration,Third Party Payments,Private contractors,21/12/18,6274773,50,VENDOR,BOARHUNT GROUP LTD,103726
Portsmouth City Council,PCC,Highways and Transport Services,Parking Services,Regeneration,Third Party Payments,Private contractors,21/12/18,6274773,50,VENDOR,BOARHUNT GROUP LTD,103726
Portsmouth City Council,PCC,Highways and Transport Services,Parking Services,Regeneration,Third Party Payments,Private contractors,21/12/18,6274773,50,VENDOR,BOARHUNT GROUP LTD,103726
Portsmouth City Council,PCC,Highways and Transport Services,Parking Services,Regeneration,Third Party Payments,Private contractors,21/12/18,6274773,30,VENDOR,BOARHUNT GROUP LTD,103726
Portsmouth City Council,PCC,Highways and Transport Services,Parking Services,Regeneration,Third Party Payments,Private contractors,21/12/18,6274773,50,VENDOR,BOARHUNT GROUP LTD,103726
Portsmouth City Council,PCC,Highways and Transport Services,Parking Services,Regeneration,Third Party Payments,Private contractors,21/12/18,6274773,50,VENDOR,BOARHUNT GROUP LTD,103726
Portsmouth City Council,PCC,Highways and Transport Services,Parking Services,Regeneration,Third Party Payments,Private contractors,21/12/18,6274773,50,VENDOR,BOARHUNT GROUP LTD,103726
Portsmouth City Council,PCC,Highways and Transport Services,Parking Services,Regeneration,Third Party Payments,Private contractors,21/12/18,6274773,25,VENDOR,BOARHUNT GROUP LTD,103726
Portsmouth City Council,PCC,Highways and Transport Services,Parking Services,Regeneration,Third Party Payments,Private contractors,21/12/18,6274773,50,VENDOR,BOARHUNT GROUP LTD,103726
Portsmouth City Council,PCC,Highways and Transport Services,Parking Services,Regeneration,Third Party Payments,Private contractors,21/12/18,6274773,50,VENDOR,BOARHUNT GROUP LTD,103726
Portsmouth City Council,PCC,Highways and Transport Services,Parking Services,Regeneration,Third Party Payments,Private contractors,21/12/18,6274773,30,VENDOR,BOARHUNT GROUP LTD,103726
Portsmouth City Council,PCC,Highways and Transport Services,Parking Services,Regeneration,Third Party Payments,Private contractors,21/12/18,6274773,44,VENDOR,BOARHUNT GROUP LTD,103726
Portsmouth City Council,PCC,Highways and Transport Services,Parking Services,Regeneration,Third Party Payments,Private contractors,21/12/18,6274773,44,VENDOR,BOARHUNT GROUP LTD,103726
Portsmouth City Council,PCC,Highways and Transport Services,Parking Services,Regeneration,Third Party Payments,Private contractors,07/12/18,6271896,693,VENDOR,PRODUCT DEVELOPMENT CORPORATION,134173
Portsmouth City Council,PCC,Highways and Transport Services,Parking Services,Regeneration,Third Party Payments,Private contractors,07/12/18,6271896,3.78,VENDOR,PRODUCT DEVELOPMENT CORPORATION,134173
Portsmouth City Council,PCC,Highways and Transport Services,Parking Services,Regeneration,Third Party Payments,Private contractors,21/12/18,6275034,467.04,VENDOR,PRODUCT DEVELOPMENT CORPORATION,134173
Portsmouth City Council,PCC,Children's and Education Services,Other Education and Community Budget,Children's Services and Education,Supplies and Services,Miscellaneous expenses,21/12/18,6275034,335,VENDOR,PRODUCT DEVELOPMENT CORPORATION,134173
Portsmouth City Council,PCC,Planning Services,Business support,Regeneration,Premises-Related Expenditure,"Repairs, alterations and maintenance of buildings",17/12/18,6273431,600,VENDOR,TECHNOLOGY WITHIN LIMITED,143958
Portsmouth City Council,PCC,Children's and Education Services,Children Looked After,Children's Services and Education,Third Party Payments,Other establishments,18/12/18,6273546,18214.29,VENDOR,KEYS GROUP LIMITED,137236
Portsmouth City Council,PCC,Children's and Education Services,Children Looked After,Children's Services and Education,Third Party Payments,Other establishments,07/12/18,6271895,39139.16,VENDOR,PRIORS COURT SCHOOL,126243
Portsmouth City Council,PCC,Children's and Education Services,Children Looked After,Children's Services and Education,Third Party Payments,Other establishments,28/12/18,6275469,3011.34,VENDOR,HORIZON CARE AND EDUCATION GROUP LTD,138450
Portsmouth City Council,PCC,Children's and Education Services,Asylum seekers,Children's Services and Education,Third Party Payments,Other establishments,28/12/18,6275469,3011.34,VENDOR,HORIZON CARE AND EDUCATION GROUP LTD,138450
Portsmouth City Council,PCC,Cultural and Related Services,Recreation and Sport,Culture & City Development,Third Party Payments,Private contractors,07/12/18,6271882,2300,VENDOR,NOVA INTERNATIONAL LIMITED,109265
Portsmouth City Council,PCC,Cultural and Related Services,Recreation and Sport,Culture & City Development,Third Party Payments,Private contractors,07/12/18,6271882,1350,VENDOR,NOVA INTERNATIONAL LIMITED,109265
Portsmouth City Council,PCC,Children's and Education Services,Children Looked After,Children's Services and Education,Third Party Payments,Other establishments,06/12/18,6271728,17607.06,VENDOR,KEYS GROUP LIMITED,137236
Portsmouth City Council,PCC,Children's and Education Services,Children Looked After,Children's Services and Education,Third Party Payments,Other establishments,28/12/18,6275480,18214.2,VENDOR,KEYS GROUP LIMITED,137236
Portsmouth City Council,PCC,Children's and Education Services,Children Looked After,Children's Services and Education,Third Party Payments,Other establishments,03/12/18,6270873,3407.14,VENDOR,FIVE RIVERS CHILD CARE LIMITED,106901
Portsmouth City Council,PCC,Children's and Education Services,Children Looked After,Children's Services and Education,Third Party Payments,Other establishments,28/12/18,6275457,3520.71,VENDOR,FIVE RIVERS CHILD CARE LIMITED,106901
Portsmouth City Council,PCC,Children's and Education Services,Family Support Services,"Housing, Neighbourhood and Building Services",Supplies and Services,"Equipment, furniture and materials",21/12/18,6275154,388.16,VENDOR,TYNETEC B/U OF LEGRAND ELECTRIC LTD,140439
Portsmouth City Council,PCC,Children's and Education Services,Family Support Services,"Housing, Neighbourhood and Building Services",Supplies and Services,"Equipment, furniture and materials",21/12/18,6275154,62.78,VENDOR,TYNETEC B/U OF LEGRAND ELECTRIC LTD,140439
Portsmouth City Council,PCC,Solent LEP,Business support,OTHER,Supplies and Services,"Equipment, furniture and materials",10/12/18,6272038,425,VENDOR,PORTSDOWN OFFICE LTD,100059
Portsmouth City Council,PCC,Support Service / Transparency Costs Unallocated,AMS,"Housing, Neighbourhood and Building Services",Supplies and Services,"Equipment, furniture and materials",20/12/18,6274677,1425.48,VENDOR,PORTSDOWN OFFICE LTD,100059
Portsmouth City Council,PCC,Other,Suspense and Capital Schemes,Capital - Education,Capital Charges,Capital Expenditure (WIP),18/12/18,6273567,3880.39,VENDOR,PORTSDOWN OFFICE LTD,100059
Portsmouth City Council,PCC,Support Service / Transparency Costs Unallocated,AMS,"Housing, Neighbourhood and Building Services",Supplies and Services,"Equipment, furniture and materials",21/12/18,6275020,1731,VENDOR,PORTSDOWN OFFICE LTD,100059
Portsmouth City Council,PCC,Children's and Education Services,Other Children and Family Services,Children's Services and Education,Supplies and Services,Services,05/12/18,6271132,157.66,VENDOR,ALERE TOXICOLOGY PLC,121708
Portsmouth City Council,PCC,Children's and Education Services,Other Children and Family Services,Children's Services and Education,Supplies and Services,Services,05/12/18,6271132,269,VENDOR,ALERE TOXICOLOGY PLC,121708
Portsmouth City Council,PCC,Adult Social Care,Support with Memory and Cognition Older People (65 - 74),Adult Services,Premises-Related Expenditure,Cleaning and domestic supplies,31/12/18,6275811,934,VENDOR,SRCL LTD,130344
Portsmouth City Council,PCC,Housing Revenue Account,Repairs and Maintenance,"Housing, Neighbourhood and Building Services",Premises-Related Expenditure,"Repairs, alterations and maintenance of buildings",03/12/18,6270895,8220.01,COMPANY,MOUNTJOY LIMITED,129869
Portsmouth City Council,PCC,Housing Revenue Account,Repairs and Maintenance,"Housing, Neighbourhood and Building Services",Premises-Related Expenditure,"Repairs, alterations and maintenance of buildings",10/12/18,6272030,86891.94,COMPANY,MOUNTJOY LIMITED,129869
Portsmouth City Council,PCC,Adult Social Care,Social Care Activities,Adult Services,Third Party Payments,Other establishments,28/12/18,6275468,5120,VENDOR,HELPING HANDS HOMECARE,141367
Portsmouth City Council,PCC,Adult Social Care,Social Care Activities,Adult Services,Third Party Payments,Other establishments,28/12/18,6275468,4620,VENDOR,HELPING HANDS HOMECARE,141367
Portsmouth City Council,PCC,Housing Revenue Account,Supervision and Management,"Housing, Neighbourhood and Building Services",Premises-Related Expenditure,Water Services,05/12/18,6271146,382.99,VENDOR,CASTLE WATER LIMITED,142798
Portsmouth City Council,PCC,Cultural and Related Services,Open Spaces,Culture & City Development,Premises-Related Expenditure,Water Services,14/12/18,6273068,420.82,VENDOR,CASTLE WATER LIMITED,142798
Portsmouth City Council,PCC,Housing Revenue Account,Special Services,"Housing, Neighbourhood and Building Services",Premises-Related Expenditure,Water Services,07/12/18,6271816,299.83,VENDOR,CASTLE WATER LIMITED,142798
Portsmouth City Council,PCC,Cultural and Related Services,Recreation and Sport,Culture & City Development,Premises-Related Expenditure,Water Services,04/12/18,6270973,48.65,VENDOR,CASTLE WATER LIMITED,142798
Portsmouth City Council,PCC,Cultural and Related Services,Open Spaces,Culture & City Development,Premises-Related Expenditure,Water Services,04/12/18,6270973,36.51,VENDOR,CASTLE WATER LIMITED,142798
Portsmouth City Council,PCC,Children's and Education Services,Children Looked After,Children's Services and Education,Premises-Related Expenditure,Water Services,12/12/18,6272274,4.2,VENDOR,CASTLE WATER LIMITED,142798
Portsmouth City Council,PCC,Cultural and Related Services,Library Service,Culture & City Development,Premises-Related Expenditure,Water Services,04/12/18,6270973,21.04,VENDOR,CASTLE WATER LIMITED,142798
Portsmouth City Council,PCC,Housing Revenue Account,Special Services,"Housing, Neighbourhood and Building Services",Premises-Related Expenditure,Water Services,07/12/18,6271816,16.6,VENDOR,CASTLE WATER LIMITED,142798
Portsmouth City Council,PCC,Costs below Net Cost of Services,Trading,Regeneration,Premises-Related Expenditure,Water Services,07/12/18,6271816,5.95,VENDOR,CASTLE WATER LIMITED,142798
Portsmouth City Council,PCC,Housing Revenue Account,Supervision and Management,"Housing, Neighbourhood and Building Services",Premises-Related Expenditure,Water Services,07/12/18,6271816,6.27,VENDOR,CASTLE WATER LIMITED,142798
Portsmouth City Council,PCC,Environmental and Regulatory Services,"Cemetery, Cremation and Mortuary Services",Culture & City Development,Premises-Related Expenditure,Water Services,04/12/18,6270973,176.53,VENDOR,CASTLE WATER LIMITED,142798
Portsmouth City Council,PCC,Cultural and Related Services,Open Spaces,Culture & City Development,Premises-Related Expenditure,Water Services,04/12/18,6270973,88.33,VENDOR,CASTLE WATER LIMITED,142798
Portsmouth City Council,PCC,Cultural and Related Services,Library Service,Culture & City Development,Premises-Related Expenditure,Water Services,04/12/18,6270973,4.17,VENDOR,CASTLE WATER LIMITED,142798
Portsmouth City Council,PCC,Cultural and Related Services,Open Spaces,Culture & City Development,Premises-Related Expenditure,Water Services,04/12/18,6270973,3.46,VENDOR,CASTLE WATER LIMITED,142798
Portsmouth City Council,PCC,Cultural and Related Services,Library Service,Culture & City Development,Premises-Related Expenditure,Water Services,04/12/18,6270973,11.01,VENDOR,CASTLE WATER LIMITED,142798
Portsmouth City Council,PCC,Cultural and Related Services,Library Service,Culture & City Development,Premises-Related Expenditure,Water Services,04/12/18,6270973,8.39,VENDOR,CASTLE WATER LIMITED,142798
Portsmouth City Council,PCC,Housing Revenue Account,Special Services,"Housing, Neighbourhood and Building Services",Premises-Related Expenditure,Water Services,07/12/18,6271816,23.02,VENDOR,CASTLE WATER LIMITED,142798
Portsmouth City Council,PCC,Housing Revenue Account,"Rents, Rates, Taxes and Other Charges","Housing, Neighbourhood and Building Services",Premises-Related Expenditure,Water Services,12/12/18,6272274,14.61,VENDOR,CASTLE WATER LIMITED,142798
Portsmouth City Council,PCC,Cultural and Related Services,Library Service,Culture & City Development,Premises-Related Expenditure,Water Services,04/12/18,6270973,0.73,VENDOR,CASTLE WATER LIMITED,142798
Portsmouth City Council,PCC,Costs below Net Cost of Services,Trading,Regeneration,Premises-Related Expenditure,Water Services,07/12/18,6271816,17.48,VENDOR,CASTLE WATER LIMITED,142798
Portsmouth City Council,PCC,Planning Services,Business support,Regeneration,Premises-Related Expenditure,Water Services,12/12/18,6272274,761.33,VENDOR,CASTLE WATER LIMITED,142798
Portsmouth City Council,PCC,Housing Revenue Account,"Rents, Rates, Taxes and Other Charges","Housing, Neighbourhood and Building Services",Premises-Related Expenditure,Water Services,04/12/18,6270973,8.15,VENDOR,CASTLE WATER LIMITED,142798
Portsmouth City Council,PCC,Cultural and Related Services,Open Spaces,Culture & City Development,Premises-Related Expenditure,Water Services,07/12/18,6271816,21211.63,VENDOR,CASTLE WATER LIMITED,142798
Portsmouth City Council,PCC,Cultural and Related Services,Open Spaces,Culture & City Development,Premises-Related Expenditure,Water Services,04/12/18,6270973,9.36,VENDOR,CASTLE WATER LIMITED,142798
Portsmouth City Council,PCC,Cultural and Related Services,Open Spaces,Culture & City Development,Premises-Related Expenditure,Water Services,04/12/18,6270973,122,VENDOR,CASTLE WATER LIMITED,142798
Portsmouth City Council,PCC,Cultural and Related Services,Open Spaces,Culture & City Development,Premises-Related Expenditure,Water Services,21/12/18,6274795,115.37,VENDOR,CASTLE WATER LIMITED,142798
Portsmouth City Council,PCC,Housing Revenue Account,"Rents, Rates, Taxes and Other Charges","Housing, Neighbourhood and Building Services",Premises-Related Expenditure,Water Services,04/12/18,6270973,11.58,VENDOR,CASTLE WATER LIMITED,142798
Portsmouth City Council,PCC,Housing Revenue Account,Special Services,"Housing, Neighbourhood and Building Services",Premises-Related Expenditure,Water Services,07/12/18,6271816,13.55,VENDOR,CASTLE WATER LIMITED,142798
Portsmouth City Council,PCC,Cultural and Related Services,Open Spaces,Culture & City Development,Premises-Related Expenditure,Water Services,04/12/18,6270973,20.87,VENDOR,CASTLE WATER LIMITED,142798
Portsmouth City Council,PCC,Cultural and Related Services,Open Spaces,Culture & City Development,Premises-Related Expenditure,Water Services,04/12/18,6270973,21.6,VENDOR,CASTLE WATER LIMITED,142798
Portsmouth City Council,PCC,Cultural and Related Services,Open Spaces,Culture & City Development,Premises-Related Expenditure,Water Services,05/12/18,6271146,3711.56,VENDOR,CASTLE WATER LIMITED,142798
Portsmouth City Council,PCC,Cultural and Related Services,Open Spaces,Culture & City Development,Premises-Related Expenditure,Water Services,07/12/18,6271816,23.99,VENDOR,CASTLE WATER LIMITED,142798
Portsmouth City Council,PCC,Environmental and Regulatory Services,Waste Disposal,"Housing, Neighbourhood and Building Services",Third Party Payments,Private contractors,21/12/18,6274737,1335,COMPANY,ABSOLUTE SECURITY SHUTTERS LTD,137456
Portsmouth City Council,PCC,Children's and Education Services,Other Education and Community Budget,Children's Services and Education,Premises-Related Expenditure,Cleaning and domestic supplies,13/12/18,6272893,3043.87,VENDOR,ATLAS CONTRACTORS LIMITED,132690
Portsmouth City Council,PCC,Other,Suspense and Capital Schemes,Capital - Housing GF,Capital Charges,REFCUS,05/12/18,6271666,1698.86,COMPANY,YOUNG AND YOUNG BUILDING SERVICES LTD,104996
Portsmouth City Council,PCC,Other,Suspense and Capital Schemes,Capital - Housing GF,Capital Charges,REFCUS,19/12/18,6274565,16057.82,COMPANY,YOUNG AND YOUNG BUILDING SERVICES LTD,104996
Portsmouth City Council,PCC,Highways and Transport Services,"Airports, Harbours and Toll Facilities",Portsmouth International Port,Premises-Related Expenditure,"Repairs, alterations and maintenance of buildings",13/12/18,6272938,1712.58,VENDOR,ERIKS INDUSTRIAL SERVICES LTD,137875
Portsmouth City Council,PCC,Children's and Education Services,Children Looked After,Children's Services and Education,Supplies and Services,Services,05/12/18,6271578,192,VENDOR,HOME SCHOOL TUTORING,140194
Portsmouth City Council,PCC,Planning Services,Business support,Regeneration,Premises-Related Expenditure,"Repairs, alterations and maintenance of buildings",20/12/18,6274654,360,SOLETRADER,M J RITCHIE DECOR AND GUTTERING SERVICES,126505
Portsmouth City Council,PCC,Planning Services,Business support,Regeneration,Premises-Related Expenditure,"Repairs, alterations and maintenance of buildings",20/12/18,6274654,90,SOLETRADER,M J RITCHIE DECOR AND GUTTERING SERVICES,126505
Portsmouth City Council,PCC,Children's and Education Services,Children Looked After,Children's Services and Education,Supplies and Services,Services,05/12/18,6271578,160,VENDOR,HOME SCHOOL TUTORING,140194
Portsmouth City Council,PCC,Planning Services,Business support,Regeneration,Premises-Related Expenditure,"Repairs, alterations and maintenance of buildings",20/12/18,6274654,390,SOLETRADER,M J RITCHIE DECOR AND GUTTERING SERVICES,126505
Portsmouth City Council,PCC,Children's and Education Services,Children Looked After,Children's Services and Education,Supplies and Services,Services,05/12/18,6271578,160,VENDOR,HOME SCHOOL TUTORING,140194
Portsmouth City Council,PCC,Adult Social Care,Social Care Activities,Adult Services,Third Party Payments,Other establishments,07/12/18,6271801,5496.96,VENDOR,ASTER CARE LTD,130238
Portsmouth City Council,PCC,Adult Social Care,Social Care Activities,Adult Services,Third Party Payments,Other establishments,28/12/18,6275405,5496.96,VENDOR,ASTER CARE LTD,130238
Portsmouth City Council,PCC,Central Services,Coroners' Court Services,Culture & City Development,Supplies and Services,Services,05/12/18,320440,680,VENDOR,DIGNITY FUNERALS LTD,117178
Portsmouth City Council,PCC,Adult Social Care,Social Care Activities,Adult Services,Third Party Payments,Other establishments,07/12/18,6271801,5714.52,VENDOR,ASTER CARE LTD,130238
Portsmouth City Council,PCC,Adult Social Care,Social Care Activities,Adult Services,Third Party Payments,Other establishments,07/12/18,6271801,5279.4,VENDOR,ASTER CARE LTD,130238
Portsmouth City Council,PCC,Adult Social Care,Social Care Activities,Adult Services,Third Party Payments,Other establishments,28/12/18,6275405,5714.52,VENDOR,ASTER CARE LTD,130238
Portsmouth City Council,PCC,Adult Social Care,Social Care Activities,Adult Services,Third Party Payments,Other establishments,28/12/18,6275405,5279.4,VENDOR,ASTER CARE LTD,130238
Portsmouth City Council,PCC,Adult Social Care,Social Care Activities,Adult Services,Third Party Payments,Other establishments,19/12/18,6274514,912.8,VENDOR,NURSE PLUS & CARER PLUS (UK) LIMITED,129474
Portsmouth City Council,PCC,Adult Social Care,Social Care Activities,Adult Services,Third Party Payments,Other establishments,19/12/18,6274514,1369.2,VENDOR,NURSE PLUS & CARER PLUS (UK) LIMITED,129474
Portsmouth City Council,PCC,Adult Social Care,Social Care Activities,Adult Services,Third Party Payments,Other establishments,19/12/18,6274514,912.8,VENDOR,NURSE PLUS & CARER PLUS (UK) LIMITED,129474
Portsmouth City Council,PCC,Adult Social Care,Social Care Activities,Adult Services,Third Party Payments,Other establishments,19/12/18,6274514,1369.2,VENDOR,NURSE PLUS & CARER PLUS (UK) LIMITED,129474
Portsmouth City Council,PCC,Adult Social Care,Social Care Activities,Adult Services,Third Party Payments,Other establishments,19/12/18,6274514,2738.4,VENDOR,NURSE PLUS & CARER PLUS (UK) LIMITED,129474
Portsmouth City Council,PCC,Adult Social Care,Social Care Activities,Adult Services,Third Party Payments,Other establishments,19/12/18,6274514,912.8,VENDOR,NURSE PLUS & CARER PLUS (UK) LIMITED,129474
Portsmouth City Council,PCC,Adult Social Care,Social Care Activities,Adult Services,Third Party Payments,Other establishments,19/12/18,6274514,1369.2,VENDOR,NURSE PLUS & CARER PLUS (UK) LIMITED,129474
Portsmouth City Council,PCC,Adult Social Care,Social Care Activities,Adult Services,Third Party Payments,Other establishments,19/12/18,6274514,2738.4,VENDOR,NURSE PLUS & CARER PLUS (UK) LIMITED,129474
Portsmouth City Council,PCC,Adult Social Care,Social Care Activities,Adult Services,Third Party Payments,Other establishments,27/12/18,6275317,912.8,VENDOR,NURSE PLUS & CARER PLUS (UK) LIMITED,129474
Portsmouth City Council,PCC,Adult Social Care,Social Care Activities,Adult Services,Third Party Payments,Other establishments,27/12/18,6275317,1369.2,VENDOR,NURSE PLUS & CARER PLUS (UK) LIMITED,129474
Portsmouth City Council,PCC,Adult Social Care,Social Care Activities,Adult Services,Third Party Payments,Other establishments,27/12/18,6275317,2738.4,VENDOR,NURSE PLUS & CARER PLUS (UK) LIMITED,129474
Portsmouth City Council,PCC,Adult Social Care,Social Care Activities,Adult Services,Third Party Payments,Other establishments,31/12/18,6275752,912.8,VENDOR,NURSE PLUS & CARER PLUS (UK) LIMITED,129474
Portsmouth City Council,PCC,Adult Social Care,Social Care Activities,Adult Services,Third Party Payments,Other establishments,31/12/18,6275752,1369.2,VENDOR,NURSE PLUS & CARER PLUS (UK) LIMITED,129474
Portsmouth City Council,PCC,Adult Social Care,Social Care Activities,Adult Services,Third Party Payments,Other establishments,31/12/18,6275752,114.1,VENDOR,NURSE PLUS & CARER PLUS (UK) LIMITED,129474
Portsmouth City Council,PCC,Adult Social Care,Social Care Activities,Adult Services,Third Party Payments,Other establishments,31/12/18,6275752,2738.4,VENDOR,NURSE PLUS & CARER PLUS (UK) LIMITED,129474
Portsmouth City Council,PCC,Adult Social Care,Social Care Activities,Adult Services,Third Party Payments,Other establishments,07/12/18,6271801,10393.92,VENDOR,ASTER CARE LTD,130238
Portsmouth City Council,PCC,Adult Social Care,Social Care Activities,Adult Services,Third Party Payments,Other establishments,28/12/18,6275405,10513.92,VENDOR,ASTER CARE LTD,130238
Portsmouth City Council,PCC,Adult Social Care,Commissioning & service delivery,Adult Services,Employees,Direct employee expenses,07/12/18,6271913,2150,VENDOR,STHREE PARTNERSHIP LLP,107166
Portsmouth City Council,PCC,Adult Social Care,Commissioning & service delivery,Adult Services,Employees,Direct employee expenses,13/12/18,6273004,2150,VENDOR,STHREE PARTNERSHIP LLP,107166
Portsmouth City Council,PCC,Adult Social Care,Commissioning & service delivery,Adult Services,Employees,Direct employee expenses,20/12/18,6274704,2150,VENDOR,STHREE PARTNERSHIP LLP,107166
Portsmouth City Council,PCC,Adult Social Care,Commissioning & service delivery,Adult Services,Employees,Direct employee expenses,31/12/18,6275821,2150,VENDOR,STHREE PARTNERSHIP LLP,107166
Portsmouth City Council,PCC,Adult Social Care,Commissioning & service delivery,Adult Services,Employees,Direct employee expenses,31/12/18,6275821,2150,VENDOR,STHREE PARTNERSHIP LLP,107166
Portsmouth City Council,PCC,Children's and Education Services,Other Children and Family Services,Children's Services and Education,Third Party Payments,Other establishments,17/12/18,6273297,324.55,VENDOR,APPLETREE SUPPORT LTD,126285
Portsmouth City Council,PCC,Adult Social Care,Social Care Activities,Adult Services,Third Party Payments,Other establishments,17/12/18,6273297,3786.32,VENDOR,APPLETREE SUPPORT LTD,126285
Portsmouth City Council,PCC,Children's and Education Services,Other Children and Family Services,Children's Services and Education,Third Party Payments,Other establishments,17/12/18,6273297,1271.12,VENDOR,APPLETREE SUPPORT LTD,126285
Portsmouth City Council,PCC,Children's and Education Services,Other Children and Family Services,Children's Services and Education,Third Party Payments,Other establishments,17/12/18,6273297,1289.15,VENDOR,APPLETREE SUPPORT LTD,126285
Portsmouth City Council,PCC,Other,Suspense and Capital Schemes,Capital - PRED (Excl. Port & Solent LEP),Capital Charges,Capital Expenditure (WIP),12/12/18,6272754,6132,VENDOR,INTEGRATED & VERTICALLY ALIGNED SOLUTIONS LTD,144503
Portsmouth City Council,PCC,Children's and Education Services,Children Looked After,Children's Services and Education,Third Party Payments,Other establishments,13/12/18,6272955,3011.34,VENDOR,HORIZON CARE AND EDUCATION GROUP LTD,138450
Portsmouth City Council,PCC,Housing Revenue Account,Repairs and Maintenance,"Housing, Neighbourhood and Building Services",Premises-Related Expenditure,Energy costs,14/12/18,6273241,25.51,COMPANY,SSE PLC (SCOTTISH AND SOUTHERN ENERGY PLC),100303
Portsmouth City Council,PCC,Children's and Education Services,Children Looked After,Children's Services and Education,Third Party Payments,Other establishments,13/12/18,6272955,3011.34,VENDOR,HORIZON CARE AND EDUCATION GROUP LTD,138450
Portsmouth City Council,PCC,Adult Social Care,Social Care Activities,Adult Services,Third Party Payments,Other establishments,21/12/18,6274753,4122.72,VENDOR,ASTER CARE LTD,130238
Portsmouth City Council,PCC,Cultural and Related Services,Library Service,Culture & City Development,Supplies and Services,Miscellaneous expenses,28/12/18,6275408,568,SOLETRADER,Classified as 'personal data' (under the Data Protection Act 1998),131374
Portsmouth City Council,PCC,Children's and Education Services,Children Looked After,Children's Services and Education,Third Party Payments,Other establishments,13/12/18,6272955,2914.2,VENDOR,HORIZON CARE AND EDUCATION GROUP LTD,138450
Portsmouth City Council,PCC,Children's and Education Services,Asylum seekers,Children's Services and Education,Third Party Payments,Other establishments,13/12/18,6272955,1845.66,VENDOR,HORIZON CARE AND EDUCATION GROUP LTD,138450
Portsmouth City Council,PCC,Adult Social Care,Social Care Activities,Adult Services,Third Party Payments,Other establishments,11/12/18,6272184,1100,VENDOR,SAFEGUARDING GP,137636
Portsmouth City Council,PCC,Adult Social Care,Social Care Activities,Adult Services,Third Party Payments,Other establishments,11/12/18,6272184,1100,VENDOR,SAFEGUARDING GP,137636
Portsmouth City Council,PCC,Other,Suspense and Capital Schemes,Capital - Housing GF,Capital Charges,REFCUS,19/12/18,6274563,5353.28,VENDOR,WICOR BUILDING SERVICES LIMITED,144144
Portsmouth City Council,PCC,Support Service / Transparency Costs Unallocated,Legal Services,"HR, Legal, Audit & Performance",Income,Customer and client receipts,19/12/18,6274563,-40,VENDOR,WICOR BUILDING SERVICES LIMITED,144144
Portsmouth City Council,PCC,Housing Services,Private Sector Housing Renewal,"Housing, Neighbourhood and Building Services",Income,Other grants reimbursements and contributions,19/12/18,6274563,-474.4,VENDOR,WICOR BUILDING SERVICES LIMITED,144144
Portsmouth City Council,PCC,Other,Suspense and Capital Schemes,Capital - Housing GF,Capital Charges,REFCUS,19/12/18,6274563,6376.99,VENDOR,WICOR BUILDING SERVICES LIMITED,144144
Portsmouth City Council,PCC,Housing Services,Private Sector Housing Renewal,"Housing, Neighbourhood and Building Services",Income,Other grants reimbursements and contributions,19/12/18,6274563,-1124.16,VENDOR,WICOR BUILDING SERVICES LIMITED,144144
Portsmouth City Council,PCC,Adult Social Care,Social Care Activities,Adult Services,Third Party Payments,Other establishments,21/12/18,6275057,1100,VENDOR,SAFEGUARDING GP,137636
Portsmouth City Council,PCC,Adult Social Care,Learning Disability Support  Adults (18 - 64),Adult Services,Third Party Payments,Other establishments,12/12/18,6272805,3317.66,VENDOR,ROYAL MENCAP SOCIETY,102744
Portsmouth City Council,PCC,Adult Social Care,Learning Disability Support  Adults (18 - 64),Adult Services,Third Party Payments,Other establishments,12/12/18,6272805,125.4,VENDOR,ROYAL MENCAP SOCIETY,102744
Portsmouth City Council,PCC,Adult Social Care,Learning Disability Support  Adults (18 - 64),Adult Services,Third Party Payments,Other establishments,12/12/18,6272805,313.56,VENDOR,ROYAL MENCAP SOCIETY,102744
Portsmouth City Council,PCC,Adult Social Care,Learning Disability Support  Adults (18 - 64),Adult Services,Third Party Payments,Other establishments,12/12/18,6272805,438.96,VENDOR,ROYAL MENCAP SOCIETY,102744
Portsmouth City Council,PCC,Adult Social Care,Learning Disability Support  Adults (18 - 64),Adult Services,Third Party Payments,Other establishments,12/12/18,6272805,188.12,VENDOR,ROYAL MENCAP SOCIETY,102744
Portsmouth City Council,PCC,Adult Social Care,Learning Disability Support  Adults (18 - 64),Adult Services,Third Party Payments,Other establishments,12/12/18,6272805,877.92,VENDOR,ROYAL MENCAP SOCIETY,102744
Portsmouth City Council,PCC,Adult Social Care,Learning Disability Support  Adults (18 - 64),Adult Services,Third Party Payments,Other establishments,12/12/18,6272805,250.88,VENDOR,ROYAL MENCAP SOCIETY,102744
Portsmouth City Council,PCC,Adult Social Care,Learning Disability Support  Adults (18 - 64),Adult Services,Third Party Payments,Other establishments,12/12/18,6272805,250.84,VENDOR,ROYAL MENCAP SOCIETY,102744
Portsmouth City Council,PCC,Adult Social Care,Learning Disability Support  Adults (18 - 64),Adult Services,Third Party Payments,Other establishments,12/12/18,6272805,219.48,VENDOR,ROYAL MENCAP SOCIETY,102744
Portsmouth City Council,PCC,Adult Social Care,Learning Disability Support  Adults (18 - 64),Adult Services,Third Party Payments,Other establishments,12/12/18,6272805,501.72,VENDOR,ROYAL MENCAP SOCIETY,102744
Portsmouth City Council,PCC,Adult Social Care,Learning Disability Support  Adults (18 - 64),Adult Services,Third Party Payments,Other establishments,12/12/18,6272805,122.96,VENDOR,ROYAL MENCAP SOCIETY,102744
Portsmouth City Council,PCC,Adult Social Care,Learning Disability Support  Adults (18 - 64),Adult Services,Third Party Payments,Other establishments,12/12/18,6272805,125.4,VENDOR,ROYAL MENCAP SOCIETY,102744
Portsmouth City Council,PCC,Adult Social Care,Learning Disability Support  Adults (18 - 64),Adult Services,Third Party Payments,Other establishments,12/12/18,6272805,376.24,VENDOR,ROYAL MENCAP SOCIETY,102744
Portsmouth City Council,PCC,Adult Social Care,Learning Disability Support  Adults (18 - 64),Adult Services,Third Party Payments,Other establishments,12/12/18,6272805,188.16,VENDOR,ROYAL MENCAP SOCIETY,102744
Portsmouth City Council,PCC,Adult Social Care,Learning Disability Support  Adults (18 - 64),Adult Services,Third Party Payments,Other establishments,12/12/18,6272805,125.4,VENDOR,ROYAL MENCAP SOCIETY,102744
Portsmouth City Council,PCC,Adult Social Care,Learning Disability Support  Adults (18 - 64),Adult Services,Third Party Payments,Other establishments,12/12/18,6272805,250.84,VENDOR,ROYAL MENCAP SOCIETY,102744
Portsmouth City Council,PCC,Adult Social Care,Learning Disability Support  Adults (18 - 64),Adult Services,Third Party Payments,Other establishments,12/12/18,6272805,940.64,VENDOR,ROYAL MENCAP SOCIETY,102744
Portsmouth City Council,PCC,Adult Social Care,Learning Disability Support  Adults (18 - 64),Adult Services,Third Party Payments,Other establishments,12/12/18,6272805,878.08,VENDOR,ROYAL MENCAP SOCIETY,102744
Portsmouth City Council,PCC,Adult Social Care,Learning Disability Support  Adults (18 - 64),Adult Services,Third Party Payments,Other establishments,12/12/18,6272805,1128.24,VENDOR,ROYAL MENCAP SOCIETY,102744
Portsmouth City Council,PCC,Adult Social Care,Social Care Activities,Adult Services,Third Party Payments,Other establishments,12/12/18,6272805,9363.2,VENDOR,ROYAL MENCAP SOCIETY,102744
Portsmouth City Council,PCC,Adult Social Care,Social Care Activities,Adult Services,Third Party Payments,Other establishments,12/12/18,6272805,2779.4,VENDOR,ROYAL MENCAP SOCIETY,102744
Portsmouth City Council,PCC,Housing Revenue Account,Repairs and Maintenance,"Housing, Neighbourhood and Building Services",Premises-Related Expenditure,Energy costs,14/12/18,6273241,23.51,COMPANY,SSE PLC (SCOTTISH AND SOUTHERN ENERGY PLC),100303
Portsmouth City Council,PCC,Housing Revenue Account,Repairs and Maintenance,"Housing, Neighbourhood and Building Services",Premises-Related Expenditure,Energy costs,14/12/18,6273241,9.58,COMPANY,SSE PLC (SCOTTISH AND SOUTHERN ENERGY PLC),100303
Portsmouth City Council,PCC,Adult Social Care,Social Care Activities,Adult Services,Third Party Payments,Other establishments,21/12/18,6275057,1100,VENDOR,SAFEGUARDING GP,137636
Portsmouth City Council,PCC,Children's and Education Services,Other Education and Community Budget,Children's Services and Education,Transport-Related Expenditure,Car allowances,07/12/18,6271822,2420,VENDOR,CITY WIDE TAXIS,103408
Portsmouth City Council,PCC,Children's and Education Services,Other Education and Community Budget,Children's Services and Education,Transport-Related Expenditure,Car allowances,07/12/18,6271822,1200,VENDOR,CITY WIDE TAXIS,103408
Portsmouth City Council,PCC,Children's and Education Services,Other Education and Community Budget,Children's Services and Education,Transport-Related Expenditure,Car allowances,07/12/18,6271822,720,VENDOR,CITY WIDE TAXIS,103408
Portsmouth City Council,PCC,Children's and Education Services,Other Education and Community Budget,Children's Services and Education,Transport-Related Expenditure,Car allowances,07/12/18,6271822,1050,VENDOR,CITY WIDE TAXIS,103408
Portsmouth City Council,PCC,Children's and Education Services,Other Education and Community Budget,Children's Services and Education,Transport-Related Expenditure,Car allowances,07/12/18,6271822,880,VENDOR,CITY WIDE TAXIS,103408
Portsmouth City Council,PCC,Children's and Education Services,Other Education and Community Budget,Children's Services and Education,Transport-Related Expenditure,Car allowances,07/12/18,6271822,1430,VENDOR,CITY WIDE TAXIS,103408
Portsmouth City Council,PCC,Children's and Education Services,Other Education and Community Budget,Children's Services and Education,Transport-Related Expenditure,Car allowances,07/12/18,6271822,1302,VENDOR,CITY WIDE TAXIS,103408
Portsmouth City Council,PCC,Children's and Education Services,Other Education and Community Budget,Children's Services and Education,Transport-Related Expenditure,Car allowances,07/12/18,6271822,3150,VENDOR,CITY WIDE TAXIS,103408
Portsmouth City Council,PCC,Cultural and Related Services,Open Spaces,Culture & City Development,Supplies and Services,Services,06/12/18,6271753,1980,SOLETRADER,Classified as 'personal data' (under the Data Protection Act 1998),138813
Portsmouth City Council,PCC,Housing Services,Homelessness,"Housing, Neighbourhood and Building Services",Third Party Payments,Private contractors,14/12/18,6273145,175,SOLETRADER,Classified as 'personal data' (under the Data Protection Act 1998),116607
Portsmouth City Council,PCC,Public Health,Miscellaneous Public Services,Public Health,Employees,Direct employee expenses,21/12/18,6274879,765,SOLETRADER,Classified as 'personal data' (under the Data Protection Act 1998),144439
Portsmouth City Council,PCC,Adult Social Care,Physical Support Older People (85+),Adult Services,Third Party Payments,Other establishments,12/12/18,6272759,990,VENDOR,JSM DAYCENTRES LTD T/AS AS THE LODGE,144000
Portsmouth City Council,PCC,Adult Social Care,Physical Support Older People (85+),Adult Services,Third Party Payments,Other establishments,12/12/18,6272759,405,VENDOR,JSM DAYCENTRES LTD T/AS AS THE LODGE,144000
Portsmouth City Council,PCC,Adult Social Care,Physical Support Older People (85+),Adult Services,Third Party Payments,Other establishments,12/12/18,6272759,135,VENDOR,JSM DAYCENTRES LTD T/AS AS THE LODGE,144000
Portsmouth City Council,PCC,Adult Social Care,Physical Support Older People (85+),Adult Services,Third Party Payments,Other establishments,12/12/18,6272759,45,VENDOR,JSM DAYCENTRES LTD T/AS AS THE LODGE,144000
Portsmouth City Council,PCC,Other,Suspense and Capital Schemes,Capital - Housing GF,Capital Charges,REFCUS,19/12/18,6274498,2363.2,COMPANY,L DEVINE AND CO LIMITED,111002
Portsmouth City Council,PCC,Housing Services,Private Sector Housing Renewal,"Housing, Neighbourhood and Building Services",Income,Other grants reimbursements and contributions,19/12/18,6274498,-211,COMPANY,L DEVINE AND CO LIMITED,111002
Portsmouth City Council,PCC,Children's and Education Services,Children Looked After,Children's Services and Education,Supplies and Services,Services,05/12/18,6271578,128,VENDOR,HOME SCHOOL TUTORING,140194
Portsmouth City Council,PCC,Children's and Education Services,Children Looked After,Children's Services and Education,Supplies and Services,Services,31/12/18,6275686,224,VENDOR,HOME SCHOOL TUTORING,140194
Portsmouth City Council,PCC,Other,Suspense and Capital Schemes,Capital - Housing GF,Capital Charges,REFCUS,05/12/18,6271591,7574.56,COMPANY,L DEVINE AND CO LIMITED,111002
Portsmouth City Council,PCC,Housing Services,Private Sector Housing Renewal,"Housing, Neighbourhood and Building Services",Income,Other grants reimbursements and contributions,05/12/18,6271591,-676.3,COMPANY,L DEVINE AND CO LIMITED,111002
Portsmouth City Council,PCC,Adult Social Care,Physical Support Older People (85+),Adult Services,Third Party Payments,Other establishments,31/12/18,6275702,135,VENDOR,JSM DAYCENTRES LTD T/AS AS THE LODGE,144000
Portsmouth City Council,PCC,Children's and Education Services,Children Looked After,Children's Services and Education,Supplies and Services,Services,05/12/18,6271578,96,VENDOR,HOME SCHOOL TUTORING,140194
Portsmouth City Council,PCC,Adult Social Care,Physical Support Older People (85+),Adult Services,Third Party Payments,Other establishments,31/12/18,6275702,90,VENDOR,JSM DAYCENTRES LTD T/AS AS THE LODGE,144000
Portsmouth City Council,PCC,Children's and Education Services,Children Looked After,Children's Services and Education,Supplies and Services,Services,31/12/18,6275686,128,VENDOR,HOME SCHOOL TUTORING,140194
Portsmouth City Council,PCC,Children's and Education Services,Children Looked After,Children's Services and Education,Supplies and Services,Services,05/12/18,6271578,288,VENDOR,HOME SCHOOL TUTORING,140194
Portsmouth City Council,PCC,Children's and Education Services,Children Looked After,Children's Services and Education,Supplies and Services,Services,31/12/18,6275686,1152,VENDOR,HOME SCHOOL TUTORING,140194
Portsmouth City Council,PCC,Adult Social Care,Physical Support Older People (85+),Adult Services,Third Party Payments,Other establishments,31/12/18,6275702,225,VENDOR,JSM DAYCENTRES LTD T/AS AS THE LODGE,144000
Portsmouth City Council,PCC,Children's and Education Services,Children Looked After,Children's Services and Education,Supplies and Services,Services,05/12/18,6271578,192,VENDOR,HOME SCHOOL TUTORING,140194
Portsmouth City Council,PCC,Children's and Education Services,Children Looked After,Children's Services and Education,Supplies and Services,Services,31/12/18,6275686,224,VENDOR,HOME SCHOOL TUTORING,140194
Portsmouth City Council,PCC,Adult Social Care,Physical Support Older People (85+),Adult Services,Third Party Payments,Other establishments,31/12/18,6275702,675,VENDOR,JSM DAYCENTRES LTD T/AS AS THE LODGE,144000
Portsmouth City Council,PCC,Children's and Education Services,Children Looked After,Children's Services and Education,Supplies and Services,Services,05/12/18,6271578,64,VENDOR,HOME SCHOOL TUTORING,140194
Portsmouth City Council,PCC,Children's and Education Services,Children Looked After,Children's Services and Education,Supplies and Services,Services,31/12/18,6275686,160,VENDOR,HOME SCHOOL TUTORING,140194
Portsmouth City Council,PCC,Children's and Education Services,Children Looked After,Children's Services and Education,Supplies and Services,Services,05/12/18,6271578,96,VENDOR,HOME SCHOOL TUTORING,140194
Portsmouth City Council,PCC,Central Services,Coroners' Court Services,Culture & City Development,Supplies and Services,Services,21/12/18,6275035,451.9,SOLETRADER,Classified as 'personal data' (under the Data Protection Act 1998),140278
Portsmouth City Council,PCC,Adult Social Care,Learning Disability Support  Adults (18 - 64),Adult Services,Third Party Payments,Other establishments,07/12/18,6271883,855,SOLETRADER,Classified as 'personal data' (under the Data Protection Act 1998),107999
Portsmouth City Council,PCC,Central Services,Coroners' Court Services,Culture & City Development,Supplies and Services,Services,17/12/18,6273397,3480.5,SOLETRADER,Classified as 'personal data' (under the Data Protection Act 1998),140312
Portsmouth City Council,PCC,Children's and Education Services,Family Support Services,Children's Services and Education,Transport-Related Expenditure,Direct transport costs,03/12/18,6270812,332.7,VENDOR,AQUA CARS LIMITED,100011
Portsmouth City Council,PCC,Highways and Transport Services,"Airports, Harbours and Toll Facilities",Portsmouth International Port,Supplies and Services,Expenses,06/12/18,6271693,1290.36,VENDOR,COMPASS SERVICES UK & IRELAND LTD,103916
Portsmouth City Council,PCC,Children's and Education Services,Other Children and Family Services,Children's Services and Education,Supplies and Services,Services,04/12/18,6271071,1421.6,SOLETRADER,Classified as 'personal data' (under the Data Protection Act 1998),140665
Portsmouth City Council,PCC,Adult Social Care,Information and Early Intervention,Adult Services,Third Party Payments,Other establishments,31/12/18,6275561,20047.5,VENDOR,APETITO LTD,100127
Portsmouth City Council,PCC,Adult Social Care,Information and Early Intervention,Adult Services,Third Party Payments,Other establishments,31/12/18,6275561,1391,VENDOR,APETITO LTD,100127
Portsmouth City Council,PCC,Adult Social Care,Information and Early Intervention,Adult Services,Income,Customer and client receipts,31/12/18,6275561,-20047.5,VENDOR,APETITO LTD,100127
Portsmouth City Council,PCC,Adult Social Care,Information and Early Intervention,Adult Services,Income,Customer and client receipts,31/12/18,6275561,-1391,VENDOR,APETITO LTD,100127
Portsmouth City Council,PCC,Children's and Education Services,Children Looked After,Children's Services and Education,Supplies and Services,Services,05/12/18,6271578,160,VENDOR,HOME SCHOOL TUTORING,140194
Portsmouth City Council,PCC,Children's and Education Services,Other Children and Family Services,Children's Services and Education,Employees,Direct employee expenses,19/12/18,6274489,5000,COMPANY,HAYS SPECIALIST RECRUITMENT LIMITED,100045
Portsmouth City Council,PCC,Cultural and Related Services,Culture and Heritage,Culture & City Development,Supplies and Services,"Equipment, furniture and materials",21/12/18,6274777,523.34,VENDOR,BOXER,142799
Portsmouth City Council,PCC,Planning Services,Business support,Regeneration,Premises-Related Expenditure,"Repairs, alterations and maintenance of buildings",14/12/18,6273123,89,COMPANY,D & J MEADEN LIMITED,130022
Portsmouth City Council,PCC,Planning Services,Business support,Regeneration,Premises-Related Expenditure,"Repairs, alterations and maintenance of buildings",14/12/18,6273123,278,COMPANY,D & J MEADEN LIMITED,130022
Portsmouth City Council,PCC,Planning Services,Business support,Regeneration,Premises-Related Expenditure,"Repairs, alterations and maintenance of buildings",14/12/18,6273123,179,COMPANY,D & J MEADEN LIMITED,130022
Portsmouth City Council,PCC,Planning Services,Business support,Regeneration,Premises-Related Expenditure,"Repairs, alterations and maintenance of buildings",14/12/18,6273123,142,COMPANY,D & J MEADEN LIMITED,130022
Portsmouth City Council,PCC,Planning Services,Business support,Regeneration,Premises-Related Expenditure,"Repairs, alterations and maintenance of buildings",14/12/18,6273123,182,COMPANY,D & J MEADEN LIMITED,130022
Portsmouth City Council,PCC,Children's and Education Services,Family Support Services,Children's Services and Education,Third Party Payments,Other establishments,06/12/18,6271706,41.65,VENDOR,DAVID HOWARD LIMITED,141296
Portsmouth City Council,PCC,Adult Social Care,Physical Support Adults (18 - 64),Adult Services,Third Party Payments,Other establishments,06/12/18,6271706,1358.34,VENDOR,DAVID HOWARD LIMITED,141296
Portsmouth City Council,PCC,Children's and Education Services,Children Looked After,Children's Services and Education,Supplies and Services,Services,05/12/18,6271578,64,VENDOR,HOME SCHOOL TUTORING,140194
Portsmouth City Council,PCC,Adult Social Care,Learning Disability Support  Adults (18 - 64),Adult Services,Transport-Related Expenditure,Public transport,03/12/18,6270812,2218.3,VENDOR,AQUA CARS LIMITED,100011
Portsmouth City Council,PCC,Corporate and Democratic Core,Corporate Management,Community & Communication,Supplies and Services,"Printing, stationery and general office expenses",12/12/18,6272758,150.15,VENDOR,X JOHNSTON PUBLISHING LTD,100088
Portsmouth City Council,PCC,Children's and Education Services,Asylum seekers,Children's Services and Education,Third Party Payments,Other establishments,05/12/18,6271582,4079.46,VENDOR,INTEGRATED SERVICES PROGRAMME,136360
Portsmouth City Council,PCC,Support Service / Transparency Costs Unallocated,Personnel,"HR, Legal, Audit & Performance",Employees,Direct employee expenses,07/12/18,6271825,74162.6,VENDOR,COMENSURA LTD,140265
Portsmouth City Council,PCC,Support Service / Transparency Costs Unallocated,Information Services,Finance & IT,Supplies and Services,Communications and computing,31/12/18,6275592,1455.57,VENDOR,BYTES SECURITY PARTNERSHIP LTD,132113
Portsmouth City Council,PCC,Support Service / Transparency Costs Unallocated,Personnel,"HR, Legal, Audit & Performance",Employees,Direct employee expenses,14/12/18,6273078,80889.84,VENDOR,COMENSURA LTD,140265
Portsmouth City Council,PCC,Support Service / Transparency Costs Unallocated,Personnel,"HR, Legal, Audit & Performance",Employees,Direct employee expenses,21/12/18,6274808,60733.86,VENDOR,COMENSURA LTD,140265
Portsmouth City Council,PCC,Adult Social Care,Learning Disability Support  Adults (18 - 64),Adult Services,Transport-Related Expenditure,Public transport,10/12/18,6271940,2150.5,VENDOR,AQUA CARS LIMITED,100011
Portsmouth City Council,PCC,Support Service / Transparency Costs Unallocated,Personnel,"HR, Legal, Audit & Performance",Employees,Direct employee expenses,28/12/18,6275429,78319.73,VENDOR,COMENSURA LTD,140265
Portsmouth City Council,PCC,Children's and Education Services,Children Looked After,Children's Services and Education,Supplies and Services,Services,05/12/18,6271578,160,VENDOR,HOME SCHOOL TUTORING,140194
Portsmouth City Council,PCC,Children's and Education Services,Children Looked After,Children's Services and Education,Supplies and Services,Services,31/12/18,6275686,256,VENDOR,HOME SCHOOL TUTORING,140194
Portsmouth City Council,PCC,Adult Social Care,Learning Disability Support  Adults (18 - 64),Adult Services,Transport-Related Expenditure,Public transport,19/12/18,6274022,2004.2,VENDOR,AQUA CARS LIMITED,100011
Portsmouth City Council,PCC,Adult Social Care,Learning Disability Support  Adults (18 - 64),Adult Services,Transport-Related Expenditure,Public transport,21/12/18,6274748,2278.9,VENDOR,AQUA CARS LIMITED,100011
Portsmouth City Council,PCC,Children's and Education Services,Children Looked After,Children's Services and Education,Supplies and Services,Services,05/12/18,6271578,224,VENDOR,HOME SCHOOL TUTORING,140194
Portsmouth City Council,PCC,Children's and Education Services,Children Looked After,Children's Services and Education,Supplies and Services,Services,31/12/18,6275686,384,VENDOR,HOME SCHOOL TUTORING,140194
Portsmouth City Council,PCC,Corporate and Democratic Core,Democratic Representation and Management,Community & Communication,Transport-Related Expenditure,Direct transport costs,31/12/18,6275563,31.9,VENDOR,AQUA CARS LIMITED,100011
Portsmouth City Council,PCC,Cultural and Related Services,Culture and Heritage,Culture & City Development,Transport-Related Expenditure,Direct transport costs,31/12/18,6275563,7.8,VENDOR,AQUA CARS LIMITED,100011
Portsmouth City Council,PCC,Central Services,"Registration of Births, Deaths and Marriages",Culture & City Development,Transport-Related Expenditure,Direct transport costs,31/12/18,6275563,44.8,VENDOR,AQUA CARS LIMITED,100011
Portsmouth City Council,PCC,Other,Suspense and Capital Schemes,Capital - Traffic & Transportation,Capital Charges,Capital Expenditure (WIP),21/12/18,6275076,1858.93,COMPANY,SIEMENS PLC,106546
Portsmouth City Council,PCC,Other,Suspense and Capital Schemes,Capital - Traffic & Transportation,Capital Charges,Capital Expenditure (WIP),21/12/18,6275076,304.07,COMPANY,SIEMENS PLC,106546
Portsmouth City Council,PCC,Children's and Education Services,Other Children and Family Services,Children's Services and Education,Employees,Direct employee expenses,13/12/18,6272976,832,VENDOR,OPTIMUM SOCIAL CARE INITIATIVES LTD,144249
Portsmouth City Council,PCC,Children's and Education Services,Other Education and Community Budget,Regeneration,Transport-Related Expenditure,Direct transport costs,31/12/18,6275563,26.4,VENDOR,AQUA CARS LIMITED,100011
Portsmouth City Council,PCC,Housing Services,Homelessness,"Housing, Neighbourhood and Building Services",Transport-Related Expenditure,Direct transport costs,31/12/18,6275563,89.9,VENDOR,AQUA CARS LIMITED,100011
Portsmouth City Council,PCC,Housing Services,Homelessness,"Housing, Neighbourhood and Building Services",Third Party Payments,Private contractors,11/12/18,6272153,290,VENDOR,M J H REMOVALS LTD,105441
Portsmouth City Council,PCC,Other,Suspense and Capital Schemes,Capital - Resources,Capital Charges,Capital Expenditure (WIP),21/12/18,6274798,7051.21,COMPANY,CEI ELECTRICAL LTD,134197
Portsmouth City Council,PCC,Support Service / Transparency Costs Unallocated,Information Services,Finance & IT,Transport-Related Expenditure,Direct transport costs,31/12/18,6275563,416.6,VENDOR,AQUA CARS LIMITED,100011
Portsmouth City Council,PCC,Children's and Education Services,Other Education and Community Budget,Children's Services and Education,Supplies and Services,Miscellaneous expenses,19/12/18,6274016,593.41,VENDOR,A & J LAWRENCE LTD,141283
Portsmouth City Council,PCC,Costs below Net Cost of Services,Trading,Finance & IT,Supplies and Services,Miscellaneous expenses,12/12/18,6272225,137.18,VENDOR,A & J LAWRENCE LTD,141283
Portsmouth City Council,PCC,Housing Revenue Account,Special Services,"Housing, Neighbourhood and Building Services",Supplies and Services,Miscellaneous expenses,12/12/18,6272225,1500,VENDOR,A & J LAWRENCE LTD,141283
Portsmouth City Council,PCC,Highways and Transport Services,Traffic Management and Road Safety,Regeneration,Third Party Payments,Private contractors,27/12/18,6275270,500,COMPANY,CYCLE WORKS LTD,113048
Portsmouth City Council,PCC,Children's and Education Services,Children Looked After,Children's Services and Education,Transport-Related Expenditure,Direct transport costs,31/12/18,6275563,7986.2,VENDOR,AQUA CARS LIMITED,100011
Portsmouth City Council,PCC,Children's and Education Services,Family Support Services,Children's Services and Education,Transport-Related Expenditure,Direct transport costs,31/12/18,6275563,5.5,VENDOR,AQUA CARS LIMITED,100011
Portsmouth City Council,PCC,Cultural and Related Services,Culture and Heritage,Culture & City Development,Supplies and Services,"Equipment, furniture and materials",10/12/18,6272010,1067.62,VENDOR,HARPER COLLINS PUBLISHERS,102232
Portsmouth City Council,PCC,Children's and Education Services,Children Looked After,Children's Services and Education,Supplies and Services,Services,05/12/18,6271578,288,VENDOR,HOME SCHOOL TUTORING,140194
Portsmouth City Council,PCC,Children's and Education Services,Children Looked After,Children's Services and Education,Supplies and Services,Services,31/12/18,6275686,256,VENDOR,HOME SCHOOL TUTORING,140194
Portsmouth City Council,PCC,Support Service / Transparency Costs Unallocated,AMS,Regeneration,Employees,Direct employee expenses,17/12/18,6273437,2450,VENDOR,THE OYSTER PARTNERSHIP,120530
Portsmouth City Council,PCC,Support Service / Transparency Costs Unallocated,AMS,"Housing, Neighbourhood and Building Services",Supplies and Services,"Equipment, furniture and materials",12/12/18,6272842,1250,VENDOR,THE RECYCLED ASSETS COMPANY,139365
Portsmouth City Council,PCC,Support Service / Transparency Costs Unallocated,AMS,"Housing, Neighbourhood and Building Services",Supplies and Services,"Printing, stationery and general office expenses",12/12/18,6272842,25,VENDOR,THE RECYCLED ASSETS COMPANY,139365
Portsmouth City Council,PCC,Children's and Education Services,Children Looked After,Children's Services and Education,Transport-Related Expenditure,Direct transport costs,14/12/18,6273041,75.8,VENDOR,AQUA CARS LIMITED,100011
Portsmouth City Council,PCC,Children's and Education Services,Children Looked After,Children's Services and Education,Transport-Related Expenditure,Direct transport costs,14/12/18,6273041,95.1,VENDOR,AQUA CARS LIMITED,100011
Portsmouth City Council,PCC,Children's and Education Services,Children Looked After,Children's Services and Education,Supplies and Services,Services,31/12/18,6275686,256,VENDOR,HOME SCHOOL TUTORING,140194
Portsmouth City Council,PCC,Support Service / Transparency Costs Unallocated,AMS,"Housing, Neighbourhood and Building Services",Supplies and Services,"Equipment, furniture and materials",12/12/18,6272842,620.83,VENDOR,THE RECYCLED ASSETS COMPANY,139365
Portsmouth City Council,PCC,Children's and Education Services,Children Looked After,Children's Services and Education,Supplies and Services,Services,05/12/18,6271578,160,VENDOR,HOME SCHOOL TUTORING,140194
Portsmouth City Council,PCC,Children's and Education Services,Children Looked After,Children's Services and Education,Supplies and Services,Services,31/12/18,6275686,256,VENDOR,HOME SCHOOL TUTORING,140194
Portsmouth City Council,PCC,Children's and Education Services,Children Looked After,Children's Services and Education,Supplies and Services,Services,05/12/18,6271578,288,VENDOR,HOME SCHOOL TUTORING,140194
Portsmouth City Council,PCC,Children's and Education Services,Children Looked After,Children's Services and Education,Supplies and Services,Services,31/12/18,6275686,160,VENDOR,HOME SCHOOL TUTORING,140194
Portsmouth City Council,PCC,Children's and Education Services,Children Looked After,Children's Services and Education,Supplies and Services,Services,05/12/18,6271578,288,VENDOR,HOME SCHOOL TUTORING,140194
Portsmouth City Council,PCC,Children's and Education Services,Children Looked After,Children's Services and Education,Supplies and Services,Services,05/12/18,6271578,96,VENDOR,HOME SCHOOL TUTORING,140194
Portsmouth City Council,PCC,Children's and Education Services,Children Looked After,Children's Services and Education,Supplies and Services,Services,05/12/18,6271578,64,VENDOR,HOME SCHOOL TUTORING,140194
Portsmouth City Council,PCC,Children's and Education Services,Children Looked After,Children's Services and Education,Supplies and Services,Services,31/12/18,6275686,128,VENDOR,HOME SCHOOL TUTORING,140194
Portsmouth City Council,PCC,Children's and Education Services,Other Education and Community Budget,Children's Services and Education,Supplies and Services,Communications and computing,12/12/18,6272281,7822.08,VENDOR,CIVICA UK LTD,104001
Portsmouth City Council,PCC,Highways and Transport Services,Traffic Management and Road Safety,Regeneration,Supplies and Services,Communications and computing,10/12/18,6271955,432.86,VENDOR,CIVICA UK LTD,104001
Portsmouth City Council,PCC,Support Service / Transparency Costs Unallocated,Information Services,Finance & IT,Supplies and Services,Communications and computing,10/12/18,6271955,7790.4,VENDOR,CIVICA UK LTD,104001
Portsmouth City Council,PCC,Highways and Transport Services,"Airports, Harbours and Toll Facilities",Portsmouth International Port,Supplies and Services,Communications and computing,21/12/18,6274803,10682.95,VENDOR,CIVICA UK LTD,104001
Portsmouth City Council,PCC,Children's and Education Services,Other Education and Community Budget,Children's Services and Education,Supplies and Services,Communications and computing,19/12/18,6274046,24,VENDOR,CIVICA UK LTD,104001
Portsmouth City Council,PCC,Highways and Transport Services,"Transport Planning, Policy and Strategy",Regeneration,Supplies and Services,Communications and computing,19/12/18,6274046,432.86,VENDOR,CIVICA UK LTD,104001
Portsmouth City Council,PCC,Adult Social Care,Learning Disability Support  Adults (18 - 64),Adult Services,Transport-Related Expenditure,Public transport,31/12/18,6275563,2280.7,VENDOR,AQUA CARS LIMITED,100011
Portsmouth City Council,PCC,Adult Social Care,Learning Disability Support  Adults (18 - 64),Adult Services,Transport-Related Expenditure,Public transport,31/12/18,6275563,15.5,VENDOR,AQUA CARS LIMITED,100011
Portsmouth City Council,PCC,Corporate and Democratic Core,Corporate Management,Community & Communication,Supplies and Services,"Printing, stationery and general office expenses",12/12/18,6272758,128.7,VENDOR,X JOHNSTON PUBLISHING LTD,100088
Portsmouth City Council,PCC,Other,Suspense and Capital Schemes,Finance & IT,Transport-Related Expenditure,Contract hire and operating leases,07/12/18,6271927,1961.95,VENDOR,TUSKERDIRECT LIMITED,141146
Portsmouth City Council,PCC,Other,Suspense and Capital Schemes,Finance & IT,Supplies and Services,Miscellaneous expenses,07/12/18,6271927,563.17,VENDOR,TUSKERDIRECT LIMITED,141146
Portsmouth City Council,PCC,Other,Suspense and Capital Schemes,Finance & IT,Financing Costs,Interest Payments,07/12/18,6271927,4633.28,VENDOR,TUSKERDIRECT LIMITED,141146
Portsmouth City Council,PCC,Corporate and Democratic Core,Corporate Management,Community & Communication,Supplies and Services,"Printing, stationery and general office expenses",12/12/18,6272758,100.1,VENDOR,X JOHNSTON PUBLISHING LTD,100088
Portsmouth City Council,PCC,Corporate and Democratic Core,Corporate Management,Community & Communication,Supplies and Services,"Printing, stationery and general office expenses",12/12/18,6272758,128.7,VENDOR,X JOHNSTON PUBLISHING LTD,100088
Portsmouth City Council,PCC,Other,Suspense and Capital Schemes,Capital - PRED - Port,Capital Charges,Capital Expenditure (WIP),21/12/18,6275015,426,VENDOR,PHILSPACE LTD,108152
Portsmouth City Council,PCC,Corporate and Democratic Core,Corporate Management,Community & Communication,Supplies and Services,"Printing, stationery and general office expenses",12/12/18,6272758,271.7,VENDOR,X JOHNSTON PUBLISHING LTD,100088
Portsmouth City Council,PCC,Corporate and Democratic Core,Corporate Management,Community & Communication,Supplies and Services,"Printing, stationery and general office expenses",12/12/18,6272758,321.75,VENDOR,X JOHNSTON PUBLISHING LTD,100088
Portsmouth City Council,PCC,Housing Revenue Account,Supervision and Management,"Housing, Neighbourhood and Building Services",Premises-Related Expenditure,Water Services,12/12/18,6272319,465.4,VENDOR,ECEAU LTD,142965
Portsmouth City Council,PCC,Central Services,Coroners' Court Services,Culture & City Development,Supplies and Services,Services,17/12/18,6273397,1888.6,SOLETRADER,Classified as 'personal data' (under the Data Protection Act 1998),140312
Portsmouth City Council,PCC,Cultural and Related Services,Allocation of Management & Admin,Culture & City Development,Third Party Payments,Private contractors,07/12/18,6271819,2650,VENDOR,Classified as 'personal data' (under the Data Protection Act 1998),126209
Portsmouth City Council,PCC,Housing Revenue Account,Repairs and Maintenance,"Housing, Neighbourhood and Building Services",Premises-Related Expenditure,Energy costs,14/12/18,6273241,35.56,COMPANY,SSE PLC (SCOTTISH AND SOUTHERN ENERGY PLC),100303
Portsmouth City Council,PCC,Other,Suspense and Capital Schemes,Capital - Resources,Capital Charges,Capital Expenditure (WIP),21/12/18,6274797,40798.35,COMPANY,CEI ELECTRICAL LTD,134197
Portsmouth City Council,PCC,Children's and Education Services,Children Looked After,Children's Services and Education,Third Party Payments,Other establishments,28/12/18,6275475,5284.8,VENDOR,INTEGRATED SERVICES PROGRAMME,136360
Portsmouth City Council,PCC,Children's and Education Services,Children Looked After,Children's Services and Education,Third Party Payments,Other establishments,28/12/18,6275475,5284.8,VENDOR,INTEGRATED SERVICES PROGRAMME,136360
Portsmouth City Council,PCC,Children's and Education Services,Children Looked After,Children's Services and Education,Third Party Payments,Other establishments,28/12/18,6275475,5284.8,VENDOR,INTEGRATED SERVICES PROGRAMME,136360
Portsmouth City Council,PCC,Children's and Education Services,Asylum seekers,Children's Services and Education,Third Party Payments,Other establishments,28/12/18,6275475,5562.9,VENDOR,INTEGRATED SERVICES PROGRAMME,136360
Portsmouth City Council,PCC,Adult Social Care,Social Care Activities,Adult Services,Third Party Payments,Other establishments,27/12/18,6275371,2730,VENDOR,THE OUT OF TOWN CENTRE LIMITED,133198
Portsmouth City Council,PCC,Adult Social Care,Social Care Activities,Adult Services,Third Party Payments,Other establishments,27/12/18,6275371,5220,VENDOR,THE OUT OF TOWN CENTRE LIMITED,133198
Portsmouth City Council,PCC,Adult Social Care,Learning Disability Support  Adults (18 - 64),Adult Services,Third Party Payments,Other establishments,27/12/18,6275371,241.2,VENDOR,THE OUT OF TOWN CENTRE LIMITED,133198
Portsmouth City Council,PCC,Adult Social Care,Learning Disability Support  Adults (18 - 64),Adult Services,Third Party Payments,Other establishments,27/12/18,6275371,321.3,VENDOR,THE OUT OF TOWN CENTRE LIMITED,133198
Portsmouth City Council,PCC,Children's and Education Services,Children Looked After,Children's Services and Education,Third Party Payments,Other establishments,20/12/18,6274581,3240,VENDOR,BLUE SKY FOSTERING,119870
Portsmouth City Council,PCC,Costs below Net Cost of Services,Trading,Regeneration,Third Party Payments,Private contractors,06/12/18,6271783,1616,VENDOR,THE MINISTRY OF DEFENCE,114001
Portsmouth City Council,PCC,Children's and Education Services,Children Looked After,Children's Services and Education,Third Party Payments,Other establishments,13/12/18,6272896,3240,VENDOR,BLUE SKY FOSTERING,119870
Portsmouth City Council,PCC,Housing Services,Homelessness,"Housing, Neighbourhood and Building Services",Premises-Related Expenditure,Rents,21/12/18,6274966,3590.04,VENDOR,Classified as 'personal data' (under the Data Protection Act 1998),143986
Portsmouth City Council,PCC,Children's and Education Services,Safeguarding Children and Young Peoples Services,Children's Services and Education,Supplies and Services,Miscellaneous expenses,17/12/18,6273372,931.2,VENDOR,FREEDOM IOW LTD,110290
Portsmouth City Council,PCC,Housing Services,Homelessness,"Housing, Neighbourhood and Building Services",Third Party Payments,Private contractors,11/12/18,6272153,250,VENDOR,M J H REMOVALS LTD,105441
Portsmouth City Council,PCC,Other,Suspense and Capital Schemes,Capital - Housing RA,Capital Charges,Capital Expenditure (WIP),14/12/18,6273193,420,VENDOR,M J H REMOVALS LTD,105441
Portsmouth City Council,PCC,Other,Suspense and Capital Schemes,Capital - Housing RA,Capital Charges,Capital Expenditure (WIP),14/12/18,6273193,290,VENDOR,M J H REMOVALS LTD,105441
Portsmouth City Council,PCC,Other,Suspense and Capital Schemes,Capital - Housing RA,Capital Charges,Capital Expenditure (WIP),20/12/18,6274653,420,VENDOR,M J H REMOVALS LTD,105441
Portsmouth City Council,PCC,Other,Suspense and Capital Schemes,Capital - Housing RA,Capital Charges,Capital Expenditure (WIP),20/12/18,6274653,320,VENDOR,M J H REMOVALS LTD,105441
Portsmouth City Council,PCC,Adult Social Care,Support with Memory and Cognition Older People (65 - 74),Adult Services,Supplies and Services,"Equipment, furniture and materials",21/12/18,6274743,5197.8,COMPANY,ALLSOP AND FRANCIS LIMITED,118132
Portsmouth City Council,PCC,Other,Suspense and Capital Schemes,Capital - Housing RA,Capital Charges,Capital Expenditure (WIP),31/12/18,6275728,440,VENDOR,M J H REMOVALS LTD,105441
Portsmouth City Council,PCC,Other,Suspense and Capital Schemes,Capital - Housing RA,Capital Charges,Capital Expenditure (WIP),31/12/18,6275728,440,VENDOR,M J H REMOVALS LTD,105441
Portsmouth City Council,PCC,Central Services,Elections,Community & Communication,Supplies and Services,"Printing, stationery and general office expenses",17/12/18,6273371,587.79,VENDOR,FINANCIAL DATA MANANGEMENT PLC,102246
Portsmouth City Council,PCC,Central Services,Elections,Community & Communication,Supplies and Services,"Printing, stationery and general office expenses",17/12/18,6273371,2616.03,VENDOR,FINANCIAL DATA MANANGEMENT PLC,102246
Portsmouth City Council,PCC,Central Services,Elections,Community & Communication,Supplies and Services,"Printing, stationery and general office expenses",28/12/18,6275456,1619.19,VENDOR,FINANCIAL DATA MANANGEMENT PLC,102246
Portsmouth City Council,PCC,Planning Services,Business support,Regeneration,Premises-Related Expenditure,"Repairs, alterations and maintenance of buildings",11/12/18,6272193,20.16,VENDOR,SIX DEGREES TECHNOLOGY GROUP LTD,137034
Portsmouth City Council,PCC,Planning Services,Business support,Regeneration,Premises-Related Expenditure,"Repairs, alterations and maintenance of buildings",11/12/18,6272193,37.32,VENDOR,SIX DEGREES TECHNOLOGY GROUP LTD,137034
Portsmouth City Council,PCC,Cultural and Related Services,Recreation and Sport,Culture & City Development,Premises-Related Expenditure,"Repairs, alterations and maintenance of buildings",11/12/18,6272193,37.52,VENDOR,SIX DEGREES TECHNOLOGY GROUP LTD,137034
Portsmouth City Council,PCC,Support Service / Transparency Costs Unallocated,LLM,"Housing, Neighbourhood and Building Services",Premises-Related Expenditure,"Repairs, alterations and maintenance of buildings",11/12/18,6272193,18.66,VENDOR,SIX DEGREES TECHNOLOGY GROUP LTD,137034
Portsmouth City Council,PCC,Support Service / Transparency Costs Unallocated,LLM,"Housing, Neighbourhood and Building Services",Premises-Related Expenditure,"Repairs, alterations and maintenance of buildings",11/12/18,6272193,57.48,VENDOR,SIX DEGREES TECHNOLOGY GROUP LTD,137034
Portsmouth City Council,PCC,Support Service / Transparency Costs Unallocated,LLM,"Housing, Neighbourhood and Building Services",Premises-Related Expenditure,"Repairs, alterations and maintenance of buildings",11/12/18,6272193,18.71,VENDOR,SIX DEGREES TECHNOLOGY GROUP LTD,137034
Portsmouth City Council,PCC,Support Service / Transparency Costs Unallocated,LLM,"Housing, Neighbourhood and Building Services",Premises-Related Expenditure,"Repairs, alterations and maintenance of buildings",11/12/18,6272193,18.66,VENDOR,SIX DEGREES TECHNOLOGY GROUP LTD,137034
Portsmouth City Council,PCC,Support Service / Transparency Costs Unallocated,LLM,"Housing, Neighbourhood and Building Services",Premises-Related Expenditure,"Repairs, alterations and maintenance of buildings",11/12/18,6272193,18.66,VENDOR,SIX DEGREES TECHNOLOGY GROUP LTD,137034
Portsmouth City Council,PCC,Support Service / Transparency Costs Unallocated,LLM,"Housing, Neighbourhood and Building Services",Premises-Related Expenditure,"Repairs, alterations and maintenance of buildings",11/12/18,6272193,40.32,VENDOR,SIX DEGREES TECHNOLOGY GROUP LTD,137034
Portsmouth City Council,PCC,Support Service / Transparency Costs Unallocated,LLM,"Housing, Neighbourhood and Building Services",Premises-Related Expenditure,"Repairs, alterations and maintenance of buildings",11/12/18,6272193,40.32,VENDOR,SIX DEGREES TECHNOLOGY GROUP LTD,137034
Portsmouth City Council,PCC,Support Service / Transparency Costs Unallocated,LLM,"Housing, Neighbourhood and Building Services",Premises-Related Expenditure,"Repairs, alterations and maintenance of buildings",11/12/18,6272193,20.16,VENDOR,SIX DEGREES TECHNOLOGY GROUP LTD,137034
Portsmouth City Council,PCC,Support Service / Transparency Costs Unallocated,LLM,"Housing, Neighbourhood and Building Services",Premises-Related Expenditure,"Repairs, alterations and maintenance of buildings",11/12/18,6272193,20.16,VENDOR,SIX DEGREES TECHNOLOGY GROUP LTD,137034
Portsmouth City Council,PCC,Support Service / Transparency Costs Unallocated,LLM,"Housing, Neighbourhood and Building Services",Premises-Related Expenditure,"Repairs, alterations and maintenance of buildings",11/12/18,6272193,20.16,VENDOR,SIX DEGREES TECHNOLOGY GROUP LTD,137034
Portsmouth City Council,PCC,Support Service / Transparency Costs Unallocated,LLM,"Housing, Neighbourhood and Building Services",Premises-Related Expenditure,"Repairs, alterations and maintenance of buildings",11/12/18,6272193,18.66,VENDOR,SIX DEGREES TECHNOLOGY GROUP LTD,137034
Portsmouth City Council,PCC,Support Service / Transparency Costs Unallocated,LLM,"Housing, Neighbourhood and Building Services",Premises-Related Expenditure,"Repairs, alterations and maintenance of buildings",11/12/18,6272193,17.42,VENDOR,SIX DEGREES TECHNOLOGY GROUP LTD,137034
Portsmouth City Council,PCC,Support Service / Transparency Costs Unallocated,LLM,"Housing, Neighbourhood and Building Services",Premises-Related Expenditure,"Repairs, alterations and maintenance of buildings",11/12/18,6272193,18.66,VENDOR,SIX DEGREES TECHNOLOGY GROUP LTD,137034
Portsmouth City Council,PCC,Housing Revenue Account,Repairs and Maintenance,"Housing, Neighbourhood and Building Services",Premises-Related Expenditure,"Repairs, alterations and maintenance of buildings",11/12/18,6272193,1547.65,VENDOR,SIX DEGREES TECHNOLOGY GROUP LTD,137034
Portsmouth City Council,PCC,Children's and Education Services,Other Children and Family Services,Children's Services and Education,Supplies and Services,Services,05/12/18,6271601,450,SOLETRADER,Classified as 'personal data' (under the Data Protection Act 1998),118227
Portsmouth City Council,PCC,Cultural and Related Services,Open Spaces,Culture & City Development,Premises-Related Expenditure,Grounds maintenance costs,12/12/18,6272259,2781.52,VENDOR,BOVERTON NURSERIES LTD,140163
Portsmouth City Council,PCC,Children's and Education Services,Children Looked After,Children's Services and Education,Third Party Payments,Other establishments,31/12/18,6275575,17935.71,VENDOR,BARFORD CHILDRENS SERVICES LIMITED,143811
Portsmouth City Council,PCC,Other,Suspense and Capital Schemes,"Housing, Neighbourhood and Building Services",Third Party Payments,Private contractors,27/12/18,6275288,450000,OTHER LOCAL AUTHORITY,HAMPSHIRE COUNTY COUNCIL,100030
Portsmouth City Council,PCC,Children's and Education Services,Children Looked After,Children's Services and Education,Third Party Payments,Other establishments,10/12/18,6272035,869.75,VENDOR,PARENTS AND CHILDREN TOGETHER,129849
Portsmouth City Council,PCC,Children's and Education Services,Children Looked After,Children's Services and Education,Third Party Payments,Other establishments,10/12/18,6272035,869.75,VENDOR,PARENTS AND CHILDREN TOGETHER,129849
Portsmouth City Council,PCC,Adult Social Care,Social Care Activities,Adult Services,Premises-Related Expenditure,"Repairs, alterations and maintenance of buildings",14/12/18,6273034,4950,COMPANY,ALL ENGLAND FIRE STOPPING LIMITED,143053
Portsmouth City Council,PCC,Housing Services,Homelessness,"Housing, Neighbourhood and Building Services",Premises-Related Expenditure,Rents,21/12/18,6274806,1800,SOLETRADER,Classified as 'personal data' (under the Data Protection Act 1998),139708
Portsmouth City Council,PCC,Adult Social Care,Learning Disability Support  Adults (18 - 64),Adult Services,Third Party Payments,Other establishments,21/12/18,6274896,135,SOLETRADER,Classified as 'personal data' (under the Data Protection Act 1998),141627
Portsmouth City Council,PCC,Other,Suspense and Capital Schemes,Capital - Housing GF,Capital Charges,REFCUS,05/12/18,6271588,9500,VENDOR,KEMP BUILDERS,135362
Portsmouth City Council,PCC,Adult Social Care,Physical Support Older People (85+),Adult Services,Third Party Payments,Other establishments,07/12/18,6271794,1817.06,VENDOR,AGINCARE UK,134367
Portsmouth City Council,PCC,Adult Social Care,Physical Support Older People (85+),Adult Services,Third Party Payments,Other establishments,14/12/18,6273032,1817.06,VENDOR,AGINCARE UK,134367
Portsmouth City Council,PCC,Adult Social Care,Physical Support Older People (85+),Adult Services,Third Party Payments,Other establishments,28/12/18,6275393,1817.06,VENDOR,AGINCARE UK,134367
Portsmouth City Council,PCC,Housing Services,Private Sector Housing Renewal,"Housing, Neighbourhood and Building Services",Supplies and Services,Grants and subscriptions,27/12/18,6275298,-850,VENDOR,KEMP BUILDERS,135362
Portsmouth City Council,PCC,Housing Services,Private Sector Housing Renewal,"Housing, Neighbourhood and Building Services",Supplies and Services,Grants and subscriptions,27/12/18,6275298,442.26,VENDOR,KEMP BUILDERS,135362
Portsmouth City Council,PCC,Other,Suspense and Capital Schemes,Capital - Housing GF,Capital Charges,REFCUS,27/12/18,6275298,11500,VENDOR,KEMP BUILDERS,135362
Portsmouth City Council,PCC,Housing Services,Private Sector Housing Renewal,"Housing, Neighbourhood and Building Services",Income,Other grants reimbursements and contributions,27/12/18,6275298,-3506.88,VENDOR,KEMP BUILDERS,135362
Portsmouth City Council,PCC,Other,Suspense and Capital Schemes,Capital - Housing GF,Capital Charges,REFCUS,27/12/18,6275298,8107.53,VENDOR,KEMP BUILDERS,135362
Portsmouth City Council,PCC,Housing Services,Private Sector Housing Renewal,"Housing, Neighbourhood and Building Services",Income,Other grants reimbursements and contributions,27/12/18,6275298,-850.44,VENDOR,KEMP BUILDERS,135362
Portsmouth City Council,PCC,Public Health,NHS Health Check Programme,Public Health,Third Party Payments,Private contractors,11/12/18,6272136,440,VENDOR,HEALTH DIAGNOSTICS LIMITED,138472
Portsmouth City Council,PCC,Adult Social Care,Social Care Activities,Adult Services,Premises-Related Expenditure,"Repairs, alterations and maintenance of buildings",14/12/18,6273034,4950,COMPANY,ALL ENGLAND FIRE STOPPING LIMITED,143053
Portsmouth City Council,PCC,Highways and Transport Services,"Airports, Harbours and Toll Facilities",Portsmouth International Port,Premises-Related Expenditure,Rents,21/12/18,6274980,22781.25,COMPANY,NETWORK RAIL INFRASTRUCTURE LIMITED,106694
Portsmouth City Council,PCC,Adult Social Care,Social Care Activities,Adult Services,Premises-Related Expenditure,"Repairs, alterations and maintenance of buildings",27/12/18,6275192,4950,COMPANY,ALL ENGLAND FIRE STOPPING LIMITED,143053
Portsmouth City Council,PCC,Support Service / Transparency Costs Unallocated,AMS,Regeneration,Third Party Payments,Private contractors,14/12/18,6273136,4500,VENDOR,ECD ARCHITECTS LTD,136285
Portsmouth City Council,PCC,Highways and Transport Services,"Airports, Harbours and Toll Facilities",Portsmouth International Port,Transport-Related Expenditure,Direct transport costs,13/12/18,6272997,19559.55,VENDOR,SGS UNITED KINGDOM LTD,105507
Portsmouth City Council,PCC,Highways and Transport Services,"Airports, Harbours and Toll Facilities",Portsmouth International Port,Transport-Related Expenditure,Direct transport costs,21/12/18,6275073,18502.33,VENDOR,SGS UNITED KINGDOM LTD,105507
Portsmouth City Council,PCC,Adult Social Care,Social Care Activities,Adult Services,Premises-Related Expenditure,"Repairs, alterations and maintenance of buildings",28/12/18,6275394,4950,COMPANY,ALL ENGLAND FIRE STOPPING LIMITED,143053
Portsmouth City Council,PCC,Highways and Transport Services,Parking Services,Regeneration,Supplies and Services,"Printing, stationery and general office expenses",27/12/18,6275309,1197,VENDOR,MCAARP HOLDINGS T/A INTEGRITY PRINT LTD,144547
Portsmouth City Council,PCC,Highways and Transport Services,Parking Services,Regeneration,Supplies and Services,"Printing, stationery and general office expenses",27/12/18,6275309,1155,VENDOR,MCAARP HOLDINGS T/A INTEGRITY PRINT LTD,144547
Portsmouth City Council,PCC,Highways and Transport Services,Parking Services,Regeneration,Supplies and Services,"Printing, stationery and general office expenses",27/12/18,6275309,415,VENDOR,MCAARP HOLDINGS T/A INTEGRITY PRINT LTD,144547
Portsmouth City Council,PCC,Highways and Transport Services,Parking Services,Regeneration,Supplies and Services,"Printing, stationery and general office expenses",27/12/18,6275309,-46.2,VENDOR,MCAARP HOLDINGS T/A INTEGRITY PRINT LTD,144547
Portsmouth City Council,PCC,Highways and Transport Services,Parking Services,Regeneration,Supplies and Services,"Printing, stationery and general office expenses",27/12/18,6275309,-4.15,VENDOR,MCAARP HOLDINGS T/A INTEGRITY PRINT LTD,144547
Portsmouth City Council,PCC,Environmental and Regulatory Services,Regulatory Services,Culture & City Development,Employees,Direct employee expenses,05/12/18,6271627,170.64,VENDOR,RMC EMEA LIMITED,122070
Portsmouth City Council,PCC,Children's and Education Services,Other Children and Family Services,Children's Services and Education,Employees,Direct employee expenses,05/12/18,6271627,213.3,VENDOR,RMC EMEA LIMITED,122070
Portsmouth City Council,PCC,Children's and Education Services,Other Children and Family Services,Children's Services and Education,Employees,Direct employee expenses,05/12/18,6271627,85.32,VENDOR,RMC EMEA LIMITED,122070
Portsmouth City Council,PCC,Children's and Education Services,Other Children and Family Services,Children's Services and Education,Employees,Direct employee expenses,05/12/18,6271627,170.64,VENDOR,RMC EMEA LIMITED,122070
Portsmouth City Council,PCC,Housing Services,Housing Benefits Administration,Community & Communication,Employees,Direct employee expenses,05/12/18,6271627,213.33,VENDOR,RMC EMEA LIMITED,122070
Portsmouth City Council,PCC,Corporate and Democratic Core,Corporate Management,"HR, Legal, Audit & Performance",Employees,Direct employee expenses,05/12/18,6271627,42.66,VENDOR,RMC EMEA LIMITED,122070
Portsmouth City Council,PCC,Adult Social Care,Commissioning & service delivery,Adult Services,Employees,Direct employee expenses,05/12/18,6271627,85.32,VENDOR,RMC EMEA LIMITED,122070
Portsmouth City Council,PCC,Public Health,Public Health - Split Costing,Public Health,Employees,Direct employee expenses,05/12/18,6271627,127.98,VENDOR,RMC EMEA LIMITED,122070
Portsmouth City Council,PCC,Housing Revenue Account,Supervision and Management,"Housing, Neighbourhood and Building Services",Employees,Direct employee expenses,05/12/18,6271627,127.98,VENDOR,RMC EMEA LIMITED,122070
Portsmouth City Council,PCC,Support Service / Transparency Costs Unallocated,Personnel,"HR, Legal, Audit & Performance",Employees,Direct employee expenses,28/12/18,6275509,481.85,VENDOR,RMC EMEA LIMITED,122070
Portsmouth City Council,PCC,Support Service / Transparency Costs Unallocated,Personnel,"HR, Legal, Audit & Performance",Employees,Direct employee expenses,28/12/18,6275509,165.36,VENDOR,RMC EMEA LIMITED,122070
Portsmouth City Council,PCC,Other,Suspense and Capital Schemes,"HR, Legal, Audit & Performance",Employees,Direct employee expenses,28/12/18,6275509,733.4,VENDOR,RMC EMEA LIMITED,122070
Portsmouth City Council,PCC,Children's and Education Services,Other Children and Family Services,Children's Services and Education,Employees,Direct employee expenses,28/12/18,6275509,42.66,VENDOR,RMC EMEA LIMITED,122070
Portsmouth City Council,PCC,Children's and Education Services,Other Children and Family Services,Children's Services and Education,Employees,Direct employee expenses,28/12/18,6275509,42.66,VENDOR,RMC EMEA LIMITED,122070
Portsmouth City Council,PCC,Children's and Education Services,Other Children and Family Services,Children's Services and Education,Employees,Direct employee expenses,28/12/18,6275509,64,VENDOR,RMC EMEA LIMITED,122070
Portsmouth City Council,PCC,Children's and Education Services,Other Children and Family Services,Children's Services and Education,Employees,Direct employee expenses,28/12/18,6275509,64,VENDOR,RMC EMEA LIMITED,122070
Portsmouth City Council,PCC,Housing Services,Housing Benefits Administration,Community & Communication,Employees,Direct employee expenses,28/12/18,6275509,42.66,VENDOR,RMC EMEA LIMITED,122070
Portsmouth City Council,PCC,Support Service / Transparency Costs Unallocated,Financial Services,Finance & IT,Employees,Direct employee expenses,28/12/18,6275509,64,VENDOR,RMC EMEA LIMITED,122070
Portsmouth City Council,PCC,Support Service / Transparency Costs Unallocated,Personnel,"HR, Legal, Audit & Performance",Employees,Direct employee expenses,28/12/18,6275509,213.3,VENDOR,RMC EMEA LIMITED,122070
Portsmouth City Council,PCC,Cultural and Related Services,Tourism,Culture & City Development,Supplies and Services,"Equipment, furniture and materials",21/12/18,6275126,458,VENDOR,THE CONTINUUM GROUP LTD,117630
Portsmouth City Council,PCC,Highways and Transport Services,"Airports, Harbours and Toll Facilities",Portsmouth International Port,Premises-Related Expenditure,Cleaning and domestic supplies,21/12/18,6274986,8514.07,VENDOR,NVIRO LTD,124507
Portsmouth City Council,PCC,Highways and Transport Services,"Airports, Harbours and Toll Facilities",Portsmouth International Port,Premises-Related Expenditure,Cleaning and domestic supplies,21/12/18,6274986,8514.06,VENDOR,NVIRO LTD,124507
Portsmouth City Council,PCC,Highways and Transport Services,"Airports, Harbours and Toll Facilities",Portsmouth International Port,Premises-Related Expenditure,Cleaning and domestic supplies,21/12/18,6274986,2167,VENDOR,NVIRO LTD,124507
Portsmouth City Council,PCC,Highways and Transport Services,"Airports, Harbours and Toll Facilities",Portsmouth International Port,Premises-Related Expenditure,Cleaning and domestic supplies,21/12/18,6274986,183.53,VENDOR,NVIRO LTD,124507
Portsmouth City Council,PCC,Highways and Transport Services,"Airports, Harbours and Toll Facilities",Portsmouth International Port,Premises-Related Expenditure,Cleaning and domestic supplies,21/12/18,6274986,183.52,VENDOR,NVIRO LTD,124507
Portsmouth City Council,PCC,Corporate and Democratic Core,Corporate Management,Community & Communication,Supplies and Services,"Printing, stationery and general office expenses",17/12/18,6273452,114.4,VENDOR,X JOHNSTON PUBLISHING LTD,100088
Portsmouth City Council,PCC,Housing Services,Housing Strategy,"Housing, Neighbourhood and Building Services",Third Party Payments,Private contractors,27/12/18,6275376,1647.89,COMPANY,VEMCAST LTD,112168
Portsmouth City Council,PCC,Children's and Education Services,Family Support Services,Children's Services and Education,Third Party Payments,Private contractors,31/12/18,6275836,1643.03,VENDOR,THE ALARMING CO LTD,101350
Portsmouth City Council,PCC,Housing Revenue Account,Repairs and Maintenance,"Housing, Neighbourhood and Building Services",Supplies and Services,Services,04/12/18,6271048,450,SOLETRADER,Classified as 'personal data' (under the Data Protection Act 1998),121044
Portsmouth City Council,PCC,Cultural and Related Services,Allocation of Management & Admin,"Housing, Neighbourhood and Building Services",Supplies and Services,Catering,31/12/18,6275713,-10.17,VENDOR,LIME TREE FOODS LTD T/AS SANDWICH KING,143337
Portsmouth City Council,PCC,Adult Social Care,Support with Memory and Cognition Older People (65 - 74),Adult Services,Premises-Related Expenditure,Contributions to premises-related provisions,21/12/18,6275088,855,VENDOR,SOLENT SCALE SERVICES LIMITED,137942
Portsmouth City Council,PCC,Planning Services,Business support,Regeneration,Supplies and Services,"Equipment, furniture and materials",11/12/18,6272197,913.45,VENDOR,SPANDEX LIMITED,100163
Portsmouth City Council,PCC,Other,Suspense and Capital Schemes,Capital - Housing RA,Capital Charges,Capital Expenditure (WIP),10/12/18,6272000,550,VENDOR,ECOSUPPORT LTD,139549
Portsmouth City Council,PCC,Other,Suspense and Capital Schemes,Capital - Housing RA,Capital Charges,Capital Expenditure (WIP),10/12/18,6272000,200,VENDOR,ECOSUPPORT LTD,139549
Portsmouth City Council,PCC,Housing Services,Homelessness,"Housing, Neighbourhood and Building Services",Premises-Related Expenditure,Rents,21/12/18,6274999,1800,SOLETRADER,Classified as 'personal data' (under the Data Protection Act 1998),138874
Portsmouth City Council,PCC,Housing Services,Homelessness,"Housing, Neighbourhood and Building Services",Premises-Related Expenditure,Rents,21/12/18,6274927,2490,SOLETRADER,Classified as 'personal data' (under the Data Protection Act 1998),135979
Portsmouth City Council,PCC,Adult Social Care,Social Care Activities,Adult Services,Third Party Payments,Other establishments,21/12/18,6275061,189.57,VENDOR,SAFEGUARDING GP,137636
Portsmouth City Council,PCC,Adult Social Care,Social Care Activities,Adult Services,Third Party Payments,Other establishments,21/12/18,6275061,186.31,VENDOR,SAFEGUARDING GP,137636
Portsmouth City Council,PCC,Adult Social Care,Social Care Activities,Adult Services,Third Party Payments,Other establishments,21/12/18,6275061,186.31,VENDOR,SAFEGUARDING GP,137636
Portsmouth City Council,PCC,Adult Social Care,Physical Support Adults (18 - 64),Adult Services,Third Party Payments,Other establishments,18/12/18,6273455,425.36,VENDOR,APEX PROPERTY VENTURES LTD,108437
Portsmouth City Council,PCC,Adult Social Care,Commissioning & service delivery,Adult Services,Supplies and Services,Services,21/12/18,6274843,750,SOLETRADER,Classified as 'personal data' (under the Data Protection Act 1998),109217
Portsmouth City Council,PCC,Children's and Education Services,Other Children and Family Services,Children's Services and Education,Supplies and Services,Services,28/12/18,6275473,1000,SOLETRADER,Classified as 'personal data' (under the Data Protection Act 1998),134578
Portsmouth City Council,PCC,Children's and Education Services,Other Children and Family Services,Children's Services and Education,Supplies and Services,Services,05/12/18,6271606,500,SOLETRADER,Classified as 'personal data' (under the Data Protection Act 1998),118150
Portsmouth City Council,PCC,Children's and Education Services,Other Children and Family Services,Children's Services and Education,Supplies and Services,Services,05/12/18,6271606,500,SOLETRADER,Classified as 'personal data' (under the Data Protection Act 1998),118150
Portsmouth City Council,PCC,Children's and Education Services,Other Children and Family Services,Children's Services and Education,Supplies and Services,Services,05/12/18,6271606,600,SOLETRADER,Classified as 'personal data' (under the Data Protection Act 1998),118150
Portsmouth City Council,PCC,Adult Social Care,Commissioning & service delivery,Adult Services,Employees,Direct employee expenses,05/12/18,6271191,1500,VENDOR,DEMENTIA TRAINERS,134994
Portsmouth City Council,PCC,Adult Social Care,Commissioning & service delivery,Adult Services,Employees,Direct employee expenses,18/12/18,6273518,750,VENDOR,DEMENTIA TRAINERS,134994
Portsmouth City Council,PCC,Corporate and Democratic Core,Corporate Management,Community & Communication,Supplies and Services,"Printing, stationery and general office expenses",17/12/18,6273452,278.85,VENDOR,X JOHNSTON PUBLISHING LTD,100088
Portsmouth City Council,PCC,Environmental and Regulatory Services,Regulatory Services,Culture & City Development,Third Party Payments,Private contractors,07/12/18,6271793,515,VENDOR,ADAMS MOREY LTD,100446
Portsmouth City Council,PCC,Environmental and Regulatory Services,Regulatory Services,Culture & City Development,Third Party Payments,Private contractors,07/12/18,6271793,1620,VENDOR,ADAMS MOREY LTD,100446
Portsmouth City Council,PCC,Environmental and Regulatory Services,Regulatory Services,Culture & City Development,Third Party Payments,Private contractors,17/12/18,6273296,257.5,VENDOR,ADAMS MOREY LTD,100446
Portsmouth City Council,PCC,Environmental and Regulatory Services,Regulatory Services,Culture & City Development,Third Party Payments,Private contractors,17/12/18,6273296,945,VENDOR,ADAMS MOREY LTD,100446
Portsmouth City Council,PCC,Environmental and Regulatory Services,Regulatory Services,Culture & City Development,Third Party Payments,Private contractors,21/12/18,6274738,589,VENDOR,ADAMS MOREY LTD,100446
Portsmouth City Council,PCC,Environmental and Regulatory Services,Regulatory Services,Culture & City Development,Third Party Payments,Private contractors,21/12/18,6274738,1192.5,VENDOR,ADAMS MOREY LTD,100446
Portsmouth City Council,PCC,Children's and Education Services,Other Children and Family Services,Children's Services and Education,Supplies and Services,Services,04/12/18,6271027,500,SOLETRADER,Classified as 'personal data' (under the Data Protection Act 1998),107906
Portsmouth City Council,PCC,Children's and Education Services,Other Children and Family Services,Children's Services and Education,Supplies and Services,Services,21/12/18,6274983,600,SOLETRADER,Classified as 'personal data' (under the Data Protection Act 1998),118150
Portsmouth City Council,PCC,Highways and Transport Services,Parking Services,Regeneration,Supplies and Services,Communications and computing,21/12/18,6274786,21974.4,COMPANY,CALE ACCESS UK LTD,100591
Portsmouth City Council,PCC,Highways and Transport Services,Parking Services,Regeneration,Supplies and Services,Communications and computing,21/12/18,6274786,5493.6,COMPANY,CALE ACCESS UK LTD,100591
Portsmouth City Council,PCC,Other,Suspense and Capital Schemes,Capital - Housing RA,Capital Charges,Capital Expenditure (WIP),04/12/18,6271011,421.26,VENDOR,ELMHURST ENERGY SYSTEMS LTD,127591
Portsmouth City Council,PCC,Other,Suspense and Capital Schemes,Capital - Housing RA,Capital Charges,Capital Expenditure (WIP),04/12/18,6271011,174.72,VENDOR,ELMHURST ENERGY SYSTEMS LTD,127591
Portsmouth City Council,PCC,Highways and Transport Services,Parking Services,Regeneration,Supplies and Services,"Equipment, furniture and materials",21/12/18,6274786,501.2,COMPANY,CALE ACCESS UK LTD,100591
Portsmouth City Council,PCC,Highways and Transport Services,Parking Services,Regeneration,Supplies and Services,"Printing, stationery and general office expenses",21/12/18,6274786,16,COMPANY,CALE ACCESS UK LTD,100591
Portsmouth City Council,PCC,Highways and Transport Services,Parking Services,Regeneration,Supplies and Services,Communications and computing,21/12/18,6274786,-554.9,COMPANY,CALE ACCESS UK LTD,100591
Portsmouth City Council,PCC,Other,Suspense and Capital Schemes,Capital - Environment,Capital Charges,Capital Expenditure (WIP),10/12/18,6272012,527,VENDOR,HOLBROOKS PRINTERS LTD,100893
Portsmouth City Council,PCC,Corporate and Democratic Core,Corporate Management,Community & Communication,Supplies and Services,"Printing, stationery and general office expenses",18/12/18,6273531,2860,VENDOR,HOLBROOKS PRINTERS LTD,100893
Portsmouth City Council,PCC,Cultural and Related Services,Allocation of Management & Admin,Community & Communication,Supplies and Services,"Printing, stationery and general office expenses",21/12/18,6274907,12438,VENDOR,HOLBROOKS PRINTERS LTD,100893
Portsmouth City Council,PCC,Corporate and Democratic Core,Corporate Management,Community & Communication,Supplies and Services,"Printing, stationery and general office expenses",17/12/18,6273452,100.1,VENDOR,X JOHNSTON PUBLISHING LTD,100088
Portsmouth City Council,PCC,Highways and Transport Services,"Airports, Harbours and Toll Facilities",Portsmouth International Port,Transport-Related Expenditure,Direct transport costs,21/12/18,6275093,4334.1,VENDOR,SOUTHERN MARITIME SERVICES LIMITED,120765
Portsmouth City Council,PCC,Adult Social Care,Social Care Activities,Adult Services,Third Party Payments,Other establishments,21/12/18,6275059,3278.65,VENDOR,SAFEGUARDING GP,137636
Portsmouth City Council,PCC,Adult Social Care,Social Care Activities,Adult Services,Third Party Payments,Other establishments,11/12/18,6272182,261.38,VENDOR,SAFEGUARDING GP,137636
Portsmouth City Council,PCC,Cultural and Related Services,Recreation and Sport,Culture & City Development,Supplies and Services,"Equipment, furniture and materials",05/12/18,6271153,139,VENDOR,CMW EQUIPMENT HOLDINGS LTD,134444
Portsmouth City Council,PCC,Cultural and Related Services,Recreation and Sport,Culture & City Development,Supplies and Services,"Equipment, furniture and materials",05/12/18,6271153,139,VENDOR,CMW EQUIPMENT HOLDINGS LTD,134444
Portsmouth City Council,PCC,Cultural and Related Services,Recreation and Sport,Culture & City Development,Supplies and Services,"Equipment, furniture and materials",05/12/18,6271153,139,VENDOR,CMW EQUIPMENT HOLDINGS LTD,134444
Portsmouth City Council,PCC,Cultural and Related Services,Recreation and Sport,Culture & City Development,Supplies and Services,"Equipment, furniture and materials",05/12/18,6271153,184.5,VENDOR,CMW EQUIPMENT HOLDINGS LTD,134444
Portsmouth City Council,PCC,Cultural and Related Services,Recreation and Sport,Culture & City Development,Supplies and Services,"Equipment, furniture and materials",05/12/18,6271153,77,VENDOR,CMW EQUIPMENT HOLDINGS LTD,134444
Portsmouth City Council,PCC,Cultural and Related Services,Recreation and Sport,Culture & City Development,Supplies and Services,"Equipment, furniture and materials",05/12/18,6271153,130,VENDOR,CMW EQUIPMENT HOLDINGS LTD,134444
Portsmouth City Council,PCC,Cultural and Related Services,Recreation and Sport,Culture & City Development,Supplies and Services,"Equipment, furniture and materials",05/12/18,6271153,-20,VENDOR,CMW EQUIPMENT HOLDINGS LTD,134444
Portsmouth City Council,PCC,Cultural and Related Services,Recreation and Sport,Culture & City Development,Supplies and Services,"Equipment, furniture and materials",05/12/18,6271153,130,VENDOR,CMW EQUIPMENT HOLDINGS LTD,134444
Portsmouth City Council,PCC,Cultural and Related Services,Recreation and Sport,Culture & City Development,Supplies and Services,"Equipment, furniture and materials",05/12/18,6271153,-20,VENDOR,CMW EQUIPMENT HOLDINGS LTD,134444
Portsmouth City Council,PCC,Cultural and Related Services,Recreation and Sport,Culture & City Development,Supplies and Services,"Equipment, furniture and materials",05/12/18,6271153,195,VENDOR,CMW EQUIPMENT HOLDINGS LTD,134444
Portsmouth City Council,PCC,Cultural and Related Services,Recreation and Sport,Culture & City Development,Supplies and Services,"Equipment, furniture and materials",05/12/18,6271153,-30,VENDOR,CMW EQUIPMENT HOLDINGS LTD,134444
Portsmouth City Council,PCC,Cultural and Related Services,Recreation and Sport,Culture & City Development,Supplies and Services,"Equipment, furniture and materials",05/12/18,6271153,207,VENDOR,CMW EQUIPMENT HOLDINGS LTD,134444
Portsmouth City Council,PCC,Cultural and Related Services,Recreation and Sport,Culture & City Development,Supplies and Services,"Equipment, furniture and materials",05/12/18,6271153,89,VENDOR,CMW EQUIPMENT HOLDINGS LTD,134444
Portsmouth City Council,PCC,Adult Social Care,Physical Support Older People (85+),Adult Services,Third Party Payments,Other establishments,20/12/18,6274572,707.57,VENDOR,APEX PROPERTY VENTURES LTD,108437
Portsmouth City Council,PCC,Adult Social Care,Physical Support Older People (85+),Adult Services,Third Party Payments,Other establishments,18/12/18,6273455,1295.12,VENDOR,APEX PROPERTY VENTURES LTD,108437
Portsmouth City Council,PCC,Adult Social Care,Physical Support Older People (85+),Adult Services,Third Party Payments,Other establishments,18/12/18,6273455,98.16,VENDOR,APEX PROPERTY VENTURES LTD,108437
Portsmouth City Council,PCC,Adult Social Care,Physical Support Older People (85+),Adult Services,Third Party Payments,Other establishments,18/12/18,6273455,515.34,VENDOR,APEX PROPERTY VENTURES LTD,108437
Portsmouth City Council,PCC,Adult Social Care,Physical Support Older People (85+),Adult Services,Third Party Payments,Other establishments,18/12/18,6273455,65.44,VENDOR,APEX PROPERTY VENTURES LTD,108437
Portsmouth City Council,PCC,Housing Revenue Account,Special Services,"Housing, Neighbourhood and Building Services",Premises-Related Expenditure,"Repairs, alterations and maintenance of buildings",19/12/18,6274510,138.61,VENDOR,NETWORK SECURITY & ALARMS LTD,129167
Portsmouth City Council,PCC,Housing Revenue Account,Special Services,"Housing, Neighbourhood and Building Services",Premises-Related Expenditure,"Repairs, alterations and maintenance of buildings",19/12/18,6274510,376,VENDOR,NETWORK SECURITY & ALARMS LTD,129167
Portsmouth City Council,PCC,Corporate and Democratic Core,Corporate Management,Community & Communication,Supplies and Services,"Printing, stationery and general office expenses",17/12/18,6273452,214.5,VENDOR,X JOHNSTON PUBLISHING LTD,100088
Portsmouth City Council,PCC,Adult Social Care,Commissioning & service delivery,Adult Services,Supplies and Services,Communications and computing,31/12/18,6275756,51300,VENDOR,OXFORD COMPUTER CONSULTANTS LIMITED,127286
Portsmouth City Council,PCC,Adult Social Care,Commissioning & service delivery,Adult Services,Supplies and Services,Communications and computing,31/12/18,6275756,52000,VENDOR,OXFORD COMPUTER CONSULTANTS LIMITED,127286
Portsmouth City Council,PCC,Cultural and Related Services,Culture and Heritage,Culture & City Development,Supplies and Services,Communications and computing,07/12/18,6271879,560,VENDOR,MODES USERS ASSOCIATION,109046
Portsmouth City Council,PCC,Children's and Education Services,Children Looked After,Children's Services and Education,Third Party Payments,Other establishments,03/12/18,6270872,1700,VENDOR,FAMILY FUTURES CIC,106941
Portsmouth City Council,PCC,Children's and Education Services,Children Looked After,Children's Services and Education,Third Party Payments,Other establishments,03/12/18,6270872,6700,VENDOR,FAMILY FUTURES CIC,106941
Portsmouth City Council,PCC,Highways and Transport Services,Parking Services,Regeneration,Employees,Direct employee expenses,05/12/18,6271133,3260,VENDOR,ALPHA PARKING LIMITED,133516
Portsmouth City Council,PCC,Housing Services,Homelessness,"Housing, Neighbourhood and Building Services",Premises-Related Expenditure,Rents,21/12/18,6275066,1890,SOLETRADER,Classified as 'personal data' (under the Data Protection Act 1998),139696
Portsmouth City Council,PCC,Other,Suspense and Capital Schemes,Capital - Education,Capital Charges,Capital Expenditure (WIP),05/12/18,6271626,1650,VENDOR,RIDGE AND PARTNERS LLP,139659
Portsmouth City Council,PCC,Adult Social Care,Physical Support Older People (85+),Adult Services,Third Party Payments,Other establishments,20/12/18,6274572,801.64,VENDOR,APEX PROPERTY VENTURES LTD,108437
Portsmouth City Council,PCC,Children's and Education Services,Children Looked After,Children's Services and Education,Third Party Payments,Other establishments,13/12/18,6272896,3348,VENDOR,BLUE SKY FOSTERING,119870
Portsmouth City Council,PCC,Children's and Education Services,Children Looked After,Children's Services and Education,Third Party Payments,Other establishments,04/12/18,6270957,3371.96,VENDOR,BARNARDO SERVICES LTD,107155
Portsmouth City Council,PCC,Children's and Education Services,Children Looked After,Children's Services and Education,Third Party Payments,Other establishments,04/12/18,6270957,3376.24,VENDOR,BARNARDO SERVICES LTD,107155
Portsmouth City Council,PCC,Adult Social Care,Social Care Activities,Adult Services,Third Party Payments,Other establishments,05/12/18,6271605,5284.28,VENDOR,NIGHTINGALES GOLDEN CARE,103699
Portsmouth City Council,PCC,Adult Social Care,Social Care Activities,Adult Services,Third Party Payments,Other establishments,05/12/18,6271605,4122.72,VENDOR,NIGHTINGALES GOLDEN CARE,103699
Portsmouth City Council,PCC,Adult Social Care,Social Support - Support for Carer,Adult Services,Third Party Payments,Other establishments,05/12/18,6271605,337.92,VENDOR,NIGHTINGALES GOLDEN CARE,103699
Portsmouth City Council,PCC,Adult Social Care,Social Support - Support for Carer,Adult Services,Third Party Payments,Other establishments,05/12/18,6271605,281.6,VENDOR,NIGHTINGALES GOLDEN CARE,103699
Portsmouth City Council,PCC,Adult Social Care,Social Support - Support for Carer,Adult Services,Third Party Payments,Other establishments,05/12/18,6271605,267.52,VENDOR,NIGHTINGALES GOLDEN CARE,103699
Portsmouth City Council,PCC,Adult Social Care,Physical Support Older People (85+),Adult Services,Third Party Payments,Other establishments,05/12/18,6271605,295.68,VENDOR,NIGHTINGALES GOLDEN CARE,103699
Portsmouth City Council,PCC,Adult Social Care,Physical Support Older People (85+),Adult Services,Third Party Payments,Other establishments,05/12/18,6271605,136.06,VENDOR,NIGHTINGALES GOLDEN CARE,103699
Portsmouth City Council,PCC,Adult Social Care,Physical Support Older People (85+),Adult Services,Third Party Payments,Other establishments,05/12/18,6271605,499.52,VENDOR,NIGHTINGALES GOLDEN CARE,103699
Portsmouth City Council,PCC,Adult Social Care,Physical Support Older People (85+),Adult Services,Third Party Payments,Other establishments,05/12/18,6271605,805.73,VENDOR,NIGHTINGALES GOLDEN CARE,103699
Portsmouth City Council,PCC,Adult Social Care,Physical Support Older People (85+),Adult Services,Third Party Payments,Other establishments,05/12/18,6271605,2290.4,VENDOR,NIGHTINGALES GOLDEN CARE,103699
Portsmouth City Council,PCC,Adult Social Care,Social Care Activities,Adult Services,Third Party Payments,Other establishments,05/12/18,6271605,295.68,VENDOR,NIGHTINGALES GOLDEN CARE,103699
Portsmouth City Council,PCC,Adult Social Care,Learning Disability Support  Adults (18 - 64),Adult Services,Third Party Payments,Other establishments,05/12/18,6271605,736.2,VENDOR,NIGHTINGALES GOLDEN CARE,103699
Portsmouth City Council,PCC,Adult Social Care,Physical Support Older People (85+),Adult Services,Third Party Payments,Other establishments,05/12/18,6271605,1145.2,VENDOR,NIGHTINGALES GOLDEN CARE,103699
Portsmouth City Council,PCC,Adult Social Care,Physical Support Older People (85+),Adult Services,Third Party Payments,Other establishments,05/12/18,6271605,867.08,VENDOR,NIGHTINGALES GOLDEN CARE,103699
Portsmouth City Council,PCC,Adult Social Care,Physical Support Older People (85+),Adult Services,Third Party Payments,Other establishments,05/12/18,6271605,57.26,VENDOR,NIGHTINGALES GOLDEN CARE,103699
Portsmouth City Council,PCC,Adult Social Care,Physical Support Older People (85+),Adult Services,Third Party Payments,Other establishments,05/12/18,6271605,245.4,VENDOR,NIGHTINGALES GOLDEN CARE,103699
Portsmouth City Council,PCC,Adult Social Care,Physical Support Older People (85+),Adult Services,Third Party Payments,Other establishments,05/12/18,6271605,449.9,VENDOR,NIGHTINGALES GOLDEN CARE,103699
Portsmouth City Council,PCC,Adult Social Care,Physical Support Older People (85+),Adult Services,Third Party Payments,Other establishments,05/12/18,6271605,245.4,VENDOR,NIGHTINGALES GOLDEN CARE,103699
Portsmouth City Council,PCC,Adult Social Care,Physical Support Older People (85+),Adult Services,Third Party Payments,Other establishments,05/12/18,6271605,65.44,VENDOR,NIGHTINGALES GOLDEN CARE,103699
Portsmouth City Council,PCC,Adult Social Care,Physical Support Older People (85+),Adult Services,Third Party Payments,Other establishments,05/12/18,6271605,229.04,VENDOR,NIGHTINGALES GOLDEN CARE,103699
Portsmouth City Council,PCC,Adult Social Care,Physical Support Older People (85+),Adult Services,Third Party Payments,Other establishments,05/12/18,6271605,916.16,VENDOR,NIGHTINGALES GOLDEN CARE,103699
Portsmouth City Council,PCC,Adult Social Care,Physical Support Older People (85+),Adult Services,Third Party Payments,Other establishments,05/12/18,6271605,343.56,VENDOR,NIGHTINGALES GOLDEN CARE,103699
Portsmouth City Council,PCC,Adult Social Care,Physical Support Older People (85+),Adult Services,Third Party Payments,Other establishments,05/12/18,6271605,678.94,VENDOR,NIGHTINGALES GOLDEN CARE,103699
Portsmouth City Council,PCC,Adult Social Care,Physical Support Older People (85+),Adult Services,Third Party Payments,Other establishments,05/12/18,6271605,98.16,VENDOR,NIGHTINGALES GOLDEN CARE,103699
Portsmouth City Council,PCC,Adult Social Care,Physical Support Older People (85+),Adult Services,Third Party Payments,Other establishments,05/12/18,6271605,229.04,VENDOR,NIGHTINGALES GOLDEN CARE,103699
Portsmouth City Council,PCC,Adult Social Care,Physical Support Older People (85+),Adult Services,Third Party Payments,Other establishments,05/12/18,6271605,343.56,VENDOR,NIGHTINGALES GOLDEN CARE,103699
Portsmouth City Council,PCC,Adult Social Care,Physical Support Older People (85+),Adult Services,Third Party Payments,Other establishments,05/12/18,6271605,458.08,VENDOR,NIGHTINGALES GOLDEN CARE,103699
Portsmouth City Council,PCC,Adult Social Care,Physical Support Older People (85+),Adult Services,Third Party Payments,Other establishments,05/12/18,6271605,65.44,VENDOR,NIGHTINGALES GOLDEN CARE,103699
Portsmouth City Council,PCC,Adult Social Care,Physical Support Older People (85+),Adult Services,Third Party Payments,Other establishments,05/12/18,6271605,1603.28,VENDOR,NIGHTINGALES GOLDEN CARE,103699
Portsmouth City Council,PCC,Adult Social Care,Social Care Activities,Adult Services,Third Party Payments,Other establishments,05/12/18,6271605,168.96,VENDOR,NIGHTINGALES GOLDEN CARE,103699
Portsmouth City Council,PCC,Adult Social Care,Social Care Activities,Adult Services,Third Party Payments,Other establishments,05/12/18,6271605,84.48,VENDOR,NIGHTINGALES GOLDEN CARE,103699
Portsmouth City Council,PCC,Children's and Education Services,Other Children and Family Services,Children's Services and Education,Supplies and Services,Services,28/12/18,6275437,233.4,VENDOR,COURTNEY PSYCHIATRY LIMITED,137941
Portsmouth City Council,PCC,Adult Social Care,Physical Support Older People (85+),Adult Services,Third Party Payments,Other establishments,05/12/18,6271605,3190.2,VENDOR,NIGHTINGALES GOLDEN CARE,103699
Portsmouth City Council,PCC,Adult Social Care,Physical Support Older People (85+),Adult Services,Third Party Payments,Other establishments,05/12/18,6271605,449.9,VENDOR,NIGHTINGALES GOLDEN CARE,103699
Portsmouth City Council,PCC,Adult Social Care,Social Support - Support for Carer,Adult Services,Third Party Payments,Other establishments,05/12/18,6271605,168.96,VENDOR,NIGHTINGALES GOLDEN CARE,103699
Portsmouth City Council,PCC,Adult Social Care,Physical Support Older People (85+),Adult Services,Third Party Payments,Other establishments,05/12/18,6271605,981.6,VENDOR,NIGHTINGALES GOLDEN CARE,103699
Portsmouth City Council,PCC,Adult Social Care,Social Support - Support for Carer,Adult Services,Third Party Payments,Other establishments,05/12/18,6271605,112.64,VENDOR,NIGHTINGALES GOLDEN CARE,103699
Portsmouth City Council,PCC,Children's and Education Services,Other Children and Family Services,Children's Services and Education,Supplies and Services,Services,28/12/18,6275437,324,VENDOR,COURTNEY PSYCHIATRY LIMITED,137941
Portsmouth City Council,PCC,Adult Social Care,Physical Support Older People (85+),Adult Services,Third Party Payments,Other establishments,05/12/18,6271605,16.36,VENDOR,NIGHTINGALES GOLDEN CARE,103699
Portsmouth City Council,PCC,Adult Social Care,Physical Support Older People (85+),Adult Services,Third Party Payments,Other establishments,05/12/18,6271605,269.94,VENDOR,NIGHTINGALES GOLDEN CARE,103699
Portsmouth City Council,PCC,Adult Social Care,Physical Support Older People (85+),Adult Services,Third Party Payments,Other establishments,05/12/18,6271605,1079.76,VENDOR,NIGHTINGALES GOLDEN CARE,103699
Portsmouth City Council,PCC,Adult Social Care,Physical Support Older People (85+),Adult Services,Third Party Payments,Other establishments,05/12/18,6271605,891.62,VENDOR,NIGHTINGALES GOLDEN CARE,103699
Portsmouth City Council,PCC,Adult Social Care,Physical Support Older People (85+),Adult Services,Third Party Payments,Other establishments,05/12/18,6271605,490.8,VENDOR,NIGHTINGALES GOLDEN CARE,103699
Portsmouth City Council,PCC,Adult Social Care,Physical Support Older People (85+),Adult Services,Third Party Payments,Other establishments,05/12/18,6271605,339.47,VENDOR,NIGHTINGALES GOLDEN CARE,103699
Portsmouth City Council,PCC,Adult Social Care,Physical Support Older People (85+),Adult Services,Third Party Payments,Other establishments,05/12/18,6271605,662.58,VENDOR,NIGHTINGALES GOLDEN CARE,103699
Portsmouth City Council,PCC,Adult Social Care,Physical Support Older People (85+),Adult Services,Third Party Payments,Other establishments,05/12/18,6271605,56.32,VENDOR,NIGHTINGALES GOLDEN CARE,103699
Portsmouth City Council,PCC,Adult Social Care,Physical Support Older People (85+),Adult Services,Third Party Payments,Other establishments,05/12/18,6271605,196.32,VENDOR,NIGHTINGALES GOLDEN CARE,103699
Portsmouth City Council,PCC,Adult Social Care,Physical Support Older People (85+),Adult Services,Third Party Payments,Other establishments,05/12/18,6271605,834.36,VENDOR,NIGHTINGALES GOLDEN CARE,103699
Portsmouth City Council,PCC,Adult Social Care,Physical Support Older People (85+),Adult Services,Third Party Payments,Other establishments,05/12/18,6271605,229.04,VENDOR,NIGHTINGALES GOLDEN CARE,103699
Portsmouth City Council,PCC,Adult Social Care,Physical Support Older People (85+),Adult Services,Third Party Payments,Other establishments,10/12/18,6272032,879.35,VENDOR,NIGHTINGALES GOLDEN CARE,103699
Portsmouth City Council,PCC,Adult Social Care,Physical Support Adults (18 - 64),Adult Services,Third Party Payments,Other establishments,05/12/18,6271605,163.6,VENDOR,NIGHTINGALES GOLDEN CARE,103699
Portsmouth City Council,PCC,Corporate and Democratic Core,Corporate Management,Community & Communication,Supplies and Services,"Printing, stationery and general office expenses",17/12/18,6273452,150.15,VENDOR,X JOHNSTON PUBLISHING LTD,100088
Portsmouth City Council,PCC,Adult Social Care,Physical Support Older People (65-74),Adult Services,Third Party Payments,Other establishments,21/12/18,6275134,3356.76,VENDOR,THE PORTSMOUTH SITTING SERVICE AND COMMUNITY CARE SERVICES LTD T/A ASSURED CARE,100201
Portsmouth City Council,PCC,Adult Social Care,Physical Support Older People (85+),Adult Services,Third Party Payments,Other establishments,21/12/18,6275134,451.03,VENDOR,THE PORTSMOUTH SITTING SERVICE AND COMMUNITY CARE SERVICES LTD T/A ASSURED CARE,100201
Portsmouth City Council,PCC,Adult Social Care,Physical Support Older People (85+),Adult Services,Third Party Payments,Other establishments,21/12/18,6275134,147.24,VENDOR,THE PORTSMOUTH SITTING SERVICE AND COMMUNITY CARE SERVICES LTD T/A ASSURED CARE,100201
Portsmouth City Council,PCC,Adult Social Care,Physical Support Older People (85+),Adult Services,Third Party Payments,Other establishments,21/12/18,6275134,147.24,VENDOR,THE PORTSMOUTH SITTING SERVICE AND COMMUNITY CARE SERVICES LTD T/A ASSURED CARE,100201
Portsmouth City Council,PCC,Adult Social Care,Physical Support Older People (85+),Adult Services,Third Party Payments,Other establishments,14/12/18,6273265,32.72,VENDOR,THE PORTSMOUTH SITTING SERVICE AND COMMUNITY CARE SERVICES LTD T/A ASSURED CARE,100201
Portsmouth City Council,PCC,Adult Social Care,Social Support - Support for Carer,Adult Services,Third Party Payments,Other establishments,14/12/18,6273265,318.88,VENDOR,THE PORTSMOUTH SITTING SERVICE AND COMMUNITY CARE SERVICES LTD T/A ASSURED CARE,100201
Portsmouth City Council,PCC,Housing Revenue Account,Special Services,"Housing, Neighbourhood and Building Services",Employees,Direct employee expenses,19/12/18,6274551,3553.76,VENDOR,THE PORTSMOUTH SITTING SERVICE AND COMMUNITY CARE SERVICES LTD T/A ASSURED CARE,100201
Portsmouth City Council,PCC,Adult Social Care,Social Care Activities,Adult Services,Third Party Payments,Other establishments,19/12/18,6274551,253.44,VENDOR,THE PORTSMOUTH SITTING SERVICE AND COMMUNITY CARE SERVICES LTD T/A ASSURED CARE,100201
Portsmouth City Council,PCC,Adult Social Care,Social Care Activities,Adult Services,Third Party Payments,Other establishments,19/12/18,6274551,245.4,VENDOR,THE PORTSMOUTH SITTING SERVICE AND COMMUNITY CARE SERVICES LTD T/A ASSURED CARE,100201
Portsmouth City Council,PCC,Adult Social Care,Social Support - Support for Carer,Adult Services,Third Party Payments,Other establishments,19/12/18,6274551,168.96,VENDOR,THE PORTSMOUTH SITTING SERVICE AND COMMUNITY CARE SERVICES LTD T/A ASSURED CARE,100201
Portsmouth City Council,PCC,Adult Social Care,Social Support - Support for Carer,Adult Services,Third Party Payments,Other establishments,19/12/18,6274551,35.2,VENDOR,THE PORTSMOUTH SITTING SERVICE AND COMMUNITY CARE SERVICES LTD T/A ASSURED CARE,100201
Portsmouth City Council,PCC,Adult Social Care,Physical Support Older People (85+),Adult Services,Third Party Payments,Other establishments,19/12/18,6274551,309.76,VENDOR,THE PORTSMOUTH SITTING SERVICE AND COMMUNITY CARE SERVICES LTD T/A ASSURED CARE,100201
Portsmouth City Council,PCC,Adult Social Care,Physical Support Older People (85+),Adult Services,Third Party Payments,Other establishments,19/12/18,6274551,21.12,VENDOR,THE PORTSMOUTH SITTING SERVICE AND COMMUNITY CARE SERVICES LTD T/A ASSURED CARE,100201
Portsmouth City Council,PCC,Adult Social Care,Social Support - Support for Carer,Adult Services,Third Party Payments,Other establishments,19/12/18,6274551,337.92,VENDOR,THE PORTSMOUTH SITTING SERVICE AND COMMUNITY CARE SERVICES LTD T/A ASSURED CARE,100201
Portsmouth City Council,PCC,Adult Social Care,Social Support - Support for Carer,Adult Services,Third Party Payments,Other establishments,14/12/18,6273265,323.84,VENDOR,THE PORTSMOUTH SITTING SERVICE AND COMMUNITY CARE SERVICES LTD T/A ASSURED CARE,100201
Portsmouth City Council,PCC,Adult Social Care,Social Support - Support for Carer,Adult Services,Third Party Payments,Other establishments,19/12/18,6274551,281.6,VENDOR,THE PORTSMOUTH SITTING SERVICE AND COMMUNITY CARE SERVICES LTD T/A ASSURED CARE,100201
Portsmouth City Council,PCC,Adult Social Care,Social Care Activities,Adult Services,Third Party Payments,Other establishments,31/12/18,6275747,5218.84,VENDOR,NIGHTINGALES GOLDEN CARE,103699
Portsmouth City Council,PCC,Adult Social Care,Social Care Activities,Adult Services,Third Party Payments,Other establishments,31/12/18,6275747,4122.72,VENDOR,NIGHTINGALES GOLDEN CARE,103699
Portsmouth City Council,PCC,Adult Social Care,Physical Support Adults (18 - 64),Adult Services,Third Party Payments,Other establishments,19/12/18,6274551,568.51,VENDOR,THE PORTSMOUTH SITTING SERVICE AND COMMUNITY CARE SERVICES LTD T/A ASSURED CARE,100201
Portsmouth City Council,PCC,Adult Social Care,Social Support - Support for Carer,Adult Services,Third Party Payments,Other establishments,31/12/18,6275747,337.92,VENDOR,NIGHTINGALES GOLDEN CARE,103699
Portsmouth City Council,PCC,Adult Social Care,Physical Support Older People (85+),Adult Services,Third Party Payments,Other establishments,19/12/18,6274551,687.12,VENDOR,THE PORTSMOUTH SITTING SERVICE AND COMMUNITY CARE SERVICES LTD T/A ASSURED CARE,100201
Portsmouth City Council,PCC,Adult Social Care,Social Support - Support for Carer,Adult Services,Third Party Payments,Other establishments,19/12/18,6274551,337.92,VENDOR,THE PORTSMOUTH SITTING SERVICE AND COMMUNITY CARE SERVICES LTD T/A ASSURED CARE,100201
Portsmouth City Council,PCC,Adult Social Care,Social Support - Support for Carer,Adult Services,Third Party Payments,Other establishments,31/12/18,6275747,281.6,VENDOR,NIGHTINGALES GOLDEN CARE,103699
Portsmouth City Council,PCC,Adult Social Care,Social Support - Support for Carer,Adult Services,Third Party Payments,Other establishments,19/12/18,6274551,168.96,VENDOR,THE PORTSMOUTH SITTING SERVICE AND COMMUNITY CARE SERVICES LTD T/A ASSURED CARE,100201
Portsmouth City Council,PCC,Adult Social Care,Social Support - Support for Carer,Adult Services,Third Party Payments,Other establishments,31/12/18,6275747,281.6,VENDOR,NIGHTINGALES GOLDEN CARE,103699
Portsmouth City Council,PCC,Adult Social Care,Social Support - Support for Carer,Adult Services,Third Party Payments,Other establishments,19/12/18,6274551,28.16,VENDOR,THE PORTSMOUTH SITTING SERVICE AND COMMUNITY CARE SERVICES LTD T/A ASSURED CARE,100201
Portsmouth City Council,PCC,Adult Social Care,Physical Support Older People (85+),Adult Services,Third Party Payments,Other establishments,31/12/18,6275747,337.92,VENDOR,NIGHTINGALES GOLDEN CARE,103699
Portsmouth City Council,PCC,Adult Social Care,Physical Support Older People (85+),Adult Services,Third Party Payments,Other establishments,19/12/18,6274551,155.42,VENDOR,THE PORTSMOUTH SITTING SERVICE AND COMMUNITY CARE SERVICES LTD T/A ASSURED CARE,100201
Portsmouth City Council,PCC,Adult Social Care,Physical Support Older People (85+),Adult Services,Third Party Payments,Other establishments,31/12/18,6275747,822.09,VENDOR,NIGHTINGALES GOLDEN CARE,103699
Portsmouth City Council,PCC,Adult Social Care,Physical Support Older People (85+),Adult Services,Third Party Payments,Other establishments,19/12/18,6274551,670.76,VENDOR,THE PORTSMOUTH SITTING SERVICE AND COMMUNITY CARE SERVICES LTD T/A ASSURED CARE,100201
Portsmouth City Council,PCC,Adult Social Care,Physical Support Older People (85+),Adult Services,Third Party Payments,Other establishments,19/12/18,6274551,112.64,VENDOR,THE PORTSMOUTH SITTING SERVICE AND COMMUNITY CARE SERVICES LTD T/A ASSURED CARE,100201
Portsmouth City Council,PCC,Adult Social Care,Social Care Activities,Adult Services,Third Party Payments,Other establishments,31/12/18,6275747,253.44,VENDOR,NIGHTINGALES GOLDEN CARE,103699
Portsmouth City Council,PCC,Adult Social Care,Physical Support Older People (85+),Adult Services,Third Party Payments,Other establishments,19/12/18,6274551,687.12,VENDOR,THE PORTSMOUTH SITTING SERVICE AND COMMUNITY CARE SERVICES LTD T/A ASSURED CARE,100201
Portsmouth City Council,PCC,Adult Social Care,Physical Support Older People (85+),Adult Services,Third Party Payments,Other establishments,31/12/18,6275747,2290.4,VENDOR,NIGHTINGALES GOLDEN CARE,103699
Portsmouth City Council,PCC,Adult Social Care,Physical Support Older People (85+),Adult Services,Third Party Payments,Other establishments,19/12/18,6274551,1112.48,VENDOR,THE PORTSMOUTH SITTING SERVICE AND COMMUNITY CARE SERVICES LTD T/A ASSURED CARE,100201
Portsmouth City Council,PCC,Adult Social Care,Learning Disability Support  Adults (18 - 64),Adult Services,Third Party Payments,Other establishments,31/12/18,6275747,588.96,VENDOR,NIGHTINGALES GOLDEN CARE,103699
Portsmouth City Council,PCC,Adult Social Care,Physical Support Older People (85+),Adult Services,Third Party Payments,Other establishments,19/12/18,6274551,359.92,VENDOR,THE PORTSMOUTH SITTING SERVICE AND COMMUNITY CARE SERVICES LTD T/A ASSURED CARE,100201
Portsmouth City Council,PCC,Adult Social Care,Physical Support Older People (85+),Adult Services,Third Party Payments,Other establishments,19/12/18,6274551,147.24,VENDOR,THE PORTSMOUTH SITTING SERVICE AND COMMUNITY CARE SERVICES LTD T/A ASSURED CARE,100201
Portsmouth City Council,PCC,Adult Social Care,Physical Support Older People (85+),Adult Services,Third Party Payments,Other establishments,31/12/18,6275747,707.57,VENDOR,NIGHTINGALES GOLDEN CARE,103699
Portsmouth City Council,PCC,Adult Social Care,Physical Support Older People (85+),Adult Services,Third Party Payments,Other establishments,19/12/18,6274551,16.36,VENDOR,THE PORTSMOUTH SITTING SERVICE AND COMMUNITY CARE SERVICES LTD T/A ASSURED CARE,100201
Portsmouth City Council,PCC,Adult Social Care,Social Support - Support for Carer,Adult Services,Third Party Payments,Other establishments,19/12/18,6274551,297.76,VENDOR,THE PORTSMOUTH SITTING SERVICE AND COMMUNITY CARE SERVICES LTD T/A ASSURED CARE,100201
Portsmouth City Council,PCC,Adult Social Care,Physical Support Older People (85+),Adult Services,Third Party Payments,Other establishments,31/12/18,6275747,687.12,VENDOR,NIGHTINGALES GOLDEN CARE,103699
Portsmouth City Council,PCC,Adult Social Care,Physical Support Older People (85+),Adult Services,Third Party Payments,Other establishments,19/12/18,6274551,343.56,VENDOR,THE PORTSMOUTH SITTING SERVICE AND COMMUNITY CARE SERVICES LTD T/A ASSURED CARE,100201
Portsmouth City Council,PCC,Adult Social Care,Physical Support Older People (85+),Adult Services,Third Party Payments,Other establishments,31/12/18,6275747,245.4,VENDOR,NIGHTINGALES GOLDEN CARE,103699
Portsmouth City Council,PCC,Adult Social Care,Physical Support Older People (85+),Adult Services,Third Party Payments,Other establishments,19/12/18,6274551,458.08,VENDOR,THE PORTSMOUTH SITTING SERVICE AND COMMUNITY CARE SERVICES LTD T/A ASSURED CARE,100201
Portsmouth City Council,PCC,Adult Social Care,Physical Support Older People (85+),Adult Services,Third Party Payments,Other establishments,31/12/18,6275747,458.08,VENDOR,NIGHTINGALES GOLDEN CARE,103699
Portsmouth City Council,PCC,Adult Social Care,Physical Support Older People (85+),Adult Services,Third Party Payments,Other establishments,19/12/18,6274551,343.56,VENDOR,THE PORTSMOUTH SITTING SERVICE AND COMMUNITY CARE SERVICES LTD T/A ASSURED CARE,100201
Portsmouth City Council,PCC,Adult Social Care,Physical Support Older People (85+),Adult Services,Third Party Payments,Other establishments,31/12/18,6275747,245.4,VENDOR,NIGHTINGALES GOLDEN CARE,103699
Portsmouth City Council,PCC,Adult Social Care,Social Support - Support for Carer,Adult Services,Third Party Payments,Other establishments,19/12/18,6274551,126.72,VENDOR,THE PORTSMOUTH SITTING SERVICE AND COMMUNITY CARE SERVICES LTD T/A ASSURED CARE,100201
Portsmouth City Council,PCC,Adult Social Care,Physical Support Older People (85+),Adult Services,Third Party Payments,Other establishments,31/12/18,6275747,65.44,VENDOR,NIGHTINGALES GOLDEN CARE,103699
Portsmouth City Council,PCC,Adult Social Care,Physical Support Older People (85+),Adult Services,Third Party Payments,Other establishments,19/12/18,6274551,773.01,VENDOR,THE PORTSMOUTH SITTING SERVICE AND COMMUNITY CARE SERVICES LTD T/A ASSURED CARE,100201
Portsmouth City Council,PCC,Adult Social Care,Physical Support Older People (85+),Adult Services,Third Party Payments,Other establishments,31/12/18,6275747,229.04,VENDOR,NIGHTINGALES GOLDEN CARE,103699
Portsmouth City Council,PCC,Adult Social Care,Social Support - Support for Carer,Adult Services,Third Party Payments,Other establishments,19/12/18,6274551,168.96,VENDOR,THE PORTSMOUTH SITTING SERVICE AND COMMUNITY CARE SERVICES LTD T/A ASSURED CARE,100201
Portsmouth City Council,PCC,Adult Social Care,Physical Support Older People (85+),Adult Services,Third Party Payments,Other establishments,31/12/18,6275747,916.16,VENDOR,NIGHTINGALES GOLDEN CARE,103699
Portsmouth City Council,PCC,Adult Social Care,Social Support - Support for Carer,Adult Services,Third Party Payments,Other establishments,19/12/18,6274551,56.32,VENDOR,THE PORTSMOUTH SITTING SERVICE AND COMMUNITY CARE SERVICES LTD T/A ASSURED CARE,100201
Portsmouth City Council,PCC,Adult Social Care,Social Care Activities,Adult Services,Third Party Payments,Other establishments,11/12/18,6272081,1128.84,VENDOR,APEX PROPERTY VENTURES LTD,108437
Portsmouth City Council,PCC,Adult Social Care,Social Care Activities,Adult Services,Third Party Payments,Other establishments,11/12/18,6272081,84.48,VENDOR,APEX PROPERTY VENTURES LTD,108437
Portsmouth City Council,PCC,Adult Social Care,Physical Support Older People (85+),Adult Services,Third Party Payments,Other establishments,10/12/18,6271937,229.04,VENDOR,APEX PROPERTY VENTURES LTD,108437
Portsmouth City Council,PCC,Adult Social Care,Physical Support Older People (85+),Adult Services,Third Party Payments,Other establishments,31/12/18,6275747,343.56,VENDOR,NIGHTINGALES GOLDEN CARE,103699
Portsmouth City Council,PCC,Adult Social Care,Physical Support Older People (85+),Adult Services,Third Party Payments,Other establishments,19/12/18,6274551,32.72,VENDOR,THE PORTSMOUTH SITTING SERVICE AND COMMUNITY CARE SERVICES LTD T/A ASSURED CARE,100201
Portsmouth City Council,PCC,Adult Social Care,Social Care Activities,Adult Services,Third Party Payments,Other establishments,10/12/18,6271937,10580.83,VENDOR,APEX PROPERTY VENTURES LTD,108437
Portsmouth City Council,PCC,Adult Social Care,Social Care Activities,Adult Services,Third Party Payments,Other establishments,10/12/18,6271937,687.12,VENDOR,APEX PROPERTY VENTURES LTD,108437
Portsmouth City Council,PCC,Adult Social Care,Physical Support Older People (85+),Adult Services,Third Party Payments,Other establishments,10/12/18,6271937,53.17,VENDOR,APEX PROPERTY VENTURES LTD,108437
Portsmouth City Council,PCC,Adult Social Care,Social Care Activities,Adult Services,Third Party Payments,Other establishments,10/12/18,6271937,2290.4,VENDOR,APEX PROPERTY VENTURES LTD,108437
Portsmouth City Council,PCC,Adult Social Care,Physical Support Older People (85+),Adult Services,Third Party Payments,Other establishments,10/12/18,6271937,147.24,VENDOR,APEX PROPERTY VENTURES LTD,108437
Portsmouth City Council,PCC,Adult Social Care,Physical Support Adults (18 - 64),Adult Services,Third Party Payments,Other establishments,10/12/18,6271937,196.32,VENDOR,APEX PROPERTY VENTURES LTD,108437
Portsmouth City Council,PCC,Adult Social Care,Physical Support Older People (85+),Adult Services,Third Party Payments,Other establishments,10/12/18,6271937,666.67,VENDOR,APEX PROPERTY VENTURES LTD,108437
Portsmouth City Council,PCC,Adult Social Care,Physical Support Older People (85+),Adult Services,Third Party Payments,Other establishments,10/12/18,6271937,2290.4,VENDOR,APEX PROPERTY VENTURES LTD,108437
Portsmouth City Council,PCC,Adult Social Care,Physical Support Older People (85+),Adult Services,Third Party Payments,Other establishments,20/12/18,6274572,797.55,VENDOR,APEX PROPERTY VENTURES LTD,108437
Portsmouth City Council,PCC,Adult Social Care,Physical Support Older People (85+),Adult Services,Third Party Payments,Other establishments,10/12/18,6271937,364.01,VENDOR,APEX PROPERTY VENTURES LTD,108437
Portsmouth City Council,PCC,Adult Social Care,Physical Support Older People (85+),Adult Services,Third Party Payments,Other establishments,31/12/18,6275747,687.12,VENDOR,NIGHTINGALES GOLDEN CARE,103699
Portsmouth City Council,PCC,Adult Social Care,Physical Support Older People (85+),Adult Services,Third Party Payments,Other establishments,10/12/18,6271937,331.29,VENDOR,APEX PROPERTY VENTURES LTD,108437
Portsmouth City Council,PCC,Adult Social Care,Physical Support Older People (85+),Adult Services,Third Party Payments,Other establishments,19/12/18,6274020,294.48,VENDOR,APEX PROPERTY VENTURES LTD,108437
Portsmouth City Council,PCC,Adult Social Care,Physical Support Older People (85+),Adult Services,Third Party Payments,Other establishments,19/12/18,6274020,179.96,VENDOR,APEX PROPERTY VENTURES LTD,108437
Portsmouth City Council,PCC,Adult Social Care,Physical Support Adults (18 - 64),Adult Services,Third Party Payments,Other establishments,10/12/18,6271937,903.89,VENDOR,APEX PROPERTY VENTURES LTD,108437
Portsmouth City Council,PCC,Adult Social Care,Physical Support Older People (85+),Adult Services,Third Party Payments,Other establishments,10/12/18,6271937,343.56,VENDOR,APEX PROPERTY VENTURES LTD,108437
Portsmouth City Council,PCC,Adult Social Care,Physical Support Older People (85+),Adult Services,Third Party Payments,Other establishments,10/12/18,6271937,32.72,VENDOR,APEX PROPERTY VENTURES LTD,108437
Portsmouth City Council,PCC,Adult Social Care,Mental Health Support Older People (65 - 74),Adult Services,Third Party Payments,Other establishments,10/12/18,6271937,789.37,VENDOR,APEX PROPERTY VENTURES LTD,108437
Portsmouth City Council,PCC,Adult Social Care,Physical Support Older People (85+),Adult Services,Third Party Payments,Other establishments,10/12/18,6271937,576.69,VENDOR,APEX PROPERTY VENTURES LTD,108437
Portsmouth City Council,PCC,Adult Social Care,Physical Support Older People (85+),Adult Services,Third Party Payments,Other establishments,19/12/18,6274020,65.44,VENDOR,APEX PROPERTY VENTURES LTD,108437
Portsmouth City Council,PCC,Adult Social Care,Physical Support Older People (85+),Adult Services,Third Party Payments,Other establishments,19/12/18,6274020,49.08,VENDOR,APEX PROPERTY VENTURES LTD,108437
Portsmouth City Council,PCC,Adult Social Care,Physical Support Older People (85+),Adult Services,Third Party Payments,Other establishments,10/12/18,6271937,229.04,VENDOR,APEX PROPERTY VENTURES LTD,108437
Portsmouth City Council,PCC,Adult Social Care,Physical Support Older People (85+),Adult Services,Third Party Payments,Other establishments,31/12/18,6275747,98.16,VENDOR,NIGHTINGALES GOLDEN CARE,103699
Portsmouth City Council,PCC,Adult Social Care,Social Support - Support for Carer,Adult Services,Third Party Payments,Other establishments,19/12/18,6274551,42.24,VENDOR,THE PORTSMOUTH SITTING SERVICE AND COMMUNITY CARE SERVICES LTD T/A ASSURED CARE,100201
Portsmouth City Council,PCC,Adult Social Care,Physical Support Older People (85+),Adult Services,Third Party Payments,Other establishments,10/12/18,6271937,687.12,VENDOR,APEX PROPERTY VENTURES LTD,108437
Portsmouth City Council,PCC,Adult Social Care,Physical Support Older People (85+),Adult Services,Third Party Payments,Other establishments,10/12/18,6271937,458.08,VENDOR,APEX PROPERTY VENTURES LTD,108437
Portsmouth City Council,PCC,Adult Social Care,Physical Support Older People (85+),Adult Services,Third Party Payments,Other establishments,10/12/18,6271937,2061.36,VENDOR,APEX PROPERTY VENTURES LTD,108437
Portsmouth City Council,PCC,Adult Social Care,Physical Support Older People (85+),Adult Services,Third Party Payments,Other establishments,10/12/18,6271937,1832.32,VENDOR,APEX PROPERTY VENTURES LTD,108437
Portsmouth City Council,PCC,Adult Social Care,Physical Support Older People (85+),Adult Services,Third Party Payments,Other establishments,10/12/18,6271937,229.04,VENDOR,APEX PROPERTY VENTURES LTD,108437
Portsmouth City Council,PCC,Adult Social Care,Physical Support Older People (85+),Adult Services,Third Party Payments,Other establishments,10/12/18,6271937,687.12,VENDOR,APEX PROPERTY VENTURES LTD,108437
Portsmouth City Council,PCC,Adult Social Care,Social Support - Support for Carer,Adult Services,Third Party Payments,Other establishments,10/12/18,6271937,56.32,VENDOR,APEX PROPERTY VENTURES LTD,108437
Portsmouth City Council,PCC,Adult Social Care,Physical Support Older People (85+),Adult Services,Third Party Payments,Other establishments,10/12/18,6271937,2061.36,VENDOR,APEX PROPERTY VENTURES LTD,108437
Portsmouth City Council,PCC,Adult Social Care,Physical Support Older People (85+),Adult Services,Third Party Payments,Other establishments,10/12/18,6271937,229.04,VENDOR,APEX PROPERTY VENTURES LTD,108437
Portsmouth City Council,PCC,Adult Social Care,Physical Support Older People (85+),Adult Services,Third Party Payments,Other establishments,10/12/18,6271937,65.44,VENDOR,APEX PROPERTY VENTURES LTD,108437
Portsmouth City Council,PCC,Adult Social Care,Physical Support Older People (85+),Adult Services,Third Party Payments,Other establishments,10/12/18,6271937,114.52,VENDOR,APEX PROPERTY VENTURES LTD,108437
Portsmouth City Council,PCC,Adult Social Care,Physical Support Older People (85+),Adult Services,Third Party Payments,Other establishments,10/12/18,6271937,1832.32,VENDOR,APEX PROPERTY VENTURES LTD,108437
Portsmouth City Council,PCC,Adult Social Care,Physical Support Older People (85+),Adult Services,Third Party Payments,Other establishments,31/12/18,6275747,458.08,VENDOR,NIGHTINGALES GOLDEN CARE,103699
Portsmouth City Council,PCC,Adult Social Care,Social Support - Support for Carer,Adult Services,Third Party Payments,Other establishments,19/12/18,6274551,56.32,VENDOR,THE PORTSMOUTH SITTING SERVICE AND COMMUNITY CARE SERVICES LTD T/A ASSURED CARE,100201
Portsmouth City Council,PCC,Adult Social Care,Social Support - Support for Carer,Adult Services,Third Party Payments,Other establishments,19/12/18,6274551,42.24,VENDOR,THE PORTSMOUTH SITTING SERVICE AND COMMUNITY CARE SERVICES LTD T/A ASSURED CARE,100201
Portsmouth City Council,PCC,Adult Social Care,Physical Support Adults (18 - 64),Adult Services,Third Party Payments,Other establishments,10/12/18,6271937,343.56,VENDOR,APEX PROPERTY VENTURES LTD,108437
Portsmouth City Council,PCC,Adult Social Care,Physical Support Older People (85+),Adult Services,Third Party Payments,Other establishments,10/12/18,6271937,114.52,VENDOR,APEX PROPERTY VENTURES LTD,108437
Portsmouth City Council,PCC,Adult Social Care,Physical Support Older People (85+),Adult Services,Third Party Payments,Other establishments,10/12/18,6271937,916.16,VENDOR,APEX PROPERTY VENTURES LTD,108437
Portsmouth City Council,PCC,Adult Social Care,Physical Support Older People (85+),Adult Services,Third Party Payments,Other establishments,10/12/18,6271937,703.48,VENDOR,APEX PROPERTY VENTURES LTD,108437
Portsmouth City Council,PCC,Adult Social Care,Physical Support Older People (85+),Adult Services,Third Party Payments,Other establishments,10/12/18,6271937,670.76,VENDOR,APEX PROPERTY VENTURES LTD,108437
Portsmouth City Council,PCC,Adult Social Care,Physical Support Older People (85+),Adult Services,Third Party Payments,Other establishments,10/12/18,6271937,437.63,VENDOR,APEX PROPERTY VENTURES LTD,108437
Portsmouth City Council,PCC,Adult Social Care,Physical Support Older People (85+),Adult Services,Third Party Payments,Other establishments,10/12/18,6271937,98.16,VENDOR,APEX PROPERTY VENTURES LTD,108437
Portsmouth City Council,PCC,Adult Social Care,Physical Support Older People (85+),Adult Services,Third Party Payments,Other establishments,10/12/18,6271937,1439.68,VENDOR,APEX PROPERTY VENTURES LTD,108437
Portsmouth City Council,PCC,Adult Social Care,Physical Support Older People (85+),Adult Services,Third Party Payments,Other establishments,10/12/18,6271937,196.32,VENDOR,APEX PROPERTY VENTURES LTD,108437
Portsmouth City Council,PCC,Adult Social Care,Physical Support Older People (85+),Adult Services,Third Party Payments,Other establishments,31/12/18,6275747,458.08,VENDOR,NIGHTINGALES GOLDEN CARE,103699
Portsmouth City Council,PCC,Adult Social Care,Physical Support Older People (85+),Adult Services,Third Party Payments,Other establishments,19/12/18,6274551,801.64,VENDOR,THE PORTSMOUTH SITTING SERVICE AND COMMUNITY CARE SERVICES LTD T/A ASSURED CARE,100201
Portsmouth City Council,PCC,Adult Social Care,Physical Support Older People (85+),Adult Services,Third Party Payments,Other establishments,19/12/18,6274020,32.72,VENDOR,APEX PROPERTY VENTURES LTD,108437
Portsmouth City Council,PCC,Adult Social Care,Physical Support Older People (85+),Adult Services,Third Party Payments,Other establishments,19/12/18,6274020,73.62,VENDOR,APEX PROPERTY VENTURES LTD,108437
Portsmouth City Council,PCC,Adult Social Care,Physical Support Older People (85+),Adult Services,Third Party Payments,Other establishments,10/12/18,6271937,466.26,VENDOR,APEX PROPERTY VENTURES LTD,108437
Portsmouth City Council,PCC,Adult Social Care,Physical Support Older People (85+),Adult Services,Third Party Payments,Other establishments,10/12/18,6271937,470.35,VENDOR,APEX PROPERTY VENTURES LTD,108437
Portsmouth City Council,PCC,Adult Social Care,Physical Support Older People (85+),Adult Services,Third Party Payments,Other establishments,10/12/18,6271937,687.12,VENDOR,APEX PROPERTY VENTURES LTD,108437
Portsmouth City Council,PCC,Adult Social Care,Learning Disability Support  Adults (18 - 64),Adult Services,Third Party Payments,Other establishments,10/12/18,6271937,1047.04,VENDOR,APEX PROPERTY VENTURES LTD,108437
Portsmouth City Council,PCC,Adult Social Care,Physical Support Older People (85+),Adult Services,Third Party Payments,Other establishments,10/12/18,6271937,458.08,VENDOR,APEX PROPERTY VENTURES LTD,108437
Portsmouth City Council,PCC,Adult Social Care,Physical Support Older People (85+),Adult Services,Third Party Payments,Other establishments,10/12/18,6271937,122.7,VENDOR,APEX PROPERTY VENTURES LTD,108437
Portsmouth City Council,PCC,Adult Social Care,Physical Support Older People (85+),Adult Services,Third Party Payments,Other establishments,10/12/18,6271937,683.03,VENDOR,APEX PROPERTY VENTURES LTD,108437
Portsmouth City Council,PCC,Adult Social Care,Physical Support Older People (85+),Adult Services,Third Party Payments,Other establishments,10/12/18,6271937,801.64,VENDOR,APEX PROPERTY VENTURES LTD,108437
Portsmouth City Council,PCC,Adult Social Care,Physical Support Older People (85+),Adult Services,Third Party Payments,Other establishments,10/12/18,6271937,1145.2,VENDOR,APEX PROPERTY VENTURES LTD,108437
Portsmouth City Council,PCC,Adult Social Care,Social Support - Support for Carer,Adult Services,Third Party Payments,Other establishments,10/12/18,6271937,225.28,VENDOR,APEX PROPERTY VENTURES LTD,108437
Portsmouth City Council,PCC,Adult Social Care,Physical Support Older People (85+),Adult Services,Third Party Payments,Other establishments,31/12/18,6275747,65.44,VENDOR,NIGHTINGALES GOLDEN CARE,103699
Portsmouth City Council,PCC,Adult Social Care,Physical Support Older People (85+),Adult Services,Third Party Payments,Other establishments,19/12/18,6274551,65.44,VENDOR,THE PORTSMOUTH SITTING SERVICE AND COMMUNITY CARE SERVICES LTD T/A ASSURED CARE,100201
Portsmouth City Council,PCC,Adult Social Care,Physical Support Older People (85+),Adult Services,Third Party Payments,Other establishments,10/12/18,6271937,65.44,VENDOR,APEX PROPERTY VENTURES LTD,108437
Portsmouth City Council,PCC,Adult Social Care,Physical Support Adults (18 - 64),Adult Services,Third Party Payments,Other establishments,10/12/18,6271937,380.37,VENDOR,APEX PROPERTY VENTURES LTD,108437
Portsmouth City Council,PCC,Adult Social Care,Physical Support Older People (85+),Adult Services,Third Party Payments,Other establishments,10/12/18,6271937,343.56,VENDOR,APEX PROPERTY VENTURES LTD,108437
Portsmouth City Council,PCC,Adult Social Care,Physical Support Older People (85+),Adult Services,Third Party Payments,Other establishments,10/12/18,6271937,2257.68,VENDOR,APEX PROPERTY VENTURES LTD,108437
Portsmouth City Council,PCC,Adult Social Care,Physical Support Older People (85+),Adult Services,Third Party Payments,Other establishments,10/12/18,6271937,797.55,VENDOR,APEX PROPERTY VENTURES LTD,108437
Portsmouth City Council,PCC,Adult Social Care,Physical Support Older People (85+),Adult Services,Third Party Payments,Other establishments,10/12/18,6271937,343.56,VENDOR,APEX PROPERTY VENTURES LTD,108437
Portsmouth City Council,PCC,Adult Social Care,Physical Support Adults (18 - 64),Adult Services,Third Party Payments,Other establishments,10/12/18,6271937,98.16,VENDOR,APEX PROPERTY VENTURES LTD,108437
Portsmouth City Council,PCC,Adult Social Care,Physical Support Older People (85+),Adult Services,Third Party Payments,Other establishments,10/12/18,6271937,1603.28,VENDOR,APEX PROPERTY VENTURES LTD,108437
Portsmouth City Council,PCC,Adult Social Care,Physical Support Adults (18 - 64),Adult Services,Third Party Payments,Other establishments,10/12/18,6271937,229.04,VENDOR,APEX PROPERTY VENTURES LTD,108437
Portsmouth City Council,PCC,Adult Social Care,Physical Support Adults (18 - 64),Adult Services,Third Party Payments,Other establishments,10/12/18,6271937,89.98,VENDOR,APEX PROPERTY VENTURES LTD,108437
Portsmouth City Council,PCC,Adult Social Care,Physical Support Older People (85+),Adult Services,Third Party Payments,Other establishments,10/12/18,6271937,1832.32,VENDOR,APEX PROPERTY VENTURES LTD,108437
Portsmouth City Council,PCC,Adult Social Care,Physical Support Older People (85+),Adult Services,Third Party Payments,Other establishments,31/12/18,6275747,1595.1,VENDOR,NIGHTINGALES GOLDEN CARE,103699
Portsmouth City Council,PCC,Adult Social Care,Mental Health Support Older People (65 - 74),Adult Services,Third Party Payments,Other establishments,19/12/18,6274551,449.9,VENDOR,THE PORTSMOUTH SITTING SERVICE AND COMMUNITY CARE SERVICES LTD T/A ASSURED CARE,100201
Portsmouth City Council,PCC,Adult Social Care,Physical Support Adults (18 - 64),Adult Services,Third Party Payments,Other establishments,10/12/18,6271937,310.84,VENDOR,APEX PROPERTY VENTURES LTD,108437
Portsmouth City Council,PCC,Adult Social Care,Physical Support Older People (85+),Adult Services,Third Party Payments,Other establishments,10/12/18,6271937,229.04,VENDOR,APEX PROPERTY VENTURES LTD,108437
Portsmouth City Council,PCC,Adult Social Care,Physical Support Older People (85+),Adult Services,Third Party Payments,Other establishments,10/12/18,6271937,1047.04,VENDOR,APEX PROPERTY VENTURES LTD,108437
Portsmouth City Council,PCC,Adult Social Care,Physical Support Older People (85+),Adult Services,Third Party Payments,Other establishments,10/12/18,6271937,1574.65,VENDOR,APEX PROPERTY VENTURES LTD,108437
Portsmouth City Council,PCC,Adult Social Care,Physical Support Older People (85+),Adult Services,Third Party Payments,Other establishments,10/12/18,6271937,286.3,VENDOR,APEX PROPERTY VENTURES LTD,108437
Portsmouth City Council,PCC,Adult Social Care,Physical Support Older People (85+),Adult Services,Third Party Payments,Other establishments,10/12/18,6271937,1374.24,VENDOR,APEX PROPERTY VENTURES LTD,108437
Portsmouth City Council,PCC,Adult Social Care,Physical Support Adults (18 - 64),Adult Services,Third Party Payments,Other establishments,10/12/18,6271937,461.12,VENDOR,APEX PROPERTY VENTURES LTD,108437
Portsmouth City Council,PCC,Adult Social Care,Physical Support Older People (85+),Adult Services,Third Party Payments,Other establishments,10/12/18,6271937,229.04,VENDOR,APEX PROPERTY VENTURES LTD,108437
Portsmouth City Council,PCC,Adult Social Care,Mental Health Support Older People (65 - 74),Adult Services,Third Party Payments,Other establishments,10/12/18,6271937,736.2,VENDOR,APEX PROPERTY VENTURES LTD,108437
Portsmouth City Council,PCC,Adult Social Care,Social Care Activities,Adult Services,Third Party Payments,Other establishments,31/12/18,6275747,168.96,VENDOR,NIGHTINGALES GOLDEN CARE,103699
Portsmouth City Council,PCC,Adult Social Care,Social Care Activities,Adult Services,Third Party Payments,Other establishments,31/12/18,6275747,84.48,VENDOR,NIGHTINGALES GOLDEN CARE,103699
Portsmouth City Council,PCC,Adult Social Care,Social Support - Support for Carer,Adult Services,Third Party Payments,Other establishments,19/12/18,6274551,246.4,VENDOR,THE PORTSMOUTH SITTING SERVICE AND COMMUNITY CARE SERVICES LTD T/A ASSURED CARE,100201
Portsmouth City Council,PCC,Adult Social Care,Physical Support Older People (85+),Adult Services,Third Party Payments,Other establishments,10/12/18,6271937,229.04,VENDOR,APEX PROPERTY VENTURES LTD,108437
Portsmouth City Council,PCC,Adult Social Care,Physical Support Older People (85+),Adult Services,Third Party Payments,Other establishments,10/12/18,6271937,261.76,VENDOR,APEX PROPERTY VENTURES LTD,108437
Portsmouth City Council,PCC,Adult Social Care,Physical Support Older People (85+),Adult Services,Third Party Payments,Other establishments,10/12/18,6271937,343.56,VENDOR,APEX PROPERTY VENTURES LTD,108437
Portsmouth City Council,PCC,Adult Social Care,Physical Support Older People (85+),Adult Services,Third Party Payments,Other establishments,10/12/18,6271937,16.36,VENDOR,APEX PROPERTY VENTURES LTD,108437
Portsmouth City Council,PCC,Adult Social Care,Physical Support Older People (85+),Adult Services,Third Party Payments,Other establishments,10/12/18,6271937,16.36,VENDOR,APEX PROPERTY VENTURES LTD,108437
Portsmouth City Council,PCC,Adult Social Care,Physical Support Older People (85+),Adult Services,Third Party Payments,Other establishments,19/12/18,6274020,184.05,VENDOR,APEX PROPERTY VENTURES LTD,108437
Portsmouth City Council,PCC,Adult Social Care,Physical Support Older People (85+),Adult Services,Third Party Payments,Other establishments,19/12/18,6274020,364.01,VENDOR,APEX PROPERTY VENTURES LTD,108437
Portsmouth City Council,PCC,Adult Social Care,Physical Support Older People (85+),Adult Services,Third Party Payments,Other establishments,10/12/18,6271937,458.08,VENDOR,APEX PROPERTY VENTURES LTD,108437
Portsmouth City Council,PCC,Adult Social Care,Physical Support Older People (85+),Adult Services,Third Party Payments,Other establishments,10/12/18,6271937,229.04,VENDOR,APEX PROPERTY VENTURES LTD,108437
Portsmouth City Council,PCC,Adult Social Care,Physical Support Older People (85+),Adult Services,Third Party Payments,Other establishments,10/12/18,6271937,1603.28,VENDOR,APEX PROPERTY VENTURES LTD,108437
Portsmouth City Council,PCC,Adult Social Care,Physical Support Older People (85+),Adult Services,Third Party Payments,Other establishments,10/12/18,6271937,2049.09,VENDOR,APEX PROPERTY VENTURES LTD,108437
Portsmouth City Council,PCC,Adult Social Care,Physical Support Older People (85+),Adult Services,Third Party Payments,Other establishments,31/12/18,6275747,879.35,VENDOR,NIGHTINGALES GOLDEN CARE,103699
Portsmouth City Council,PCC,Adult Social Care,Physical Support Older People (85+),Adult Services,Third Party Payments,Other establishments,19/12/18,6274551,703.48,VENDOR,THE PORTSMOUTH SITTING SERVICE AND COMMUNITY CARE SERVICES LTD T/A ASSURED CARE,100201
Portsmouth City Council,PCC,Adult Social Care,Physical Support Older People (85+),Adult Services,Third Party Payments,Other establishments,10/12/18,6271937,229.04,VENDOR,APEX PROPERTY VENTURES LTD,108437
Portsmouth City Council,PCC,Adult Social Care,Physical Support Older People (85+),Adult Services,Third Party Payments,Other establishments,10/12/18,6271937,8.18,VENDOR,APEX PROPERTY VENTURES LTD,108437
Portsmouth City Council,PCC,Adult Social Care,Physical Support Older People (85+),Adult Services,Third Party Payments,Other establishments,10/12/18,6271937,458.08,VENDOR,APEX PROPERTY VENTURES LTD,108437
Portsmouth City Council,PCC,Adult Social Care,Physical Support Adults (18 - 64),Adult Services,Third Party Payments,Other establishments,10/12/18,6271937,130.88,VENDOR,APEX PROPERTY VENTURES LTD,108437
Portsmouth City Council,PCC,Adult Social Care,Physical Support Older People (85+),Adult Services,Third Party Payments,Other establishments,10/12/18,6271937,229.04,VENDOR,APEX PROPERTY VENTURES LTD,108437
Portsmouth City Council,PCC,Adult Social Care,Physical Support Older People (85+),Adult Services,Third Party Payments,Other establishments,10/12/18,6271937,458.08,VENDOR,APEX PROPERTY VENTURES LTD,108437
Portsmouth City Council,PCC,Adult Social Care,Physical Support Older People (85+),Adult Services,Third Party Payments,Other establishments,10/12/18,6271937,2290.4,VENDOR,APEX PROPERTY VENTURES LTD,108437
Portsmouth City Council,PCC,Adult Social Care,Physical Support Older People (85+),Adult Services,Third Party Payments,Other establishments,10/12/18,6271937,163.6,VENDOR,APEX PROPERTY VENTURES LTD,108437
Portsmouth City Council,PCC,Adult Social Care,Physical Support Older People (85+),Adult Services,Third Party Payments,Other establishments,10/12/18,6271937,155.42,VENDOR,APEX PROPERTY VENTURES LTD,108437
Portsmouth City Council,PCC,Adult Social Care,Physical Support Older People (85+),Adult Services,Third Party Payments,Other establishments,10/12/18,6271937,572.6,VENDOR,APEX PROPERTY VENTURES LTD,108437
Portsmouth City Council,PCC,Adult Social Care,Physical Support Older People (85+),Adult Services,Third Party Payments,Other establishments,31/12/18,6275747,891.62,VENDOR,NIGHTINGALES GOLDEN CARE,103699
Portsmouth City Council,PCC,Adult Social Care,Social Support - Support for Carer,Adult Services,Third Party Payments,Other establishments,19/12/18,6274551,337.92,VENDOR,THE PORTSMOUTH SITTING SERVICE AND COMMUNITY CARE SERVICES LTD T/A ASSURED CARE,100201
Portsmouth City Council,PCC,Adult Social Care,Physical Support Adults (18 - 64),Adult Services,Third Party Payments,Other establishments,10/12/18,6271937,241.31,VENDOR,APEX PROPERTY VENTURES LTD,108437
Portsmouth City Council,PCC,Adult Social Care,Learning Disability Support  Adults (18 - 64),Adult Services,Third Party Payments,Other establishments,10/12/18,6271937,241.31,VENDOR,APEX PROPERTY VENTURES LTD,108437
Portsmouth City Council,PCC,Adult Social Care,Physical Support Older People (85+),Adult Services,Third Party Payments,Other establishments,10/12/18,6271937,212.68,VENDOR,APEX PROPERTY VENTURES LTD,108437
Portsmouth City Council,PCC,Adult Social Care,Physical Support Older People (85+),Adult Services,Third Party Payments,Other establishments,10/12/18,6271937,2061.36,VENDOR,APEX PROPERTY VENTURES LTD,108437
Portsmouth City Council,PCC,Adult Social Care,Physical Support Adults (18 - 64),Adult Services,Third Party Payments,Other establishments,10/12/18,6271937,237.22,VENDOR,APEX PROPERTY VENTURES LTD,108437
Portsmouth City Council,PCC,Adult Social Care,Physical Support Older People (85+),Adult Services,Third Party Payments,Other establishments,10/12/18,6271937,159.51,VENDOR,APEX PROPERTY VENTURES LTD,108437
Portsmouth City Council,PCC,Adult Social Care,Physical Support Older People (85+),Adult Services,Third Party Payments,Other establishments,10/12/18,6271937,785.28,VENDOR,APEX PROPERTY VENTURES LTD,108437
Portsmouth City Council,PCC,Adult Social Care,Physical Support Older People (85+),Adult Services,Third Party Payments,Other establishments,10/12/18,6271937,98.16,VENDOR,APEX PROPERTY VENTURES LTD,108437
Portsmouth City Council,PCC,Adult Social Care,Physical Support Older People (85+),Adult Services,Third Party Payments,Other establishments,10/12/18,6271937,32.72,VENDOR,APEX PROPERTY VENTURES LTD,108437
Portsmouth City Council,PCC,Adult Social Care,Physical Support Older People (85+),Adult Services,Third Party Payments,Other establishments,10/12/18,6271937,805.73,VENDOR,APEX PROPERTY VENTURES LTD,108437
Portsmouth City Council,PCC,Adult Social Care,Physical Support Older People (85+),Adult Services,Third Party Payments,Other establishments,10/12/18,6271937,163.6,VENDOR,APEX PROPERTY VENTURES LTD,108437
Portsmouth City Council,PCC,Adult Social Care,Physical Support Adults (18 - 64),Adult Services,Third Party Payments,Other establishments,10/12/18,6271937,163.6,VENDOR,APEX PROPERTY VENTURES LTD,108437
Portsmouth City Council,PCC,Adult Social Care,Physical Support Older People (85+),Adult Services,Third Party Payments,Other establishments,31/12/18,6275747,449.9,VENDOR,NIGHTINGALES GOLDEN CARE,103699
Portsmouth City Council,PCC,Adult Social Care,Social Support - Support for Carer,Adult Services,Third Party Payments,Other establishments,31/12/18,6275747,126.72,VENDOR,NIGHTINGALES GOLDEN CARE,103699
Portsmouth City Council,PCC,Adult Social Care,Social Support - Support for Carer,Adult Services,Third Party Payments,Other establishments,14/12/18,6273265,98.16,VENDOR,THE PORTSMOUTH SITTING SERVICE AND COMMUNITY CARE SERVICES LTD T/A ASSURED CARE,100201
Portsmouth City Council,PCC,Adult Social Care,Physical Support Older People (85+),Adult Services,Third Party Payments,Other establishments,10/12/18,6271937,458.08,VENDOR,APEX PROPERTY VENTURES LTD,108437
Portsmouth City Council,PCC,Adult Social Care,Physical Support Adults (18 - 64),Adult Services,Third Party Payments,Other establishments,10/12/18,6271937,458.08,VENDOR,APEX PROPERTY VENTURES LTD,108437
Portsmouth City Council,PCC,Adult Social Care,Physical Support Older People (85+),Adult Services,Third Party Payments,Other establishments,10/12/18,6271937,306.75,VENDOR,APEX PROPERTY VENTURES LTD,108437
Portsmouth City Council,PCC,Adult Social Care,Physical Support Older People (85+),Adult Services,Third Party Payments,Other establishments,10/12/18,6271937,57.26,VENDOR,APEX PROPERTY VENTURES LTD,108437
Portsmouth City Council,PCC,Adult Social Care,Physical Support Older People (85+),Adult Services,Third Party Payments,Other establishments,10/12/18,6271937,425.36,VENDOR,APEX PROPERTY VENTURES LTD,108437
Portsmouth City Council,PCC,Adult Social Care,Physical Support Older People (85+),Adult Services,Third Party Payments,Other establishments,10/12/18,6271937,224.95,VENDOR,APEX PROPERTY VENTURES LTD,108437
Portsmouth City Council,PCC,Adult Social Care,Physical Support Older People (85+),Adult Services,Third Party Payments,Other establishments,10/12/18,6271937,229.04,VENDOR,APEX PROPERTY VENTURES LTD,108437
Portsmouth City Council,PCC,Adult Social Care,Physical Support Older People (85+),Adult Services,Third Party Payments,Other establishments,10/12/18,6271937,316.29,VENDOR,APEX PROPERTY VENTURES LTD,108437
Portsmouth City Council,PCC,Adult Social Care,Physical Support Older People (85+),Adult Services,Third Party Payments,Other establishments,10/12/18,6271937,1374.24,VENDOR,APEX PROPERTY VENTURES LTD,108437
Portsmouth City Council,PCC,Adult Social Care,Physical Support Older People (85+),Adult Services,Third Party Payments,Other establishments,10/12/18,6271937,687.12,VENDOR,APEX PROPERTY VENTURES LTD,108437
Portsmouth City Council,PCC,Adult Social Care,Physical Support Older People (85+),Adult Services,Third Party Payments,Other establishments,31/12/18,6275747,981.6,VENDOR,NIGHTINGALES GOLDEN CARE,103699
Portsmouth City Council,PCC,Adult Social Care,Physical Support Older People (85+),Adult Services,Third Party Payments,Other establishments,19/12/18,6274551,458.08,VENDOR,THE PORTSMOUTH SITTING SERVICE AND COMMUNITY CARE SERVICES LTD T/A ASSURED CARE,100201
Portsmouth City Council,PCC,Adult Social Care,Learning Disability Support  Adults (18 - 64),Adult Services,Third Party Payments,Other establishments,10/12/18,6271937,220.86,VENDOR,APEX PROPERTY VENTURES LTD,108437
Portsmouth City Council,PCC,Adult Social Care,Learning Disability Support  Adults (18 - 64),Adult Services,Third Party Payments,Other establishments,10/12/18,6271937,290.39,VENDOR,APEX PROPERTY VENTURES LTD,108437
Portsmouth City Council,PCC,Adult Social Care,Physical Support Older People (85+),Adult Services,Third Party Payments,Other establishments,10/12/18,6271937,2290.4,VENDOR,APEX PROPERTY VENTURES LTD,108437
Portsmouth City Council,PCC,Adult Social Care,Physical Support Older People (85+),Adult Services,Third Party Payments,Other establishments,10/12/18,6271937,621.68,VENDOR,APEX PROPERTY VENTURES LTD,108437
Portsmouth City Council,PCC,Adult Social Care,Physical Support Adults (18 - 64),Adult Services,Third Party Payments,Other establishments,10/12/18,6271937,744.38,VENDOR,APEX PROPERTY VENTURES LTD,108437
Portsmouth City Council,PCC,Adult Social Care,Physical Support Adults (18 - 64),Adult Services,Third Party Payments,Other establishments,10/12/18,6271937,208.59,VENDOR,APEX PROPERTY VENTURES LTD,108437
Portsmouth City Council,PCC,Adult Social Care,Physical Support Older People (85+),Adult Services,Third Party Payments,Other establishments,10/12/18,6271937,458.08,VENDOR,APEX PROPERTY VENTURES LTD,108437
Portsmouth City Council,PCC,Adult Social Care,Physical Support Older People (85+),Adult Services,Third Party Payments,Other establishments,10/12/18,6271937,196.32,VENDOR,APEX PROPERTY VENTURES LTD,108437
Portsmouth City Council,PCC,Adult Social Care,Physical Support Older People (85+),Adult Services,Third Party Payments,Other establishments,10/12/18,6271937,130.88,VENDOR,APEX PROPERTY VENTURES LTD,108437
Portsmouth City Council,PCC,Adult Social Care,Social Care Activities,Adult Services,Third Party Payments,Other establishments,10/12/18,6271937,327.2,VENDOR,APEX PROPERTY VENTURES LTD,108437
Portsmouth City Council,PCC,Adult Social Care,Social Support - Support for Carer,Adult Services,Third Party Payments,Other establishments,31/12/18,6275747,112.64,VENDOR,NIGHTINGALES GOLDEN CARE,103699
Portsmouth City Council,PCC,Adult Social Care,Physical Support Older People (85+),Adult Services,Third Party Payments,Other establishments,10/12/18,6271937,425.36,VENDOR,APEX PROPERTY VENTURES LTD,108437
Portsmouth City Council,PCC,Adult Social Care,Physical Support Older People (85+),Adult Services,Third Party Payments,Other establishments,10/12/18,6271937,1832.32,VENDOR,APEX PROPERTY VENTURES LTD,108437
Portsmouth City Council,PCC,Adult Social Care,Physical Support Older People (85+),Adult Services,Third Party Payments,Other establishments,10/12/18,6271937,229.04,VENDOR,APEX PROPERTY VENTURES LTD,108437
Portsmouth City Council,PCC,Adult Social Care,Physical Support Older People (85+),Adult Services,Third Party Payments,Other establishments,10/12/18,6271937,229.04,VENDOR,APEX PROPERTY VENTURES LTD,108437
Portsmouth City Council,PCC,Adult Social Care,Physical Support Adults (18 - 64),Adult Services,Third Party Payments,Other establishments,19/12/18,6274020,64.27,VENDOR,APEX PROPERTY VENTURES LTD,108437
Portsmouth City Council,PCC,Adult Social Care,Physical Support Adults (18 - 64),Adult Services,Third Party Payments,Other establishments,19/12/18,6274020,205.67,VENDOR,APEX PROPERTY VENTURES LTD,108437
Portsmouth City Council,PCC,Adult Social Care,Physical Support Adults (18 - 64),Adult Services,Third Party Payments,Other establishments,10/12/18,6271937,310.85,VENDOR,APEX PROPERTY VENTURES LTD,108437
Portsmouth City Council,PCC,Adult Social Care,Physical Support Older People (85+),Adult Services,Third Party Payments,Other establishments,10/12/18,6271937,196.32,VENDOR,APEX PROPERTY VENTURES LTD,108437
Portsmouth City Council,PCC,Adult Social Care,Physical Support Older People (85+),Adult Services,Third Party Payments,Other establishments,10/12/18,6271937,1832.32,VENDOR,APEX PROPERTY VENTURES LTD,108437
Portsmouth City Council,PCC,Adult Social Care,Physical Support Older People (85+),Adult Services,Third Party Payments,Other establishments,31/12/18,6275747,310.84,VENDOR,NIGHTINGALES GOLDEN CARE,103699
Portsmouth City Council,PCC,Adult Social Care,Physical Support Older People (85+),Adult Services,Third Party Payments,Other establishments,19/12/18,6274551,409,VENDOR,THE PORTSMOUTH SITTING SERVICE AND COMMUNITY CARE SERVICES LTD T/A ASSURED CARE,100201
Portsmouth City Council,PCC,Adult Social Care,Physical Support Older People (85+),Adult Services,Third Party Payments,Other establishments,10/12/18,6271937,229.04,VENDOR,APEX PROPERTY VENTURES LTD,108437
Portsmouth City Council,PCC,Adult Social Care,Physical Support Older People (85+),Adult Services,Third Party Payments,Other establishments,10/12/18,6271937,458.08,VENDOR,APEX PROPERTY VENTURES LTD,108437
Portsmouth City Council,PCC,Adult Social Care,Physical Support Older People (85+),Adult Services,Third Party Payments,Other establishments,10/12/18,6271937,343.56,VENDOR,APEX PROPERTY VENTURES LTD,108437
Portsmouth City Council,PCC,Adult Social Care,Learning Disability Support  Adults (18 - 64),Adult Services,Third Party Payments,Other establishments,10/12/18,6271937,155.42,VENDOR,APEX PROPERTY VENTURES LTD,108437
Portsmouth City Council,PCC,Adult Social Care,Physical Support Older People (85+),Adult Services,Third Party Payments,Other establishments,10/12/18,6271937,49.08,VENDOR,APEX PROPERTY VENTURES LTD,108437
Portsmouth City Council,PCC,Adult Social Care,Physical Support Older People (85+),Adult Services,Third Party Payments,Other establishments,10/12/18,6271937,114.52,VENDOR,APEX PROPERTY VENTURES LTD,108437
Portsmouth City Council,PCC,Housing Revenue Account,Special Services,"Housing, Neighbourhood and Building Services",Employees,Direct employee expenses,10/12/18,6271937,3553.76,VENDOR,APEX PROPERTY VENTURES LTD,108437
Portsmouth City Council,PCC,Housing Revenue Account,Special Services,"Housing, Neighbourhood and Building Services",Employees,Direct employee expenses,10/12/18,6271937,3753.26,VENDOR,APEX PROPERTY VENTURES LTD,108437
Portsmouth City Council,PCC,Adult Social Care,Physical Support Older People (85+),Adult Services,Third Party Payments,Other establishments,19/12/18,6274551,1259.72,VENDOR,THE PORTSMOUTH SITTING SERVICE AND COMMUNITY CARE SERVICES LTD T/A ASSURED CARE,100201
Portsmouth City Council,PCC,Adult Social Care,Physical Support Older People (85+),Adult Services,Third Party Payments,Other establishments,19/12/18,6274551,235.67,VENDOR,THE PORTSMOUTH SITTING SERVICE AND COMMUNITY CARE SERVICES LTD T/A ASSURED CARE,100201
Portsmouth City Council,PCC,Adult Social Care,Physical Support Older People (85+),Adult Services,Third Party Payments,Other establishments,31/12/18,6275747,916.16,VENDOR,NIGHTINGALES GOLDEN CARE,103699
Portsmouth City Council,PCC,Adult Social Care,Social Support - Support for Carer,Adult Services,Third Party Payments,Other establishments,19/12/18,6274551,168.96,VENDOR,THE PORTSMOUTH SITTING SERVICE AND COMMUNITY CARE SERVICES LTD T/A ASSURED CARE,100201
Portsmouth City Council,PCC,Adult Social Care,Physical Support Older People (85+),Adult Services,Third Party Payments,Other establishments,31/12/18,6275747,482.62,VENDOR,NIGHTINGALES GOLDEN CARE,103699
Portsmouth City Council,PCC,Adult Social Care,Physical Support Older People (85+),Adult Services,Third Party Payments,Other establishments,19/12/18,6274551,678.94,VENDOR,THE PORTSMOUTH SITTING SERVICE AND COMMUNITY CARE SERVICES LTD T/A ASSURED CARE,100201
Portsmouth City Council,PCC,Adult Social Care,Physical Support Older People (85+),Adult Services,Third Party Payments,Other establishments,31/12/18,6275747,343.56,VENDOR,NIGHTINGALES GOLDEN CARE,103699
Portsmouth City Council,PCC,Adult Social Care,Social Support - Support for Carer,Adult Services,Third Party Payments,Other establishments,19/12/18,6274551,337.92,VENDOR,THE PORTSMOUTH SITTING SERVICE AND COMMUNITY CARE SERVICES LTD T/A ASSURED CARE,100201
Portsmouth City Council,PCC,Adult Social Care,Physical Support Older People (85+),Adult Services,Third Party Payments,Other establishments,31/12/18,6275747,687.12,VENDOR,NIGHTINGALES GOLDEN CARE,103699
Portsmouth City Council,PCC,Adult Social Care,Physical Support Older People (85+),Adult Services,Third Party Payments,Other establishments,31/12/18,6275747,67.32,VENDOR,NIGHTINGALES GOLDEN CARE,103699
Portsmouth City Council,PCC,Adult Social Care,Social Support - Support for Carer,Adult Services,Third Party Payments,Other establishments,31/12/18,6275747,112.64,VENDOR,NIGHTINGALES GOLDEN CARE,103699
Portsmouth City Council,PCC,Adult Social Care,Social Support - Support for Carer,Adult Services,Third Party Payments,Other establishments,19/12/18,6274551,337.92,VENDOR,THE PORTSMOUTH SITTING SERVICE AND COMMUNITY CARE SERVICES LTD T/A ASSURED CARE,100201
Portsmouth City Council,PCC,Adult Social Care,Social Support - Support for Carer,Adult Services,Third Party Payments,Other establishments,19/12/18,6274551,337.92,VENDOR,THE PORTSMOUTH SITTING SERVICE AND COMMUNITY CARE SERVICES LTD T/A ASSURED CARE,100201
Portsmouth City Council,PCC,Adult Social Care,Physical Support Older People (85+),Adult Services,Third Party Payments,Other establishments,31/12/18,6275747,229.04,VENDOR,NIGHTINGALES GOLDEN CARE,103699
Portsmouth City Council,PCC,Adult Social Care,Physical Support Older People (85+),Adult Services,Third Party Payments,Other establishments,31/12/18,6275747,1329.25,VENDOR,NIGHTINGALES GOLDEN CARE,103699
Portsmouth City Council,PCC,Adult Social Care,Physical Support Adults (18 - 64),Adult Services,Third Party Payments,Other establishments,31/12/18,6275747,883.44,VENDOR,NIGHTINGALES GOLDEN CARE,103699
Portsmouth City Council,PCC,Other,Suspense and Capital Schemes,Capital - Culture Leisure & Sport,Capital Charges,Capital Expenditure (WIP),10/12/18,6272070,2950,VENDOR,UBU DESIGN LTD,144134
Portsmouth City Council,PCC,Cultural and Related Services,Culture and Heritage,Culture & City Development,Third Party Payments,Private contractors,20/12/18,6274651,840,SOLETRADER,Classified as 'personal data' (under the Data Protection Act 1998),144601
Portsmouth City Council,PCC,Public Health,Sexual Health,Public Health,Third Party Payments,Other establishments,07/12/18,6271931,1302.17,VENDOR,WESTERN SUSSEX HOSPITALS NHS FOUNDATION TRUST,139914
Portsmouth City Council,PCC,Children's and Education Services,Children Looked After,Children's Services and Education,Third Party Payments,Other establishments,04/12/18,6271012,4942.18,VENDOR,FAIRWAYS CARE (UK) LTD,111915
Portsmouth City Council,PCC,Cultural and Related Services,Open Spaces,Culture & City Development,Premises-Related Expenditure,Grounds maintenance costs,04/12/18,6271069,2314,COMPANY,REDS BUILDERS LTD,108228
Portsmouth City Council,PCC,Cultural and Related Services,Open Spaces,Culture & City Development,Premises-Related Expenditure,Grounds maintenance costs,18/12/18,6273571,575,COMPANY,REDS BUILDERS LTD,108228
Portsmouth City Council,PCC,Cultural and Related Services,Recreation and Sport,Culture & City Development,Premises-Related Expenditure,Grounds maintenance costs,18/12/18,6273571,125,COMPANY,REDS BUILDERS LTD,108228
Portsmouth City Council,PCC,Cultural and Related Services,Open Spaces,Culture & City Development,Premises-Related Expenditure,"Repairs, alterations and maintenance of buildings",18/12/18,6273571,4950,COMPANY,REDS BUILDERS LTD,108228
Portsmouth City Council,PCC,Cultural and Related Services,Open Spaces,Culture & City Development,Premises-Related Expenditure,Grounds maintenance costs,28/12/18,6275507,2135,COMPANY,REDS BUILDERS LTD,108228
Portsmouth City Council,PCC,Children's and Education Services,Asylum seekers,Children's Services and Education,Third Party Payments,Other establishments,12/12/18,6272329,2368.92,VENDOR,FAIRWAYS CARE (UK) LTD,111915
Portsmouth City Council,PCC,Children's and Education Services,Children Looked After,Children's Services and Education,Third Party Payments,Other establishments,12/12/18,6272329,4942.18,VENDOR,FAIRWAYS CARE (UK) LTD,111915
Portsmouth City Council,PCC,Children's and Education Services,Children Looked After,Children's Services and Education,Third Party Payments,Other establishments,12/12/18,6272329,4942.18,VENDOR,FAIRWAYS CARE (UK) LTD,111915
Portsmouth City Council,PCC,Children's and Education Services,Asylum seekers,Children's Services and Education,Third Party Payments,Other establishments,06/12/18,6271715,2368.92,VENDOR,FAIRWAYS CARE (UK) LTD,111915
Portsmouth City Council,PCC,Children's and Education Services,Children Looked After,Children's Services and Education,Third Party Payments,Other establishments,06/12/18,6271715,4942.18,VENDOR,FAIRWAYS CARE (UK) LTD,111915
Portsmouth City Council,PCC,Children's and Education Services,Children Looked After,Children's Services and Education,Third Party Payments,Other establishments,06/12/18,6271715,4942.18,VENDOR,FAIRWAYS CARE (UK) LTD,111915
Portsmouth City Council,PCC,Children's and Education Services,Children Looked After,Children's Services and Education,Third Party Payments,Other establishments,06/12/18,6271715,4942.18,VENDOR,FAIRWAYS CARE (UK) LTD,111915
Portsmouth City Council,PCC,Children's and Education Services,Children Looked After,Children's Services and Education,Third Party Payments,Other establishments,11/12/18,6272144,2826.86,VENDOR,JAMMA UMOJA INTEGRATED SERVICES LTD,138994
Portsmouth City Council,PCC,Children's and Education Services,Children Looked After,Children's Services and Education,Third Party Payments,Other establishments,11/12/18,6272144,3298,VENDOR,JAMMA UMOJA INTEGRATED SERVICES LTD,138994
Portsmouth City Council,PCC,Corporate and Democratic Core,Democratic Representation and Management,Community & Communication,Third Party Payments,Private contractors,06/12/18,6271757,525,VENDOR,PORTSMOUTH CULTURAL TRUST,134492
Portsmouth City Council,PCC,Children's and Education Services,Children Looked After,Children's Services and Education,Third Party Payments,Other establishments,17/12/18,6273382,3298,VENDOR,JAMMA UMOJA INTEGRATED SERVICES LTD,138994
Portsmouth City Council,PCC,Children's and Education Services,Asylum seekers,Children's Services and Education,Third Party Payments,Other establishments,17/12/18,6273370,3786,VENDOR,FAIRWAYS CARE (UK) LTD,111915
Portsmouth City Council,PCC,Children's and Education Services,Children Looked After,Children's Services and Education,Third Party Payments,Other establishments,28/12/18,6275476,1884.57,VENDOR,JAMMA UMOJA INTEGRATED SERVICES LTD,138994
Portsmouth City Council,PCC,Children's and Education Services,Asylum seekers,Children's Services and Education,Third Party Payments,Other establishments,28/12/18,6275453,2368.92,VENDOR,FAIRWAYS CARE (UK) LTD,111915
Portsmouth City Council,PCC,Children's and Education Services,Children Looked After,Children's Services and Education,Third Party Payments,Other establishments,28/12/18,6275453,4942.18,VENDOR,FAIRWAYS CARE (UK) LTD,111915
Portsmouth City Council,PCC,Environmental and Regulatory Services,Agricultural and Fisheries Services,Portsmouth International Port,Third Party Payments,Private contractors,13/12/18,6272962,2809.41,VENDOR,KEN BROWN BOATS LTD,100926
Portsmouth City Council,PCC,Support Service / Transparency Costs Unallocated,AMS,"Housing, Neighbourhood and Building Services",Employees,Direct employee expenses,11/12/18,6272092,660,VENDOR,BRIAN SCADDAN ASSOCIATES LTD,119241
Portsmouth City Council,PCC,Cultural and Related Services,Open Spaces,Culture & City Development,Premises-Related Expenditure,Grounds maintenance costs,06/12/18,6271676,4090.9,COMPANY,BARHILL PLANT LTD,100355
Portsmouth City Council,PCC,Cultural and Related Services,Culture and Heritage,Culture & City Development,Third Party Payments,Private contractors,03/12/18,6270818,105.72,COMPANY,BARHILL PLANT LTD,100355
Portsmouth City Council,PCC,Cultural and Related Services,Open Spaces,Culture & City Development,Third Party Payments,Private contractors,03/12/18,6270818,2036.66,COMPANY,BARHILL PLANT LTD,100355
Portsmouth City Council,PCC,Housing Revenue Account,Special Services,"Housing, Neighbourhood and Building Services",Third Party Payments,Private contractors,03/12/18,6270818,930,COMPANY,BARHILL PLANT LTD,100355
Portsmouth City Council,PCC,Other,Suspense and Capital Schemes,Capital - Environment,Capital Charges,Capital Expenditure (WIP),03/12/18,6270818,270,COMPANY,BARHILL PLANT LTD,100355
Portsmouth City Council,PCC,Cultural and Related Services,Open Spaces,Culture & City Development,Third Party Payments,Private contractors,03/12/18,6270818,180,COMPANY,BARHILL PLANT LTD,100355
Portsmouth City Council,PCC,Cultural and Related Services,Open Spaces,Culture & City Development,Premises-Related Expenditure,Grounds maintenance costs,06/12/18,6271676,2140.85,COMPANY,BARHILL PLANT LTD,100355
Portsmouth City Council,PCC,Cultural and Related Services,Open Spaces,Culture & City Development,Premises-Related Expenditure,Grounds maintenance costs,12/12/18,6272249,4280,COMPANY,BARHILL PLANT LTD,100355
Portsmouth City Council,PCC,Cultural and Related Services,Open Spaces,Culture & City Development,Premises-Related Expenditure,Grounds maintenance costs,11/12/18,6272086,1670.9,COMPANY,BARHILL PLANT LTD,100355
Portsmouth City Council,PCC,Cultural and Related Services,Open Spaces,Culture & City Development,Premises-Related Expenditure,Grounds maintenance costs,11/12/18,6272086,1510.24,COMPANY,BARHILL PLANT LTD,100355
Portsmouth City Council,PCC,Cultural and Related Services,Open Spaces,Culture & City Development,Premises-Related Expenditure,Grounds maintenance costs,12/12/18,6272249,2901.02,COMPANY,BARHILL PLANT LTD,100355
Portsmouth City Council,PCC,Highways and Transport Services,Traffic Management and Road Safety,Regeneration,Supplies and Services,Miscellaneous expenses,10/12/18,6271946,200,COMPANY,BARHILL PLANT LTD,100355
Portsmouth City Council,PCC,Cultural and Related Services,Culture and Heritage,Culture & City Development,Third Party Payments,Private contractors,10/12/18,6271946,2977.99,COMPANY,BARHILL PLANT LTD,100355
Portsmouth City Council,PCC,Highways and Transport Services,"Airports, Harbours and Toll Facilities",Portsmouth International Port,Supplies and Services,"Equipment, furniture and materials",21/12/18,6274790,5934,VENDOR,CAPCOM LAND SEA & AIR COMMUNICATIONS LIMITED,102054
Portsmouth City Council,PCC,Cultural and Related Services,Open Spaces,Culture & City Development,Premises-Related Expenditure,Grounds maintenance costs,12/12/18,6272249,278.9,COMPANY,BARHILL PLANT LTD,100355
Portsmouth City Council,PCC,Cultural and Related Services,Open Spaces,Culture & City Development,Premises-Related Expenditure,Grounds maintenance costs,12/12/18,6272249,3604.9,COMPANY,BARHILL PLANT LTD,100355
Portsmouth City Council,PCC,Cultural and Related Services,Open Spaces,Culture & City Development,Premises-Related Expenditure,Grounds maintenance costs,21/12/18,6274762,2679.5,COMPANY,BARHILL PLANT LTD,100355
Portsmouth City Council,PCC,Cultural and Related Services,Open Spaces,Culture & City Development,Premises-Related Expenditure,Grounds maintenance costs,21/12/18,6274762,2197.9,COMPANY,BARHILL PLANT LTD,100355
Portsmouth City Council,PCC,Corporate and Democratic Core,Corporate Management,Community & Communication,Supplies and Services,"Printing, stationery and general office expenses",17/12/18,6273452,143,VENDOR,X JOHNSTON PUBLISHING LTD,100088
Portsmouth City Council,PCC,Planning Services,Business support,Regeneration,Third Party Payments,Private contractors,21/12/18,6275024,1000,VENDOR,PORTSMOUTH CULTURAL TRUST,134492
Portsmouth City Council,PCC,Other,Suspense and Capital Schemes,Capital - PRED (Excl. Port & Solent LEP),Capital Charges,Capital Expenditure (WIP),21/12/18,6275010,2000,VENDOR,PETER BRETT ASSOCIATES LLP,124000
Portsmouth City Council,PCC,Adult Social Care,Social Care Activities,Adult Services,Third Party Payments,Other establishments,19/12/18,6274493,490.8,VENDOR,KARE PLUS NATIONAL,142667
Portsmouth City Council,PCC,Adult Social Care,Social Care Activities,Adult Services,Third Party Payments,Other establishments,19/12/18,6274493,98.16,VENDOR,KARE PLUS NATIONAL,142667
Portsmouth City Council,PCC,Adult Social Care,Social Care Activities,Adult Services,Third Party Payments,Other establishments,19/12/18,6274493,98.16,VENDOR,KARE PLUS NATIONAL,142667
Portsmouth City Council,PCC,Cultural and Related Services,Culture and Heritage,Culture & City Development,Third Party Payments,Private contractors,07/12/18,6271812,1480,VENDOR,CAP TRAC LTD,140827
Portsmouth City Council,PCC,Children's and Education Services,Children Looked After,Children's Services and Education,Third Party Payments,Other establishments,10/12/18,6272005,-1121.71,VENDOR,FOSTERING SOLUTIONS,100525
Portsmouth City Council,PCC,Housing Services,Homelessness,"Housing, Neighbourhood and Building Services",Premises-Related Expenditure,Rents,21/12/18,6274949,2400,SOLETRADER,Classified as 'personal data' (under the Data Protection Act 1998),137146
Portsmouth City Council,PCC,Housing Services,Homelessness,"Housing, Neighbourhood and Building Services",Premises-Related Expenditure,Rents,21/12/18,6274891,4950,SOLETRADER,Classified as 'personal data' (under the Data Protection Act 1998),114064
Portsmouth City Council,PCC,Cultural and Related Services,Culture and Heritage,Culture & City Development,Third Party Payments,Private contractors,11/12/18,6272164,5500,VENDOR,PAINS FIREWORKS LTD,144492
Portsmouth City Council,PCC,Cultural and Related Services,Open Spaces,Culture & City Development,Premises-Related Expenditure,Grounds maintenance costs,31/12/18,6275862,940,COMPANY,URBAN RECREATION LTD,137363
Portsmouth City Council,PCC,Adult Social Care,Social Care Activities,Adult Services,Third Party Payments,Other establishments,19/12/18,6274493,828,VENDOR,KARE PLUS NATIONAL,142667
Portsmouth City Council,PCC,Cultural and Related Services,Culture and Heritage,Culture & City Development,Third Party Payments,Private contractors,21/12/18,6275000,1450,VENDOR,PAINS FIREWORKS LTD,144492
Portsmouth City Council,PCC,Cultural and Related Services,Culture and Heritage,Culture & City Development,Third Party Payments,Private contractors,21/12/18,6275000,1450,VENDOR,PAINS FIREWORKS LTD,144492
Portsmouth City Council,PCC,Children's and Education Services,Other Education and Community Budget,Children's Services and Education,Supplies and Services,Catering,12/12/18,6272794,150,VENDOR,PORTSMOUTH CULTURAL TRUST,134492
Portsmouth City Council,PCC,Cultural and Related Services,Culture and Heritage,Finance & IT,Premises-Related Expenditure,"Repairs, alterations and maintenance of buildings",03/12/18,6270879,4000,VENDOR,HOARE LEA LLP,106505
Portsmouth City Council,PCC,Adult Social Care,Social Care Activities,Adult Services,Third Party Payments,Other establishments,20/12/18,6274646,572.6,VENDOR,KARE PLUS NATIONAL,142667
Portsmouth City Council,PCC,Adult Social Care,Social Care Activities,Adult Services,Third Party Payments,Other establishments,20/12/18,6274646,112.64,VENDOR,KARE PLUS NATIONAL,142667
Portsmouth City Council,PCC,Adult Social Care,Social Care Activities,Adult Services,Third Party Payments,Other establishments,20/12/18,6274646,116.4,VENDOR,KARE PLUS NATIONAL,142667
Portsmouth City Council,PCC,Corporate and Democratic Core,Democratic Representation and Management,Culture & City Development,Supplies and Services,Miscellaneous expenses,21/12/18,6275023,5640.42,VENDOR,PORTSMOUTH CULTURAL TRUST,134492
Portsmouth City Council,PCC,Adult Social Care,Social Care Activities,Adult Services,Third Party Payments,Other establishments,19/12/18,6274493,556.24,VENDOR,KARE PLUS NATIONAL,142667
Portsmouth City Council,PCC,Adult Social Care,Social Care Activities,Adult Services,Third Party Payments,Other establishments,19/12/18,6274493,112.64,VENDOR,KARE PLUS NATIONAL,142667
Portsmouth City Council,PCC,Adult Social Care,Social Care Activities,Adult Services,Third Party Payments,Other establishments,19/12/18,6274493,34.6,VENDOR,KARE PLUS NATIONAL,142667
Portsmouth City Council,PCC,Children's and Education Services,Management and Support Services,Children's Services and Education,Supplies and Services,Miscellaneous expenses,21/12/18,6275023,16.5,VENDOR,PORTSMOUTH CULTURAL TRUST,134492
Portsmouth City Council,PCC,Corporate and Democratic Core,Democratic Representation and Management,Community & Communication,Third Party Payments,Private contractors,21/12/18,6275024,278.13,VENDOR,PORTSMOUTH CULTURAL TRUST,134492
Portsmouth City Council,PCC,Planning Services,Business support,Regeneration,Third Party Payments,Private contractors,21/12/18,6275024,1000,VENDOR,PORTSMOUTH CULTURAL TRUST,134492
Portsmouth City Council,PCC,Adult Social Care,Learning Disability Support  Adults (18 - 64),Adult Services,Third Party Payments,Other establishments,19/12/18,6274048,45923.57,VENDOR,COMMUNITY INTEGRATED CARE (CIC),102442
Portsmouth City Council,PCC,Adult Social Care,Learning Disability Support  Adults (18 - 64),Adult Services,Third Party Payments,Other establishments,12/12/18,6272285,998.4,VENDOR,COMMUNITY INTEGRATED CARE (CIC),102442
Portsmouth City Council,PCC,Adult Social Care,Learning Disability Support  Adults (18 - 64),Adult Services,Third Party Payments,Other establishments,19/12/18,6274048,43965.47,VENDOR,COMMUNITY INTEGRATED CARE (CIC),102442
Portsmouth City Council,PCC,Cultural and Related Services,Culture and Heritage,Culture & City Development,Supplies and Services,"Equipment, furniture and materials",21/12/18,6275024,176,VENDOR,PORTSMOUTH CULTURAL TRUST,134492
Portsmouth City Council,PCC,Adult Social Care,Physical Support Older People (85+),Adult Services,Third Party Payments,Other establishments,10/12/18,6272020,85.89,VENDOR,KARE PLUS NATIONAL,142667
Portsmouth City Council,PCC,Adult Social Care,Social Support - Support for Carer,Adult Services,Third Party Payments,Other establishments,10/12/18,6272020,56.32,VENDOR,KARE PLUS NATIONAL,142667
Portsmouth City Council,PCC,Adult Social Care,Physical Support Older People (85+),Adult Services,Third Party Payments,Other establishments,10/12/18,6272020,85.89,VENDOR,KARE PLUS NATIONAL,142667
Portsmouth City Council,PCC,Adult Social Care,Social Support - Support for Carer,Adult Services,Third Party Payments,Other establishments,10/12/18,6272020,56.32,VENDOR,KARE PLUS NATIONAL,142667
Portsmouth City Council,PCC,Adult Social Care,Physical Support Older People (85+),Adult Services,Third Party Payments,Other establishments,04/12/18,6271040,572.6,VENDOR,KARE PLUS NATIONAL,142667
Portsmouth City Council,PCC,Adult Social Care,Physical Support Adults (18 - 64),Adult Services,Third Party Payments,Other establishments,04/12/18,6271040,458.08,VENDOR,KARE PLUS NATIONAL,142667
Portsmouth City Council,PCC,Adult Social Care,Social Care Activities,Adult Services,Third Party Payments,Other establishments,04/12/18,6271040,6216,VENDOR,KARE PLUS NATIONAL,142667
Portsmouth City Council,PCC,Adult Social Care,Social Support - Support for Carer,Adult Services,Third Party Payments,Other establishments,04/12/18,6271040,84.48,VENDOR,KARE PLUS NATIONAL,142667
Portsmouth City Council,PCC,Adult Social Care,Physical Support Older People (85+),Adult Services,Third Party Payments,Other establishments,04/12/18,6271040,434.82,VENDOR,KARE PLUS NATIONAL,142667
Portsmouth City Council,PCC,Adult Social Care,Physical Support Older People (85+),Adult Services,Third Party Payments,Other establishments,04/12/18,6271040,85.89,VENDOR,KARE PLUS NATIONAL,142667
Portsmouth City Council,PCC,Adult Social Care,Physical Support Adults (18 - 64),Adult Services,Third Party Payments,Other establishments,04/12/18,6271040,572.6,VENDOR,KARE PLUS NATIONAL,142667
Portsmouth City Council,PCC,Adult Social Care,Physical Support Adults (18 - 64),Adult Services,Third Party Payments,Other establishments,04/12/18,6271040,523.52,VENDOR,KARE PLUS NATIONAL,142667
Portsmouth City Council,PCC,Adult Social Care,Social Support - Support for Carer,Adult Services,Third Party Payments,Other establishments,04/12/18,6271040,56.32,VENDOR,KARE PLUS NATIONAL,142667
Portsmouth City Council,PCC,Adult Social Care,Social Care Activities,Adult Services,Third Party Payments,Other establishments,04/12/18,6271040,398.1,VENDOR,KARE PLUS NATIONAL,142667
Portsmouth City Council,PCC,Adult Social Care,Social Care Activities,Adult Services,Third Party Payments,Other establishments,04/12/18,6271040,1428,VENDOR,KARE PLUS NATIONAL,142667
Portsmouth City Council,PCC,Adult Social Care,Physical Support Adults (18 - 64),Adult Services,Third Party Payments,Other establishments,04/12/18,6271040,114.52,VENDOR,KARE PLUS NATIONAL,142667
Portsmouth City Council,PCC,Adult Social Care,Physical Support Older People (85+),Adult Services,Third Party Payments,Other establishments,04/12/18,6271040,114.52,VENDOR,KARE PLUS NATIONAL,142667
Portsmouth City Council,PCC,Adult Social Care,Social Support - Support for Carer,Adult Services,Third Party Payments,Other establishments,04/12/18,6271040,84.48,VENDOR,KARE PLUS NATIONAL,142667
Portsmouth City Council,PCC,Adult Social Care,Social Care Activities,Adult Services,Third Party Payments,Other establishments,04/12/18,6271040,340,VENDOR,KARE PLUS NATIONAL,142667
Portsmouth City Council,PCC,Adult Social Care,Physical Support Older People (85+),Adult Services,Third Party Payments,Other establishments,04/12/18,6271040,57.26,VENDOR,KARE PLUS NATIONAL,142667
Portsmouth City Council,PCC,Adult Social Care,Physical Support Adults (18 - 64),Adult Services,Third Party Payments,Other establishments,04/12/18,6271040,458.08,VENDOR,KARE PLUS NATIONAL,142667
Portsmouth City Council,PCC,Adult Social Care,Physical Support Older People (85+),Adult Services,Third Party Payments,Other establishments,04/12/18,6271040,28.16,VENDOR,KARE PLUS NATIONAL,142667
Portsmouth City Council,PCC,Adult Social Care,Physical Support Older People (85+),Adult Services,Third Party Payments,Other establishments,04/12/18,6271040,458.08,VENDOR,KARE PLUS NATIONAL,142667
Portsmouth City Council,PCC,Adult Social Care,Social Support - Support for Carer,Adult Services,Third Party Payments,Other establishments,04/12/18,6271040,84.48,VENDOR,KARE PLUS NATIONAL,142667
Portsmouth City Council,PCC,Adult Social Care,Physical Support Adults (18 - 64),Adult Services,Third Party Payments,Other establishments,04/12/18,6271040,572.6,VENDOR,KARE PLUS NATIONAL,142667
Portsmouth City Council,PCC,Adult Social Care,Social Support - Support for Carer,Adult Services,Third Party Payments,Other establishments,04/12/18,6271040,49.28,VENDOR,KARE PLUS NATIONAL,142667
Portsmouth City Council,PCC,Adult Social Care,Physical Support Older People (85+),Adult Services,Third Party Payments,Other establishments,04/12/18,6271040,572.6,VENDOR,KARE PLUS NATIONAL,142667
Portsmouth City Council,PCC,Adult Social Care,Physical Support Older People (85+),Adult Services,Third Party Payments,Other establishments,04/12/18,6271040,85.89,VENDOR,KARE PLUS NATIONAL,142667
Portsmouth City Council,PCC,Adult Social Care,Physical Support Older People (85+),Adult Services,Third Party Payments,Other establishments,04/12/18,6271040,344.2,VENDOR,KARE PLUS NATIONAL,142667
Portsmouth City Council,PCC,Adult Social Care,Physical Support Older People (85+),Adult Services,Third Party Payments,Other establishments,04/12/18,6271040,57.58,VENDOR,KARE PLUS NATIONAL,142667
Portsmouth City Council,PCC,Adult Social Care,Social Support - Support for Carer,Adult Services,Third Party Payments,Other establishments,04/12/18,6271040,84.48,VENDOR,KARE PLUS NATIONAL,142667
Portsmouth City Council,PCC,Adult Social Care,Social Care Activities,Adult Services,Third Party Payments,Other establishments,04/12/18,6271040,92.57,VENDOR,KARE PLUS NATIONAL,142667
Portsmouth City Council,PCC,Adult Social Care,Social Care Activities,Adult Services,Third Party Payments,Other establishments,04/12/18,6271040,640.43,VENDOR,KARE PLUS NATIONAL,142667
Portsmouth City Council,PCC,Adult Social Care,Physical Support Older People (85+),Adult Services,Third Party Payments,Other establishments,04/12/18,6271040,327.2,VENDOR,KARE PLUS NATIONAL,142667
Portsmouth City Council,PCC,Adult Social Care,Social Care Activities,Adult Services,Third Party Payments,Other establishments,04/12/18,6271040,28.16,VENDOR,KARE PLUS NATIONAL,142667
Portsmouth City Council,PCC,Adult Social Care,Social Care Activities,Adult Services,Third Party Payments,Other establishments,04/12/18,6271040,258.15,VENDOR,KARE PLUS NATIONAL,142667
Portsmouth City Council,PCC,Adult Social Care,Physical Support Older People (85+),Adult Services,Third Party Payments,Other establishments,12/12/18,6272760,86.21,VENDOR,KARE PLUS NATIONAL,142667
Portsmouth City Council,PCC,Adult Social Care,Social Support - Support for Carer,Adult Services,Third Party Payments,Other establishments,12/12/18,6272760,56.32,VENDOR,KARE PLUS NATIONAL,142667
Portsmouth City Council,PCC,Adult Social Care,Social Care Activities,Adult Services,Third Party Payments,Other establishments,19/12/18,6274493,556.24,VENDOR,KARE PLUS NATIONAL,142667
Portsmouth City Council,PCC,Adult Social Care,Social Care Activities,Adult Services,Third Party Payments,Other establishments,19/12/18,6274493,112.64,VENDOR,KARE PLUS NATIONAL,142667
Portsmouth City Council,PCC,Adult Social Care,Social Care Activities,Adult Services,Third Party Payments,Other establishments,19/12/18,6274493,34.6,VENDOR,KARE PLUS NATIONAL,142667
Portsmouth City Council,PCC,Adult Social Care,Physical Support Older People (85+),Adult Services,Third Party Payments,Other establishments,10/12/18,6272020,572.6,VENDOR,KARE PLUS NATIONAL,142667
Portsmouth City Council,PCC,Adult Social Care,Physical Support Adults (18 - 64),Adult Services,Third Party Payments,Other establishments,10/12/18,6272020,458.08,VENDOR,KARE PLUS NATIONAL,142667
Portsmouth City Council,PCC,Adult Social Care,Social Care Activities,Adult Services,Third Party Payments,Other establishments,10/12/18,6272020,6216,VENDOR,KARE PLUS NATIONAL,142667
Portsmouth City Council,PCC,Adult Social Care,Social Support - Support for Carer,Adult Services,Third Party Payments,Other establishments,10/12/18,6272020,84.48,VENDOR,KARE PLUS NATIONAL,142667
Portsmouth City Council,PCC,Adult Social Care,Physical Support Older People (85+),Adult Services,Third Party Payments,Other establishments,10/12/18,6272020,519.82,VENDOR,KARE PLUS NATIONAL,142667
Portsmouth City Council,PCC,Adult Social Care,Physical Support Older People (85+),Adult Services,Third Party Payments,Other establishments,10/12/18,6272020,85.89,VENDOR,KARE PLUS NATIONAL,142667
Portsmouth City Council,PCC,Adult Social Care,Physical Support Adults (18 - 64),Adult Services,Third Party Payments,Other establishments,10/12/18,6272020,572.6,VENDOR,KARE PLUS NATIONAL,142667
Portsmouth City Council,PCC,Adult Social Care,Physical Support Adults (18 - 64),Adult Services,Third Party Payments,Other establishments,10/12/18,6272020,523.52,VENDOR,KARE PLUS NATIONAL,142667
Portsmouth City Council,PCC,Adult Social Care,Social Support - Support for Carer,Adult Services,Third Party Payments,Other establishments,10/12/18,6272020,56.32,VENDOR,KARE PLUS NATIONAL,142667
Portsmouth City Council,PCC,Adult Social Care,Social Care Activities,Adult Services,Third Party Payments,Other establishments,10/12/18,6272020,57.26,VENDOR,KARE PLUS NATIONAL,142667
Portsmouth City Council,PCC,Adult Social Care,Social Care Activities,Adult Services,Third Party Payments,Other establishments,10/12/18,6272020,1428,VENDOR,KARE PLUS NATIONAL,142667
Portsmouth City Council,PCC,Adult Social Care,Physical Support Adults (18 - 64),Adult Services,Third Party Payments,Other establishments,10/12/18,6272020,94.07,VENDOR,KARE PLUS NATIONAL,142667
